Workbook

Sheet Main
B10: 2019-11-05
B12: Sheet No. | C12: Template Name | D12: Summary
B13: 1 | C13: Future Intra | D13: For Intraday trading in F&O segment
B14: 2 | C14: Cash Intra | D14: For Intraday trading in cash market segment
B15: 3 | C15: Mid-cap Intra | D15: For Intraday trading in Mid-cap stocks
B16: 4 | C16: Bulk Deals | D16: Reveals Bulk Deals carried on NSE & BSE
B17: 5 | C17: Call Tracker
K27: `

Sheet Future Intra
M5: Back to Main Page
A6: FOR INTRA DAY TRADING | L6: =Main!B10 -> 2019-11-05
A9: Sr.no | B9: Sector | C9: Scrip | D9: CLOSE RATE | E9: Pivot Point | F9: Supports | I9: Resistances
B10: Sector | D10: Point | E10: Point | F10: S1 | G10: S2 | H10: S3 | I10: R1 | J10: R2 | K10: R3 | L10: HIGH | M10: LOW | N10: OI | O10: % Change in OI
A11: 1 | B11: Index | C11: BANKNIFTY | D11: 30396.05 | E11: 30440.35 | F11: 30222.70 | G11: 30049.35 | H11: 29831.70 | I11: 30613.70 | J11: 30831.35 | K11: 31004.70 | L11: 30658 | M11: 30267 | N11: 1095200 | O11: 11.35%
A12: 2 | B12: Index | C12: NIFTY | D12: 11979.70 | E12: 11976.22 | F12: 11939.63 | G12: 11899.57 | H12: 11862.98 | I12: 12016.28 | J12: 12052.87 | K12: 12092.93 | L12: 12012.8 | M12: 11936.15 | N12: 15341475 | O12: 0.94%
A13: 3 | B13: Index | C13: NIFTYIT | D13: 15720.00 | E13: 15710.33 | F13: 15559.67 | G13: 15399.33 | H13: 15248.67 | I13: 15870.67 | J13: 16021.33 | K13: 16181.67 | L13: 15861 | M13: 15550 | N13: 7350 | O13: -4.55%
A14: 4 | B14: Cement | C14: ACC | D14: 1571.60 | E14: 1572.87 | F14: 1546.83 | G14: 1522.07 | H14: 1496.03 | I14: 1597.63 | J14: 1623.67 | K14: 1648.43 | L14: 1598.9 | M14: 1548.1 | N14: 2603600 | O14: 2.94%
A15: 5 | B15: Others | C15: ADANIENT | D15: 201.20 | E15: 201.52 | F15: 198.23 | G15: 195.27 | H15: 191.98 | I15: 204.48 | J15: 207.77 | K15: 210.73 | L15: 204.8 | M15: 198.55 | N15: 29544000 | O15: 0.07%
A16: 6 | B16: Others | C16: ADANIPORTS | D16: 392.95 | E16: 393.47 | F16: 389.83 | G16: 386.72 | H16: 383.08 | I16: 396.58 | J16: 400.22 | K16: 403.33 | L16: 397.1 | M16: 390.35 | N16: 15965000 | O16: 4.93%
A17: 7 | B17: Power | C17: ADANIPOWER | D17: 71.85 | E17: 71.43 | F17: 68.92 | G17: 65.98 | H17: 63.47 | I17: 74.37 | J17: 76.88 | K17: 79.82 | L17: 73.95 | M17: 68.5 | N17: 80760000 | O17: -1.54%
A18: 8 | B18: Automobile | C18: AMARAJABAT | D18: 659.05 | E18: 669.48 | F18: 644.77 | G18: 630.48 | H18: 605.77 | I18: 683.77 | J18: 708.48 | K18: 722.77 | L18: 694.2 | M18: 655.2 | N18: 1398000 | O18: -5.04%
A19: 9 | B19: Cement | C19: AMBUJACEM | D19: 203.90 | E19: 204.92 | F19: 202.13 | G19: 200.37 | H19: 197.58 | I19: 206.68 | J19: 209.47 | K19: 211.23 | L19: 207.7 | M19: 203.15 | N19: 20392500 | O19: 0.39%
A20: 10 | B20: Others | C20: APOLLOHOSP | D20: 1421.35 | E20: 1438.10 | F20: 1401.25 | G20: 1381.15 | H20: 1344.30 | I20: 1458.20 | J20: 1495.05 | K20: 1515.15 | L20: 1474.95 | M20: 1418 | N20: 1660500 | O20: 9.50%
A21: 11 | B21: Automobile | C21: APOLLOTYRE | D21: 184.25 | E21: 185.63 | F21: 181.72 | G21: 179.18 | H21: 175.27 | I21: 188.17 | J21: 192.08 | K21: 194.62 | L21: 189.55 | M21: 183.1 | N21: 7260000 | O21: 19.74%
A22: 12 | B22: Automobile | C22: ASHOKLEY | D22: 75.60 | E22: 75.57 | F22: 74.08 | G22: 72.57 | H22: 71.08 | I22: 77.08 | J22: 78.57 | K22: 80.08 | L22: 77.05 | M22: 74.05 | N22: 60214000 | O22: 0.30%
A23: 13 | B23: FMCG | C23: ASIANPAINT | D23: 1790.95 | E23: 1786.13 | F23: 1775.92 | G23: 1760.88 | H23: 1750.67 | I23: 1801.17 | J23: 1811.38 | K23: 1826.42 | L23: 1796.35 | M23: 1771.1 | N23: 7641000 | O23: 1.39%
A24: 14 | B24: Pharma | C24: AUROPHARMA | D24: 477.45 | E24: 486.48 | F24: 464.37 | G24: 451.28 | H24: 429.17 | I24: 499.57 | J24: 521.68 | K24: 534.77 | L24: 508.6 | M24: 473.4 | N24: 16509000 | O24: 4.42%
A25: 15 | B25: Banking | C25: AXISBANK | D25: 743.55 | E25: 745.95 | F25: 734.90 | G25: 726.25 | H25: 715.20 | I25: 754.60 | J25: 765.65 | K25: 774.30 | L25: 757 | M25: 737.3 | N25: 50553600 | O25: 1.28%
A26: 16 | B26: Automobile | C26: BAJAJ-AUTO | D26: 3221.90 | E26: 3221.82 | F26: 3188.68 | G26: 3155.47 | H26: 3122.33 | I26: 3255.03 | J26: 3288.17 | K26: 3321.38 | L26: 3254.95 | M26: 3188.6 | N26: 2262250 | O26: 0.33%
A27: 17 | B27: Finance | C27: BAJAJFINSV | D27: 8747.25 | E27: 8665.08 | F27: 8557.22 | G27: 8367.18 | H27: 8259.32 | I27: 8855.12 | J27: 8962.98 | K27: 9153.02 | L27: 8772.95 | M27: 8475.05 | N27: 1564750 | O27: 7.43%
A28: 18 | B28: Finance | C28: BAJFINANCE | D28: 4130.85 | E28: 4137.53 | F28: 4078.72 | G28: 4026.58 | H28: 3967.77 | I28: 4189.67 | J28: 4248.48 | K28: 4300.62 | L28: 4196.35 | M28: 4085.4 | N28: 7102250 | O28: 1.88%
A29: 19 | B29: Automobile | C29: BALKRISIND | D29: 865.00 | E29: 869.87 | F29: 857.73 | G29: 850.47 | H29: 838.33 | I29: 877.13 | J29: 889.27 | K29: 896.53 | L29: 882 | M29: 862.6 | N29: 1438400 | O29: -3.75%
A30: 20 | B30: Banking | C30: BANKBARODA | D30: 102.15 | E30: 102.30 | F30: 100.40 | G30: 98.65 | H30: 96.75 | I30: 104.05 | J30: 105.95 | K30: 107.70 | L30: 104.2 | M30: 100.55 | N30: 68515200 | O30: -2.50%
A31: 21 | B31: Banking | C31: BANKINDIA | D31: 70.45 | E31: 70.45 | F31: 69.15 | G31: 67.85 | H31: 66.55 | I31: 71.75 | J31: 73.05 | K31: 74.35 | L31: 71.75 | M31: 69.15 | N31: 24786000 | O31: -14.68%
A32: 22 | B32: FMCG | C32: BATAINDIA | D32: 1725.10 | E32: 1726.48 | F32: 1704.97 | G32: 1684.83 | H32: 1663.32 | I32: 1746.62 | J32: 1768.13 | K32: 1788.27 | L32: 1748 | M32: 1706.35 | N32: 2629000 | O32: 0.76%
A33: 23 | B33: Capital_Goods | C33: BEL | D33: 119.90 | E33: 120.57 | F33: 118.68 | G33: 117.47 | H33: 115.58 | I33: 121.78 | J33: 123.67 | K33: 124.88 | L33: 122.45 | M33: 119.35 | N33: 24024000 | O33: 0.45%
A34: 24 | B34: FMCG | C34: BERGEPAINT | D34: 477.90 | E34: 485.72 | F34: 466.33 | G34: 454.77 | H34: 435.38 | I34: 497.28 | J34: 516.67 | K34: 528.23 | L34: 505.1 | M34: 474.15 | N34: 6791400 | O34: -4.22%
A35: 25 | B35: Automobile | C35: BHARATFORG | D35: 460.10 | E35: 460.73 | F35: 453.67 | G35: 447.23 | H35: 440.17 | I35: 467.17 | J35: 474.23 | K35: 480.67 | L35: 467.8 | M35: 454.3 | N35: 6241300 | O35: -0.15%
A36: 26 | B36: Telecom | C36: BHARTIARTL | D36: 379.55 | E36: 379.20 | F36: 375.60 | G36: 371.65 | H36: 368.05 | I36: 383.15 | J36: 386.75 | K36: 390.70 | L36: 382.8 | M36: 375.25 | N36: 32801571 | O36: 0.36%
A37: 27 | B37: Capital_Goods | C37: BHEL | D37: 56.70 | E37: 56.83 | F37: 55.57 | G37: 54.43 | H37: 53.17 | I37: 57.97 | J37: 59.23 | K37: 60.37 | L37: 58.1 | M37: 55.7 | N37: 50740400 | O37: 1.75%
A38: 28 | B38: Pharma | C38: BIOCON | D38: 264.10 | E38: 259.22 | F38: 252.23 | G38: 240.37 | H38: 233.38 | I38: 271.08 | J38: 278.07 | K38: 289.93 | L38: 266.2 | M38: 247.35 | N38: 11100300 | O38: -7.76%
A39: 29 | B39: Automobile | C39: BOSCHLTD | D39: 15797.10 | E39: 15730.75 | F39: 15571.50 | G39: 15345.90 | H39: 15186.65 | I39: 15956.35 | J39: 16115.60 | K39: 16341.20 | L39: 15890 | M39: 15505.15 | N39: 150060 | O39: -0.89%
A40: 30 | B40: Oil_Gas | C40: BPCL | D40: 524.80 | E40: 523.38 | F40: 516.97 | G40: 509.13 | H40: 502.72 | I40: 531.22 | J40: 537.63 | K40: 545.47 | L40: 529.8 | M40: 515.55 | N40: 20012400 | O40: 1.57%
A41: 31 | B41: FMCG | C41: BRITANNIA | D41: 3252.65 | E41: 3263.67 | F41: 3224.93 | G41: 3197.22 | H41: 3158.48 | I41: 3291.38 | J41: 3330.12 | K41: 3357.83 | L41: 3302.4 | M41: 3235.95 | N41: 2014000 | O41: 0.65%
A42: 32 | B42: Pharma | C42: CADILAHC | D42: 242.65 | E42: 245.87 | F42: 229.78 | G42: 216.92 | H42: 200.83 | I42: 258.73 | J42: 274.82 | K42: 287.68 | L42: 261.95 | M42: 233 | N42: 9001600 | O42: 14.09%
A43: 33 | B43: Banking | C43: CANBK | D43: 208.40 | E43: 209.12 | F43: 205.88 | G43: 203.37 | H43: 200.13 | I43: 211.63 | J43: 214.87 | K43: 217.38 | L43: 212.35 | M43: 206.6 | N43: 10724200 | O43: -0.80%
A44: 34 | B44: Oil_Gas | C44: CASTROLIND | D44: 151.30 | E44: 153.20 | F44: 148.75 | G44: 146.20 | H44: 141.75 | I44: 155.75 | J44: 160.20 | K44: 162.75 | L44: 157.65 | M44: 150.65 | N44: 5164600 | O44: -1.17%
A45: 35 | B45: Textile | C45: CENTURYTEX | D45: 408.30 | E45: 412.30 | F45: 402.10 | G45: 395.90 | H45: 385.70 | I45: 418.50 | J45: 428.70 | K45: 434.90 | L45: 422.5 | M45: 406.1 | N45: 1725600 | O45: -2.61%
A46: 36 | B46: Power | C46: CESC | D46: 829.55 | E46: 823.43 | F46: 809.12 | G46: 788.68 | H46: 774.37 | I46: 843.87 | J46: 858.18 | K46: 878.62 | L46: 837.75 | M46: 803 | N46: 929600 | O46: 15.16%
A47: 37 | B47: Finance | C47: CHOLAFIN | D47: 314.00 | E47: 315.45 | F47: 309.50 | G47: 305.00 | H47: 299.05 | I47: 319.95 | J47: 325.90 | K47: 330.40 | L47: 321.4 | M47: 310.95 | N47: 3220000 | O47: 12.29%
A48: 38 | B48: Pharma | C48: CIPLA | D48: 470.70 | E48: 473.43 | F48: 466.37 | G48: 462.03 | H48: 454.97 | I48: 477.77 | J48: 484.83 | K48: 489.17 | L48: 480.5 | M48: 469.1 | N48: 15005000 | O48: 2.41%
A49: 39 | B49: Others | C49: COALINDIA | D49: 215.10 | E49: 212.27 | F49: 208.83 | G49: 202.57 | H49: 199.13 | I49: 218.53 | J49: 221.97 | K49: 228.23 | L49: 215.7 | M49: 206 | N49: 22811800 | O49: 3.84%
A50: 40 | B50: FMCG | C50: COLPAL | D50: 1546.00 | E50: 1537.63 | F50: 1526.27 | G50: 1506.53 | H50: 1495.17 | I50: 1557.37 | J50: 1568.73 | K50: 1588.47 | L50: 1549 | M50: 1517.9 | N50: 1764700 | O50: 3.02%
A51: 41 | B51: Others | C51: CONCOR | D51: 581.65 | E51: 585.18 | F51: 576.57 | G51: 571.48 | H51: 562.87 | I51: 590.27 | J51: 598.88 | K51: 603.97 | L51: 593.8 | M51: 580.1 | N51: 5071935 | O51: -0.61%
A52: 42 | B52: Capital_Goods | C52: CUMMINSIND | D52: 548.65 | E52: 552.07 | F52: 542.18 | G52: 535.72 | H52: 525.83 | I52: 558.53 | J52: 568.42 | K52: 574.88 | L52: 561.95 | M52: 545.6 | N52: 2055900 | O52: -1.18%
A53: 43 | B53: FMCG | C53: DABUR | D53: 460.65 | E53: 462.47 | F53: 456.73 | G53: 452.82 | H53: 447.08 | I53: 466.38 | J53: 472.12 | K53: 476.03 | L53: 468.2 | M53: 458.55 | N53: 10828750 | O53: 2.73%
A54: 44 | B54: Media | C54: DISHTV | D54: 14.55 | E54: 15.12 | F54: 13.78 | G54: 13.02 | H54: 11.68 | I54: 15.88 | J54: 17.22 | K54: 17.98 | L54: 16.45 | M54: 14.35 | N54: 91934300 | O54: -9.92%
A55: 45 | B55: Pharma | C55: DIVISLAB | D55: 1743.80 | E55: 1741.57 | F55: 1728.13 | G55: 1712.47 | H55: 1699.03 | I55: 1757.23 | J55: 1770.67 | K55: 1786.33 | L55: 1755 | M55: 1725.9 | N55: 2239600 | O55: 3.55%
A56: 46 | B56: Realty | C56: DLF | D56: 185.05 | E56: 185.62 | F56: 182.08 | G56: 179.12 | H56: 175.58 | I56: 188.58 | J56: 192.12 | K56: 195.08 | L56: 189.15 | M56: 182.65 | N56: 35985600 | O56: -0.10%
A57: 47 | B57: Pharma | C57: DRREDDY | D57: 2803.45 | E57: 2790.58 | F57: 2765.17 | G57: 2726.88 | H57: 2701.47 | I57: 2828.87 | J57: 2854.28 | K57: 2892.57 | L57: 2816 | M57: 2752.3 | N57: 3327750 | O57: -1.06%
A58: 48 | B58: Automobile | C58: EICHERMOT | D58: 21826.65 | E58: 21915.72 | F58: 21530.93 | G58: 21235.22 | H58: 20850.43 | I58: 22211.43 | J58: 22596.22 | K58: 22891.93 | L58: 22300.5 | M58: 21620 | N58: 292425 | O58: -2.56%
A59: 49 | B59: Finance | C59: EQUITAS | D59: 98.45 | E59: 98.02 | F59: 96.13 | G59: 93.82 | H59: 91.93 | I59: 100.33 | J59: 102.22 | K59: 104.53 | L59: 99.9 | M59: 95.7 | N59: 10880000 | O59: -2.23%
A60: 50 | B60: Automobile | C60: ESCORTS | D60: 651.35 | E60: 650.63 | F60: 640.67 | G60: 629.98 | H60: 620.02 | I60: 661.32 | J60: 671.28 | K60: 681.97 | L60: 660.6 | M60: 639.95 | N60: 4998400 | O60: -1.92%
A61: 51 | B61: Automobile | C61: EXIDEIND | D61: 186.90 | E61: 189.23 | F61: 183.62 | G61: 180.33 | H61: 174.72 | I61: 192.52 | J61: 198.13 | K61: 201.42 | L61: 194.85 | M61: 185.95 | N61: 11793600 | O61: 2.87%
A62: 52 | B62: Banking | C62: FEDERALBNK | D62: 88.50 | E62: 88.27 | F62: 87.18 | G62: 85.87 | H62: 84.78 | I62: 89.58 | J62: 90.67 | K62: 91.98 | L62: 89.35 | M62: 86.95 | N62: 51758000 | O62: -5.56%
A63: 53 | B63: Oil_Gas | C63: GAIL | D63: 137.65 | E63: 138.12 | F63: 135.98 | G63: 134.32 | H63: 132.18 | I63: 139.78 | J63: 141.92 | K63: 143.58 | L63: 140.25 | M63: 136.45 | N63: 43312080 | O63: 1.96%
A64: 54 | B64: Pharma | C64: GLENMARK | D64: 317.60 | E64: 319.10 | F64: 314.50 | G64: 311.40 | H64: 306.80 | I64: 322.20 | J64: 326.80 | K64: 329.90 | L64: 323.7 | M64: 316 | N64: 6053400 | O64: 0.64%
A65: 55 | B65: Infrastructure | C65: GMRINFRA | D65: 21.00 | E65: 21.05 | F65: 20.85 | G65: 20.70 | H65: 20.50 | I65: 21.20 | J65: 21.40 | K65: 21.55 | L65: 21.25 | M65: 20.9 | N65: 121050000 | O65: -0.81%
A66: 56 | B66: FMCG | C66: GODREJCP | D66: 722.40 | E66: 727.38 | F66: 715.02 | G66: 707.63 | H66: 695.27 | I66: 734.77 | J66: 747.13 | K66: 754.52 | L66: 739.75 | M66: 720 | N66: 3961600 | O66: 2.67%
A67: 57 | B67: Cement | C67: GRASIM | D67: 787.70 | E67: 789.77 | F67: 780.93 | G67: 774.17 | H67: 765.33 | I67: 796.53 | J67: 805.37 | K67: 812.13 | L67: 798.6 | M67: 783 | N67: 19776750 | O67: 0.06%
A68: 58 | B68: Others | C68: HAVELLS | D68: 694.95 | E68: 694.33 | F68: 688.97 | G68: 682.98 | H68: 677.62 | I68: 700.32 | J68: 705.68 | K68: 711.67 | L68: 699.7 | M68: 688.35 | N68: 5052000 | O68: -2.62%
A69: 59 | B69: Technology | C69: HCLTECH | D69: 1161.25 | E69: 1162.17 | F69: 1153.53 | G69: 1145.82 | H69: 1137.18 | I69: 1169.88 | J69: 1178.52 | K69: 1186.23 | L69: 1170.8 | M69: 1154.45 | N69: 10729600 | O69: 0.10%
A70: 60 | B70: Finance | C70: HDFC | D70: 2191.70 | E70: 2174.43 | F70: 2142.87 | G70: 2094.03 | H70: 2062.47 | I70: 2223.27 | J70: 2254.83 | K70: 2303.67 | L70: 2206 | M70: 2125.6 | N70: 33740250 | O70: -0.13%
A71: 61 | B71: Banking | C71: HDFCBANK | D71: 1241.15 | E71: 1241.78 | F71: 1231.57 | G71: 1221.98 | H71: 1211.77 | I71: 1251.37 | J71: 1261.58 | K71: 1271.17 | L71: 1252 | M71: 1232.2 | N71: 25505000 | O71: 0.92%
A72: 62 | B72: Automobile | C72: HEROMOTOCO | D72: 2656.60 | E72: 2675.63 | F72: 2624.27 | G72: 2591.93 | H72: 2540.57 | I72: 2707.97 | J72: 2759.33 | K72: 2791.67 | L72: 2727 | M72: 2643.3 | N72: 3365200 | O72: 3.33%
A73: 63 | B73: Technology | C73: HEXAWARE | D73: 342.80 | E73: 343.05 | F73: 337.85 | G73: 332.90 | H73: 327.70 | I73: 348.00 | J73: 353.20 | K73: 358.15 | L73: 348.25 | M73: 338.1 | N73: 1765500 | O73: -6.88%
A74: 64 | B74: Metals | C74: HINDALCO | D74: 198.90 | E74: 200.00 | F74: 195.50 | G74: 192.10 | H74: 187.60 | I74: 203.40 | J74: 207.90 | K74: 211.30 | L74: 204.5 | M74: 196.6 | N74: 26075000 | O74: 1.50%
A75: 65 | B75: Oil_Gas | C75: HINDPETRO | D75: 320.55 | E75: 322.32 | F75: 317.58 | G75: 314.62 | H75: 309.88 | I75: 325.28 | J75: 330.02 | K75: 332.98 | L75: 327.05 | M75: 319.35 | N75: 19546800 | O75: 0.38%
A76: 66 | B76: FMCG | C76: HINDUNILVR | D76: 2161.20 | E76: 2168.55 | F76: 2147.20 | G76: 2133.20 | H76: 2111.85 | I76: 2182.55 | J76: 2203.90 | K76: 2217.90 | L76: 2189.9 | M76: 2154.55 | N76: 8724000 | O76: 1.11%
A77: 67 | B77: Finance | C77: IBULHSGFIN | D77: 210.05 | E77: 211.53 | F77: 201.17 | G77: 192.28 | H77: 181.92 | I77: 220.42 | J77: 230.78 | K77: 239.67 | L77: 221.9 | M77: 202.65 | N77: 23944400 | O77: -0.97%
A78: 68 | B78: Banking | C78: ICICIBANK | D78: 471.60 | E78: 469.90 | F78: 465.90 | G78: 460.20 | H78: 456.20 | I78: 475.60 | J78: 479.60 | K78: 485.30 | L78: 473.9 | M78: 464.2 | N78: 73854000 | O78: -2.14%
A79: 69 | B79: Finance | C79: ICICIPRULI | D79: 509.90 | E79: 509.35 | F79: 505.55 | G79: 501.20 | H79: 497.40 | I79: 513.70 | J79: 517.50 | K79: 521.85 | L79: 513.15 | M79: 505 | N79: 5838000 | O79: -4.02%
A80: 70 | B80: Telecom | C80: IDEA | D80: 4.55 | E80: 4.60 | F80: 4.40 | G80: 4.25 | H80: 4.05 | I80: 4.75 | J80: 4.95 | K80: 5.10 | L80: 4.8 | M80: 4.45 | N80: 550018000 | O80: -2.45%
A81: 71 | B81: Banking | C81: IDFCFIRSTB | D81: 43.15 | E81: 43.43 | F81: 42.57 | G81: 41.98 | H81: 41.12 | I81: 44.02 | J81: 44.88 | K81: 45.47 | L81: 44.3 | M81: 42.85 | N81: 228612000 | O81: 0.22%
A82: 72 | B82: Oil_Gas | C82: IGL | D82: 392.15 | E82: 392.73 | F82: 389.77 | G82: 387.38 | H82: 384.42 | I82: 395.12 | J82: 398.08 | K82: 400.47 | L82: 395.7 | M82: 390.35 | N82: 2854500 | O82: 0.39%
A83: 73 | B83: Others | C83: INDIGO | D83: 1440.00 | E83: 1443.27 | F83: 1423.03 | G83: 1406.07 | H83: 1385.83 | I83: 1460.23 | J83: 1480.47 | K83: 1497.43 | L83: 1463.5 | M83: 1426.3 | N83: 3324900 | O83: 4.58%
A84: 74 | B84: Banking | C84: INDUSINDBK | D84: 1354.15 | E84: 1366.95 | F84: 1338.20 | G84: 1322.25 | H84: 1293.50 | I84: 1382.90 | J84: 1411.65 | K84: 1427.60 | L84: 1395.7 | M84: 1351 | N84: 11705200 | O84: -2.51%
A85: 75 | B85: Telecom | C85: INFRATEL | D85: 211.95 | E85: 212.15 | F85: 207.00 | G85: 202.05 | H85: 196.90 | I85: 217.10 | J85: 222.25 | K85: 227.20 | L85: 217.3 | M85: 207.2 | N85: 8702000 | O85: 0.51%
A86: 76 | B86: Technology | C86: INFY | D86: 710.85 | E86: 708.13 | F86: 682.77 | G86: 654.68 | H86: 629.32 | I86: 736.22 | J86: 761.58 | K86: 789.67 | L86: 733.5 | M86: 680.05 | N86: 55276800 | O86: 6.51%
A87: 77 | B87: Oil_Gas | C87: IOC | D87: 139.20 | E87: 140.22 | F87: 137.73 | G87: 136.27 | H87: 133.78 | I87: 141.68 | J87: 144.17 | K87: 145.63 | L87: 142.7 | M87: 138.75 | N87: 29393500 | O87: 8.47%
A88: 78 | B88: FMCG | C88: ITC | D88: 261.40 | E88: 262.47 | F88: 259.73 | G88: 258.07 | H88: 255.33 | I88: 264.13 | J88: 266.87 | K88: 268.53 | L88: 265.2 | M88: 260.8 | N88: 97416000 | O88: -0.36%
A89: 79 | B89: Metals | C89: JINDALSTEL | D89: 137.20 | E89: 134.67 | F89: 127.83 | G89: 118.47 | H89: 111.63 | I89: 144.03 | J89: 150.87 | K89: 160.23 | L89: 141.5 | M89: 125.3 | N89: 38307200 | O89: 3.26%
A90: 80 | B90: Metals | C90: JSWSTEEL | D90: 250.65 | E90: 247.13 | F90: 238.92 | G90: 227.18 | H90: 218.97 | I90: 258.87 | J90: 267.08 | K90: 278.82 | L90: 255.35 | M90: 235.4 | N90: 50616000 | O90: -1.40%
A91: 81 | B91: Others | C91: JUBLFOOD | D91: 1564.15 | E91: 1568.20 | F91: 1548.50 | G91: 1532.85 | H91: 1513.15 | I91: 1583.85 | J91: 1603.55 | K91: 1619.20 | L91: 1587.9 | M91: 1552.55 | N91: 2157500 | O91: 0.89%
A92: 82 | B92: Others | C92: JUSTDIAL | D92: 568.90 | E92: 572.43 | F92: 555.42 | G92: 541.93 | H92: 524.92 | I92: 585.92 | J92: 602.93 | K92: 616.42 | L92: 589.45 | M92: 558.95 | N92: 3715600 | O92: 4.82%
A93: 83 | B93: Banking | C93: KOTAKBANK | D93: 1575.10 | E93: 1582.03 | F93: 1564.27 | G93: 1553.43 | H93: 1535.67 | I93: 1592.87 | J93: 1610.63 | K93: 1621.47 | L93: 1599.8 | M93: 1571.2 | N93: 7505200 | O93: 2.14%
A94: 84 | B94: Finance | C94: L&TFH | D94: 97.15 | E94: 97.58 | F94: 95.72 | G94: 94.28 | H94: 92.42 | I94: 99.02 | J94: 100.88 | K94: 102.32 | L94: 99.45 | M94: 96.15 | N94: 34410300 | O94: -4.02%
A95: 85 | B95: Finance | C95: LICHSGFIN | D95: 423.00 | E95: 422.78 | F95: 415.57 | G95: 408.13 | H95: 400.92 | I95: 430.22 | J95: 437.43 | K95: 444.87 | L95: 430 | M95: 415.35 | N95: 9405200 | O95: -0.02%
A96: 86 | B96: Capital_Goods | C96: LT | D96: 1458.75 | E96: 1462.53 | F96: 1451.27 | G96: 1443.78 | H96: 1432.52 | I96: 1470.02 | J96: 1481.28 | K96: 1488.77 | L96: 1473.8 | M96: 1455.05 | N96: 11850750 | O96: 0.44%
A97: 87 | B97: Pharma | C97: LUPIN | D97: 763.15 | E97: 763.97 | F97: 757.03 | G97: 750.92 | H97: 743.98 | I97: 770.08 | J97: 777.02 | K97: 783.13 | L97: 770.9 | M97: 757.85 | N97: 6407800 | O97: -1.10%
A98: 88 | B98: Automobile | C98: M&M | D98: 588.00 | E98: 589.27 | F98: 582.73 | G98: 577.47 | H98: 570.93 | I98: 594.53 | J98: 601.07 | K98: 606.33 | L98: 595.8 | M98: 584 | N98: 20158000 | O98: -1.37%
A99: 89 | B99: Finance | C99: M&MFIN | D99: 361.10 | E99: 362.60 | F99: 356.20 | G99: 351.30 | H99: 344.90 | I99: 367.50 | J99: 373.90 | K99: 378.80 | L99: 369 | M99: 357.7 | N99: 12296250 | O99: 0.99%
A100: 90 | B100: Finance | C100: MANAPPURAM | D100: 171.55 | E100: 171.98 | F100: 170.47 | G100: 169.38 | H100: 167.87 | I100: 173.07 | J100: 174.58 | K100: 175.67 | L100: 173.5 | M100: 170.9 | N100: 12708000 | O100: -1.21%
A101: 91 | B101: FMCG | C101: MARICO | D101: 366.50 | E101: 367.68 | F101: 363.42 | G101: 360.33 | H101: 356.07 | I101: 370.77 | J101: 375.03 | K101: 378.12 | L101: 371.95 | M101: 364.6 | N101: 11687000 | O101: -0.42%
A102: 92 | B102: Automobile | C102: MARUTI | D102: 7460.05 | E102: 7511.98 | F102: 7383.22 | G102: 7306.38 | H102: 7177.62 | I102: 7588.82 | J102: 7717.58 | K102: 7794.42 | L102: 7640.75 | M102: 7435.15 | N102: 2553100 | O102: 0.36%
A103: 93 | B103: FMCG | C103: MCDOWELL-N | D103: 637.90 | E103: 637.63 | F103: 629.27 | G103: 620.63 | H103: 612.27 | I103: 646.27 | J103: 654.63 | K103: 663.27 | L103: 646 | M103: 629 | N103: 10427500 | O103: 0.83%
A104: 94 | B104: Finance | C104: MFSL | D104: 434.10 | E104: 429.20 | F104: 411.90 | G104: 389.70 | H104: 372.40 | I104: 451.40 | J104: 468.70 | K104: 490.90 | L104: 446.5 | M104: 407 | N104: 2784000 | O104: -1.78%
A105: 95 | B105: Oil_Gas | C105: MGL | D105: 980.40 | E105: 991.93 | F105: 965.87 | G105: 951.33 | H105: 925.27 | I105: 1006.47 | J105: 1032.53 | K105: 1047.07 | L105: 1018 | M105: 977.4 | N105: 1444200 | O105: 10.97%
A106: 96 | B106: Technology | C106: MINDTREE | D106: 718.00 | E106: 722.67 | F106: 711.83 | G106: 705.67 | H106: 694.83 | I106: 728.83 | J106: 739.67 | K106: 745.83 | L106: 733.5 | M106: 716.5 | N106: 1344000 | O106: 2.00%
A107: 97 | B107: Automobile | C107: MOTHERSUMI | D107: 125.75 | E107: 125.30 | F107: 122.75 | G107: 119.75 | H107: 117.20 | I107: 128.30 | J107: 130.85 | K107: 133.85 | L107: 127.85 | M107: 122.3 | N107: 25782900 | O107: -2.42%
A108: 98 | B108: Automobile | C108: MRF | D108: 64343.25 | E108: 64677.05 | F108: 63765.20 | G108: 63187.15 | H108: 62275.30 | I108: 65255.10 | J108: 66166.95 | K108: 66745.00 | L108: 65588.9 | M108: 64099 | N108: 19280 | O108: -0.82%
A109: 99 | B109: Finance | C109: MUTHOOTFIN | D109: 710.35 | E109: 711.53 | F109: 706.32 | G109: 702.28 | H109: 697.07 | I109: 715.57 | J109: 720.78 | K109: 724.82 | L109: 716.75 | M109: 707.5 | N109: 2398500 | O109: -1.17%
A110: 100 | B110: Metals | C110: NATIONALUM | D110: 45.80 | E110: 45.92 | F110: 44.88 | G110: 43.97 | H110: 42.93 | I110: 46.83 | J110: 47.87 | K110: 48.78 | L110: 46.95 | M110: 45 | N110: 47486800 | O110: -1.88%
A111: 101 | B111: Infrastructure | C111: NBCC | D111: 38.60 | E111: 38.80 | F111: 37.70 | G111: 36.80 | H111: 35.70 | I111: 39.70 | J111: 40.80 | K111: 41.70 | L111: 39.9 | M111: 37.9 | N111: 31039300 | O111: -3.29%
A112: 102 | B112: Infrastructure | C112: NCC | D112: 58.15 | E112: 58.97 | F112: 57.03 | G112: 55.92 | H112: 53.98 | I112: 60.08 | J112: 62.02 | K112: 63.13 | L112: 60.9 | M112: 57.85 | N112: 37163000 | O112: 2.18%
A113: 103 | B113: FMCG | C113: NESTLEIND | D113: 14884.05 | E113: 14953.92 | F113: 14795.13 | G113: 14706.22 | H113: 14547.43 | I113: 15042.83 | J113: 15201.62 | K113: 15290.53 | L113: 15112.7 | M113: 14865 | N113: 448750 | O113: 0.61%
A114: 104 | B114: Technology | C114: NIITTECH | D114: 1584.85 | E114: 1573.63 | F114: 1550.32 | G114: 1515.78 | H114: 1492.47 | I114: 1608.17 | J114: 1631.48 | K114: 1666.02 | L114: 1596.95 | M114: 1539.1 | N114: 519375 | O114: -3.89%
A115: 105 | B115: Metals | C115: NMDC | D115: 110.55 | E115: 111.27 | F115: 109.53 | G115: 108.52 | H115: 106.78 | I115: 112.28 | J115: 114.02 | K115: 115.03 | L115: 113 | M115: 110.25 | N115: 17688000 | O115: -1.07%
A116: 106 | B116: Power | C116: NTPC | D116: 121.15 | E116: 121.62 | F116: 120.03 | G116: 118.92 | H116: 117.33 | I116: 122.73 | J116: 124.32 | K116: 125.43 | L116: 123.2 | M116: 120.5 | N116: 47414400 | O116: 3.49%
A117: 107 | B117: Oil_Gas | C117: OIL | D117: 172.00 | E117: 171.48 | F117: 169.47 | G117: 166.93 | H117: 164.92 | I117: 174.02 | J117: 176.03 | K117: 178.57 | L117: 173.5 | M117: 168.95 | N117: 9058335 | O117: 1.64%
A118: 108 | B118: Oil_Gas | C118: ONGC | D118: 144.55 | E118: 144.25 | F118: 142.00 | G118: 139.45 | H118: 137.20 | I118: 146.80 | J118: 149.05 | K118: 151.60 | L118: 146.5 | M118: 141.7 | N118: 20126600 | O118: 6.96%
A119: 109 | B119: Textile | C119: PAGEIND | D119: 24428.10 | E119: 24407.70 | F119: 24070.40 | G119: 23712.70 | H119: 23375.40 | I119: 24765.40 | J119: 25102.70 | K119: 25460.40 | L119: 24745 | M119: 24050 | N119: 173525 | O119: -0.37%
A120: 110 | B120: Pharma | C120: PEL | D120: 1723.20 | E120: 1718.42 | F120: 1660.03 | G120: 1596.87 | H120: 1538.48 | I120: 1781.58 | J120: 1839.97 | K120: 1903.13 | L120: 1776.8 | M120: 1655.25 | N120: 5009576 | O120: -0.65%
A121: 111 | B121: Oil_Gas | C121: PETRONET | D121: 280.10 | E121: 280.57 | F121: 278.23 | G121: 276.37 | H121: 274.03 | I121: 282.43 | J121: 284.77 | K121: 286.63 | L121: 282.9 | M121: 278.7 | N121: 19479000 | O121: 0.37%
A122: 112 | B122: Finance | C122: PFC | D122: 112.30 | E122: 112.18 | F122: 111.02 | G122: 109.73 | H122: 108.57 | I122: 113.47 | J122: 114.63 | K122: 115.92 | L122: 113.35 | M122: 110.9 | N122: 33244400 | O122: -0.83%
A123: 113 | B123: FMCG | C123: PIDILITIND | D123: 1400.70 | E123: 1397.28 | F123: 1390.07 | G123: 1379.43 | H123: 1372.22 | I123: 1407.92 | J123: 1415.13 | K123: 1425.77 | L123: 1404.5 | M123: 1386.65 | N123: 3599500 | O123: -1.33%
A124: 114 | B124: Banking | C124: PNB | D124: 68.30 | E124: 68.47 | F124: 67.13 | G124: 65.97 | H124: 64.63 | I124: 69.63 | J124: 70.97 | K124: 72.13 | L124: 69.8 | M124: 67.3 | N124: 99584400 | O124: 0.90%
A125: 115 | B125: Power | C125: POWERGRID | D125: 195.70 | E125: 196.63 | F125: 194.17 | G125: 192.63 | H125: 190.17 | I125: 198.17 | J125: 200.63 | K125: 202.17 | L125: 199.1 | M125: 195.1 | N125: 31288000 | O125: 9.11%
A126: 116 | B126: Media | C126: PVR | D126: 1745.30 | E126: 1760.05 | F126: 1720.80 | G126: 1696.30 | H126: 1657.05 | I126: 1784.55 | J126: 1823.80 | K126: 1848.30 | L126: 1799.3 | M126: 1735.55 | N126: 1274800 | O126: 5.81%
A127: 117 | B127: Cement | C127: RAMCOCEM | D127: 807.90 | E127: 813.60 | F127: 799.30 | G127: 790.70 | H127: 776.40 | I127: 822.20 | J127: 836.50 | K127: 845.10 | L127: 827.9 | M127: 805 | N127: 1203200 | O127: -0.59%
A128: 118 | B128: Banking | C128: RBLBANK | D128: 310.10 | E128: 308.62 | F128: 300.58 | G128: 291.07 | H128: 283.03 | I128: 318.13 | J128: 326.17 | K128: 335.68 | L128: 316.65 | M128: 299.1 | N128: 10004100 | O128: 1.13%
A129: 119 | B129: Power | C129: RECLTD | D129: 141.55 | E129: 141.43 | F129: 139.72 | G129: 137.88 | H129: 136.17 | I129: 143.27 | J129: 144.98 | K129: 146.82 | L129: 143.15 | M129: 139.6 | N129: 20040000 | O129: -2.62%
A130: 120 | B130: Oil_Gas | C130: RELIANCE | D130: 1464.90 | E130: 1464.30 | F130: 1453.10 | G130: 1441.30 | H130: 1430.10 | I130: 1476.10 | J130: 1487.30 | K130: 1499.10 | L130: 1475.5 | M130: 1452.5 | N130: 50119000 | O130: 0.68%
A131: 121 | B131: Metals | C131: SAIL | D131: 40.30 | E131: 40.45 | F131: 39.55 | G131: 38.80 | H131: 37.90 | I131: 41.20 | J131: 42.10 | K131: 42.85 | L131: 41.35 | M131: 39.7 | N131: 76630200 | O131: -3.40%
A132: 122 | B132: Banking | C132: SBIN | D132: 315.15 | E132: 316.02 | F132: 312.43 | G132: 309.72 | H132: 306.13 | I132: 318.73 | J132: 322.32 | K132: 325.03 | L132: 319.6 | M132: 313.3 | N132: 87102000 | O132: -1.76%
A133: 123 | B133: Cement | C133: SHREECEM | D133: 20216.40 | E133: 20277.12 | F133: 20094.28 | G133: 19972.17 | H133: 19789.33 | I133: 20399.23 | J133: 20582.07 | K133: 20704.18 | L133: 20459.95 | M133: 20155 | N133: 152350 | O133: 2.73%
A134: 124 | B134: Capital_Goods | C134: SIEMENS | D134: 1678.10 | E134: 1677.65 | F134: 1660.60 | G134: 1643.10 | H134: 1626.05 | I134: 1695.15 | J134: 1712.20 | K134: 1729.70 | L134: 1694.7 | M134: 1660.15 | N134: 1330450 | O134: 1.94%
A135: 125 | B135: Textile | C135: SRF | D135: 2931.30 | E135: 2926.77 | F135: 2869.58 | G135: 2807.87 | H135: 2750.68 | I135: 2988.48 | J135: 3045.67 | K135: 3107.38 | L135: 2983.95 | M135: 2865.05 | N135: 980250 | O135: 3.54%
A136: 126 | B136: Finance | C136: SRTRANSFIN | D136: 1139.85 | E136: 1141.37 | F136: 1131.83 | G136: 1123.82 | H136: 1114.28 | I136: 1149.38 | J136: 1158.92 | K136: 1166.93 | L136: 1150.9 | M136: 1133.35 | N136: 4042800 | O136: 1.84%
A137: 127 | B137: Pharma | C137: SUNPHARMA | D137: 440.20 | E137: 440.27 | F137: 435.58 | G137: 430.97 | H137: 426.28 | I137: 444.88 | J137: 449.57 | K137: 454.18 | L137: 444.95 | M137: 435.65 | N137: 58978350 | O137: 0.42%
A138: 128 | B138: Media | C138: SUNTV | D138: 523.30 | E138: 528.13 | F138: 513.72 | G138: 504.13 | H138: 489.72 | I138: 537.72 | J138: 552.13 | K138: 561.72 | L138: 542.55 | M138: 518.55 | N138: 2888200 | O138: -4.72%
A139: 129 | B139: Fertilisers | C139: TATACHEM | D139: 639.20 | E139: 640.00 | F139: 635.35 | G139: 631.50 | H139: 626.85 | I139: 643.85 | J139: 648.50 | K139: 652.35 | L139: 644.65 | M139: 636.15 | N139: 2602800 | O139: 3.47%
A140: 130 | B140: Technology | C140: TATAELXSI | D140: 832.05 | E140: 832.17 | F140: 822.78 | G140: 813.52 | H140: 804.13 | I140: 841.43 | J140: 850.82 | K140: 860.08 | L140: 841.55 | M140: 822.9 | N140: 1095000 | O140: -1.62%
A141: 131 | B141: FMCG | C141: TATAGLOBAL | D141: 307.60 | E141: 308.00 | F141: 302.60 | G141: 297.60 | H141: 292.20 | I141: 313.00 | J141: 318.40 | K141: 323.40 | L141: 313.4 | M141: 303 | N141: 12522600 | O141: 2.27%
A142: 132 | B142: Automobile | C142: TATAMOTORS | D142: 172.60 | E142: 174.33 | F142: 169.77 | G142: 166.93 | H142: 162.37 | I142: 177.17 | J142: 181.73 | K142: 184.57 | L142: 178.9 | M142: 171.5 | N142: 58557900 | O142: -1.71%
A143: 133 | B143: Automobile | C143: TATAMTRDVR | D143: 80.45 | E143: 81.15 | F143: 79.25 | G143: 78.05 | H143: 76.15 | I143: 82.35 | J143: 84.25 | K143: 85.45 | L143: 83.05 | M143: 79.95 | N143: 33918000 | O143: -0.21%
A144: 134 | B144: Power | C144: TATAPOWER | D144: 60.05 | E144: 60.18 | F144: 59.27 | G144: 58.48 | H144: 57.57 | I144: 60.97 | J144: 61.88 | K144: 62.67 | L144: 61.1 | M144: 59.4 | N144: 56709000 | O144: 3.82%
A145: 135 | B145: Metals | C145: TATASTEEL | D145: 410.50 | E145: 412.47 | F145: 401.93 | G145: 393.37 | H145: 382.83 | I145: 421.03 | J145: 431.57 | K145: 440.13 | L145: 423 | M145: 403.9 | N145: 23690264 | O145: 2.29%
A146: 136 | B146: Technology | C146: TCS | D146: 2204.20 | E146: 2209.72 | F146: 2185.58 | G146: 2166.97 | H146: 2142.83 | I146: 2228.33 | J146: 2252.47 | K146: 2271.08 | L146: 2233.85 | M146: 2191.1 | N146: 18433250 | O146: 1.13%
A147: 137 | B147: Technology | C147: TECHM | D147: 771.25 | E147: 769.25 | F147: 759.10 | G147: 746.95 | H147: 736.80 | I147: 781.40 | J147: 791.55 | K147: 803.70 | L147: 779.4 | M147: 757.1 | N147: 19389600 | O147: -2.17%
A148: 138 | B148: FMCG | C148: TITAN | D148: 1302.95 | E148: 1301.28 | F148: 1287.57 | G148: 1272.18 | H148: 1258.47 | I148: 1316.67 | J148: 1330.38 | K148: 1345.77 | L148: 1315 | M148: 1285.9 | N148: 9924750 | O148: 0.38%
A149: 139 | B149: Pharma | C149: TORNTPHARM | D149: 1816.00 | E149: 1818.07 | F149: 1800.13 | G149: 1784.27 | H149: 1766.33 | I149: 1833.93 | J149: 1851.87 | K149: 1867.73 | L149: 1836 | M149: 1802.2 | N149: 341500 | O149: -7.45%
A150: 140 | B150: Power | C150: TORNTPOWER | D150: 287.15 | E150: 287.45 | F150: 282.80 | G150: 278.45 | H150: 273.80 | I150: 291.80 | J150: 296.45 | K150: 300.80 | L150: 292.1 | M150: 283.1 | N150: 4230000 | O150: 1.08%
A151: 141 | B151: Automobile | C151: TVSMOTOR | D151: 450.75 | E151: 453.63 | F151: 445.12 | G151: 439.48 | H151: 430.97 | I151: 459.27 | J151: 467.78 | K151: 473.42 | L151: 462.15 | M151: 448 | N151: 8646650 | O151: 1.49%
A152: 142 | B152: FMCG | C152: UBL | D152: 1240.30 | E152: 1248.98 | F152: 1227.67 | G152: 1215.03 | H152: 1193.72 | I152: 1261.62 | J152: 1282.93 | K152: 1295.57 | L152: 1270.3 | M152: 1236.35 | N152: 2335900 | O152: 11.68%
A153: 143 | B153: Finance | C153: UJJIVAN | D153: 281.65 | E153: 279.47 | F153: 274.98 | G153: 268.32 | H153: 263.83 | I153: 286.13 | J153: 290.62 | K153: 297.28 | L153: 283.95 | M153: 272.8 | N153: 8604800 | O153: 3.96%
A154: 144 | B154: Cement | C154: ULTRACEMCO | D154: 4251.60 | E154: 4250.53 | F154: 4186.07 | G154: 4120.53 | H154: 4056.07 | I154: 4316.07 | J154: 4380.53 | K154: 4446.07 | L154: 4315 | M154: 4185 | N154: 2500400 | O154: 1.68%
A155: 145 | B155: Banking | C155: UNIONBANK | D155: 58.90 | E155: 58.98 | F155: 57.87 | G155: 56.83 | H155: 55.72 | I155: 60.02 | J155: 61.13 | K155: 62.17 | L155: 60.1 | M155: 57.95 | N155: 30254000 | O155: -1.23%
A156: 146 | B156: Fertilisers | C156: UPL | D156: 596.95 | E156: 596.90 | F156: 589.90 | G156: 582.85 | H156: 575.85 | I156: 603.95 | J156: 610.95 | K156: 618.00 | L156: 603.9 | M156: 589.85 | N156: 14001300 | O156: 2.32%
A157: 147 | B157: Metals | C157: VEDL | D157: 157.85 | E157: 158.47 | F157: 155.53 | G157: 153.22 | H157: 150.28 | I157: 160.78 | J157: 163.72 | K157: 166.03 | L157: 161.4 | M157: 156.15 | N157: 54731000 | O157: -4.36%
A158: 148 | B158: Capital_Goods | C158: VOLTAS | D158: 690.65 | E158: 694.58 | F158: 685.32 | G158: 679.98 | H158: 670.72 | I158: 699.92 | J158: 709.18 | K158: 714.52 | L158: 703.85 | M158: 689.25 | N158: 1795000 | O158: 4.66%
A159: 149 | B159: Technology | C159: WIPRO | D159: 257.25 | E159: 258.30 | F159: 255.65 | G159: 254.05 | H159: 251.40 | I159: 259.90 | J159: 262.55 | K159: 264.15 | L159: 260.95 | M159: 256.7 | N159: 25430400 | O159: 2.00%
A160: 150 | B160: Banking | C160: YESBANK | D160: 66.00 | E160: 64.38 | F160: 57.57 | G160: 49.13 | H160: 42.32 | I160: 72.82 | J160: 79.63 | K160: 88.07 | L160: 71.2 | M160: 55.95 | N160: 161279800 | O160: 8.86%
A161: 151 | B161: Media | C161: ZEEL | D161: 293.05 | E161: 296.78 | F161: 285.27 | G161: 277.48 | H161: 265.97 | I161: 304.57 | J161: 316.08 | K161: 323.87 | L161: 308.3 | M161: 289 | N161: 28010500 | O161: -0.46%
A178: Pivot Point: This is trigger point for intra day buy/sell based on the price range of the previous day
A179: As per the tool,the trader should take BUY position just above Pivot and keep the stop loss of pivot point and the first target would be Resistance 1(R1)
A180: If R1 is crossed then R2 becomes the next target with stop loss of at R1
A181: Similarly if price goes below pivot point then the trader should sell and keep a stop loss of pivot point and the first target would be S1
A182: If S1 is crossed then S2 becomes the next target with stop loss of at S1
A184: Disclaimer:
A185: This document has been prepared by the Retail Research Desk of Asit C Mehta
A186: Investment Intermediates Ltd. and is meant for use of the recipient only
A187: and is not for circulation. This document is not to be reported or
A188: copied or made available to others. It should not be considered to be
A189: taken as an offer to sell or a solicitation to buy any security. The
A190: information contained herein is from sources believed reliable. We do
A191: not represent that it is accurate or complete and it should not be
A192: relied upon as such. We may from time to time have positions in and buy
A193: and sell securities referred to herein

Sheet Cash Intra
M5: Back to Main Page
A6: FOR INTRA DAY TRADING | K6: =Main!B10 -> 2019-11-05
A8: Sr.no | B8: Scrip | C8: CLOSE RATE | D8: Pivot Point | E8: Supports | H8: Resistances
C9: Point | E9: S1 | F9: S2 | G9: S3 | H9: R1 | I9: R2 | J9: R3 | K9: HIGH | L9: LOW | M9: Total Trade Quanity in Lakhs
A10: 1 | B10: Nifty 50 | C10: 11941.3 | D10: 11945.27 | E10: 11901.38 | F10: 11861.47 | G10: 11817.58 | H10: 11985.18 | I10: 12029.07 | J10: 12068.98 | K10: 11989.15 | L10: 11905.35
A11: 2 | B11: Nifty Bank | C11: 30333.1 | D11: 30389.13 | E11: 30171.22 | F11: 30009.33 | G11: 29791.42 | H11: 30551.02 | I11: 30768.93 | J11: 30930.82 | K11: 30607.05 | L11: 30227.25
A12: 3 | B12: Nifty CPSE | C12: 2067.4 | D12: 2064.53 | E12: 2055.87 | F12: 2044.33 | G12: 2035.67 | H12: 2076.07 | I12: 2084.73 | J12: 2096.27 | K12: 2073.2 | L12: 2053
A13: 4 | B13: Nifty Infra | C13: 3309.5 | D13: 3316.17 | E13: 3298.48 | F13: 3287.47 | G13: 3269.78 | H13: 3327.18 | I13: 3344.87 | J13: 3355.88 | K13: 3333.85 | L13: 3305.15
A14: 5 | B14: Nifty IT | C14: 15591.3 | D14: 15607.72 | E14: 15412.08 | F14: 15232.87 | G14: 15037.23 | H14: 15786.93 | I14: 15982.57 | J14: 16161.78 | K14: 15803.35 | L14: 15428.5
A15: 6 | B15: Nifty PSE | C15: 3437.6 | D15: 3440.57 | E15: 3424.93 | F15: 3412.27 | G15: 3396.63 | H15: 3453.23 | I15: 3468.87 | J15: 3481.53 | K15: 3456.2 | L15: 3427.9
A16: 7 | B16: Nifty Midcap 50 | C16: 4654.95 | D16: 4669.52 | E16: 4630.38 | F16: 4605.82 | G16: 4566.68 | H16: 4694.08 | I16: 4733.22 | J16: 4757.78 | K16: 4708.65 | L16: 4644.95
A17: 8 | B17: ACC | C17: 1564.65 | D17: 1565.78 | E17: 1541.07 | F17: 1517.48 | G17: 1492.77 | H17: 1589.37 | I17: 1614.08 | J17: 1637.67 | K17: 1590.5 | L17: 1542.2 | M17: 10.94603
A18: 9 | B18: AUBANK | C18: 686.8 | D18: 687.42 | E18: 682.38 | F18: 677.97 | G18: 672.93 | H18: 691.83 | I18: 696.87 | J18: 701.28 | K18: 692.45 | L18: 683 | M18: 3.28041
A19: 10 | B19: ADANIPORTS | C19: 391 | D19: 391.90 | E19: 388.85 | F19: 386.70 | G19: 383.65 | H19: 394.05 | I19: 397.10 | J19: 399.25 | K19: 394.95 | L19: 389.75 | M19: 31.46855
A20: 11 | B20: ADANIPOWER | C20: 71.6 | D20: 71.18 | E20: 68.57 | F20: 65.53 | G20: 62.92 | H20: 74.22 | I20: 76.83 | J20: 79.87 | K20: 73.8 | L20: 68.15 | M20: 326.91051
A21: 12 | B21: ABCAPITAL | C21: 83.35 | D21: 84.12 | E21: 82.03 | F21: 80.72 | G21: 78.63 | H21: 85.43 | I21: 87.52 | J21: 88.83 | K21: 86.2 | L21: 82.8 | M21: 28.29489
A22: 13 | B22: ABFRL | C22: 213.7 | D22: 212.90 | E22: 210.85 | F22: 208.00 | G22: 205.95 | H22: 215.75 | I22: 217.80 | J22: 220.65 | K22: 214.95 | L22: 210.05 | M22: 2.02328
A23: 14 | B23: AJANTPHARM | C23: 1004.5 | D23: 998.85 | E23: 909.05 | F23: 813.60 | G23: 723.80 | H23: 1094.30 | I23: 1184.10 | J23: 1279.55 | K23: 1088.65 | L23: 903.4 | M23: 3.85788
A24: 15 | B24: ALKEM | C24: 2015.95 | D24: 2012.03 | E24: 1999.07 | F24: 1982.18 | G24: 1969.22 | H24: 2028.92 | I24: 2041.88 | J24: 2058.77 | K24: 2025 | L24: 1995.15 | M24: 0.49039
A25: 16 | B25: ALBK | C25: 27.55 | D25: 27.55 | E25: 27.30 | F25: 27.05 | G25: 26.80 | H25: 27.80 | I25: 28.05 | J25: 28.30 | K25: 27.8 | L25: 27.3 | M25: 9.11223
A26: 17 | B26: AMARAJABAT | C26: 658.6 | D26: 670.35 | E26: 645.25 | F26: 631.90 | G26: 606.80 | H26: 683.70 | I26: 708.80 | J26: 722.15 | K26: 695.45 | L26: 657 | M26: 7.66588
A27: 18 | B27: AMBUJACEM | C27: 203.35 | D27: 204.07 | E27: 201.43 | F27: 199.52 | G27: 196.88 | H27: 205.98 | I27: 208.62 | J27: 210.53 | K27: 206.7 | L27: 202.15 | M27: 42.43318
A28: 19 | B28: APOLLOHOSP | C28: 1414.75 | D28: 1432.25 | E28: 1393.50 | F28: 1372.25 | G28: 1333.50 | H28: 1453.50 | I28: 1492.25 | J28: 1513.50 | K28: 1471 | L28: 1411 | M28: 5.19503
A29: 20 | B29: APOLLOTYRE | C29: 185.55 | D29: 187.00 | E29: 183.35 | F29: 181.15 | G29: 177.50 | H29: 189.20 | I29: 192.85 | J29: 195.05 | K29: 190.65 | L29: 184.8 | M29: 21.25782
A30: 21 | B30: ASHOKLEY | C30: 75.2 | D30: 75.30 | E30: 73.90 | F30: 72.60 | G30: 71.20 | H30: 76.60 | I30: 78.00 | J30: 79.30 | K30: 76.7 | L30: 74 | M30: 198.55689
A31: 22 | B31: ASIANPAINT | C31: 1785.9 | D31: 1780.70 | E31: 1771.40 | F31: 1756.90 | G31: 1747.60 | H31: 1795.20 | I31: 1804.50 | J31: 1819.00 | K31: 1790 | L31: 1766.2 | M31: 8.21893
A32: 23 | B32: AUROPHARMA | C32: 477.65 | D32: 486.40 | E32: 465.30 | F32: 452.95 | G32: 431.85 | H32: 498.75 | I32: 519.85 | J32: 532.20 | K32: 507.5 | L32: 474.05 | M32: 72.80307
A33: 24 | B33: DMART | C33: 1956.65 | D33: 1963.85 | E33: 1932.80 | F33: 1908.95 | G33: 1877.90 | H33: 1987.70 | I33: 2018.75 | J33: 2042.60 | K33: 1994.9 | L33: 1940 | M33: 3.09293
A34: 25 | B34: AXISBANK | C34: 742.6 | D34: 744.37 | E34: 733.78 | F34: 724.97 | G34: 714.38 | H34: 753.18 | I34: 763.77 | J34: 772.58 | K34: 754.95 | L34: 735.55 | M34: 78.5137
A35: 26 | B35: BAJAJ-AUTO | C35: 3212.05 | D35: 3213.87 | E35: 3179.48 | F35: 3146.92 | G35: 3112.53 | H35: 3246.43 | I35: 3280.82 | J35: 3313.38 | K35: 3248.25 | L35: 3181.3 | M35: 3.30025
A36: 27 | B36: BAJFINANCE | C36: 4113 | D36: 4122.22 | E36: 4066.93 | F36: 4020.87 | G36: 3965.58 | H36: 4168.28 | I36: 4223.57 | J36: 4269.63 | K36: 4177.5 | L36: 4076.15 | M36: 18.63158
A37: 28 | B37: BAJAJFINSV | C37: 8706.6 | D37: 8635.62 | E37: 8521.23 | F37: 8335.87 | G37: 8221.48 | H37: 8820.98 | I37: 8935.37 | J37: 9120.73 | K37: 8750 | L37: 8450.25 | M37: 5.52812
A38: 29 | B38: BAJAJHLDNG | C38: 3708.95 | D38: 3730.65 | E38: 3655.30 | F38: 3601.65 | G38: 3526.30 | H38: 3784.30 | I38: 3859.65 | J38: 3913.30 | K38: 3806 | L38: 3677 | M38: 0.43348
A39: 30 | B39: BALKRISIND | C39: 866.15 | D39: 870.37 | E39: 857.73 | F39: 849.32 | G39: 836.68 | H39: 878.78 | I39: 891.42 | J39: 899.83 | K39: 883 | L39: 861.95 | M39: 2.07352
A40: 31 | B40: BANDHANBNK | C40: 590 | D40: 593.15 | E40: 581.00 | F40: 572.00 | G40: 559.85 | H40: 602.15 | I40: 614.30 | J40: 623.30 | K40: 605.3 | L40: 584.15 | M40: 7.55659
A41: 32 | B41: BANKBARODA | C41: 101.95 | D41: 102.02 | E41: 100.28 | F41: 98.62 | G41: 96.88 | H41: 103.68 | I41: 105.42 | J41: 107.08 | K41: 103.75 | L41: 100.35 | M41: 330.14625
A42: 33 | B42: BANKINDIA | C42: 71.35 | D42: 71.83 | E42: 70.52 | F42: 69.68 | G42: 68.37 | H42: 72.67 | I42: 73.98 | J42: 74.82 | K42: 73.15 | L42: 71 | M42: 134.45702
A43: 34 | B43: BATAINDIA | C43: 1731.15 | D43: 1735.12 | E43: 1711.23 | F43: 1691.32 | G43: 1667.43 | H43: 1755.03 | I43: 1778.92 | J43: 1798.83 | K43: 1759 | L43: 1715.2 | M43: 5.74339
A44: 35 | B44: BERGEPAINT | C44: 503.35 | D44: 504.62 | E44: 495.78 | F44: 488.22 | G44: 479.38 | H44: 512.18 | I44: 521.02 | J44: 528.58 | K44: 513.45 | L44: 497.05 | M44: 16.70083
A45: 36 | B45: BEL | C45: 119.5 | D45: 120.22 | E45: 118.33 | F45: 117.17 | G45: 115.28 | H45: 121.38 | I45: 123.27 | J45: 124.43 | K45: 122.1 | L45: 119.05 | M45: 108.8666
A46: 37 | B46: BHARATFORG | C46: 461.5 | D46: 461.03 | E46: 454.67 | F46: 447.83 | G46: 441.47 | H46: 467.87 | I46: 474.23 | J46: 481.07 | K46: 467.4 | L46: 454.2 | M46: 12.77869
A47: 38 | B47: BHEL | C47: 56.4 | D47: 56.62 | E47: 55.33 | F47: 54.27 | G47: 52.98 | H47: 57.68 | I47: 58.97 | J47: 60.03 | K47: 57.9 | L47: 55.55 | M47: 208.59205
A48: 39 | B48: BPCL | C48: 522.2 | D48: 521.32 | E48: 515.18 | F48: 508.17 | G48: 502.03 | H48: 528.33 | I48: 534.47 | J48: 541.48 | K48: 527.45 | L48: 514.3 | M48: 46.81345
A49: 40 | B49: BHARTIARTL | C49: 378 | D49: 377.90 | E49: 374.10 | F49: 370.20 | G49: 366.40 | H49: 381.80 | I49: 385.60 | J49: 389.50 | K49: 381.7 | L49: 374 | M49: 76.20719
A50: 41 | B50: INFRATEL | C50: 214.85 | D50: 213.30 | E50: 209.00 | F50: 203.15 | G50: 198.85 | H50: 219.15 | I50: 223.45 | J50: 229.30 | K50: 217.6 | L50: 207.45 | M50: 169.66469
A51: 42 | B51: BIOCON | C51: 263.6 | D51: 258.22 | E51: 251.43 | F51: 239.27 | G51: 232.48 | H51: 270.38 | I51: 277.17 | J51: 289.33 | K51: 265 | L51: 246.05 | M51: 75.79244
A52: 43 | B52: BBTC | C52: 1218.5 | D52: 1223.60 | E52: 1197.60 | F52: 1176.70 | G52: 1150.70 | H52: 1244.50 | I52: 1270.50 | J52: 1291.40 | K52: 1249.6 | L52: 1202.7 | M52: 1.75743
A53: 44 | B53: BOSCHLTD | C53: 15759.45 | D53: 15683.48 | E53: 15517.97 | F53: 15276.48 | G53: 15110.97 | H53: 15924.97 | I53: 16090.48 | J53: 16331.97 | K53: 15849 | L53: 15442 | M53: 0.23444
A54: 45 | B54: BRITANNIA | C54: 3239.85 | D54: 3255.28 | E54: 3211.57 | F54: 3183.28 | G54: 3139.57 | H54: 3283.57 | I54: 3327.28 | J54: 3355.57 | K54: 3299 | L54: 3227 | M54: 2.83144
A55: 46 | B55: CESC | C55: 825.7 | D55: 820.27 | E55: 805.88 | F55: 786.07 | G55: 771.68 | H55: 840.08 | I55: 854.47 | J55: 874.28 | K55: 834.65 | L55: 800.45 | M55: 7.18321
A56: 47 | B56: CADILAHC | C56: 241.65 | D56: 245.35 | E56: 229.80 | F56: 217.95 | G56: 202.40 | H56: 257.20 | I56: 272.75 | J56: 284.60 | K56: 260.9 | L56: 233.5 | M56: 52.31174
A57: 48 | B57: CANBK | C57: 207.85 | D57: 208.70 | E57: 205.80 | F57: 203.75 | G57: 200.85 | H57: 210.75 | I57: 213.65 | J57: 215.70 | K57: 211.6 | L57: 206.65 | M57: 63.48189
A58: 49 | B58: CASTROLIND | C58: 150.55 | D58: 152.63 | E58: 147.82 | F58: 145.08 | G58: 140.27 | H58: 155.37 | I58: 160.18 | J58: 162.92 | K58: 157.45 | L58: 149.9 | M58: 32.25877
A59: 50 | B59: CHOLAFIN | C59: 316 | D59: 317.88 | E59: 310.77 | F59: 305.53 | G59: 298.42 | H59: 323.12 | I59: 330.23 | J59: 335.47 | K59: 325 | L59: 312.65 | M59: 42.81408
A60: 51 | B60: CIPLA | C60: 468.3 | D60: 471.28 | E60: 464.07 | F60: 459.83 | G60: 452.62 | H60: 475.52 | I60: 482.73 | J60: 486.97 | K60: 478.5 | L60: 467.05 | M60: 23.93325
A61: 52 | B61: CUB | C61: 212.2 | D61: 212.47 | E61: 210.08 | F61: 207.97 | G61: 205.58 | H61: 214.58 | I61: 216.97 | J61: 219.08 | K61: 214.85 | L61: 210.35 | M61: 5.80093
A62: 53 | B62: COALINDIA | C62: 215 | D62: 212.13 | E62: 208.67 | F62: 202.33 | G62: 198.87 | H62: 218.47 | I62: 221.93 | J62: 228.27 | K62: 215.6 | L62: 205.8 | M62: 84.89492
A63: 54 | B63: COLPAL | C63: 1552.45 | D63: 1545.13 | E63: 1535.32 | F63: 1518.18 | G63: 1508.37 | H63: 1562.27 | I63: 1572.08 | J63: 1589.22 | K63: 1554.95 | L63: 1528 | M63: 4.50746
A64: 55 | B64: CONCOR | C64: 578.7 | D64: 582.32 | E64: 573.43 | F64: 568.17 | G64: 559.28 | H64: 587.58 | I64: 596.47 | J64: 601.73 | K64: 591.2 | L64: 577.05 | M64: 15.82095
A65: 56 | B65: COROMANDEL | C65: 466.15 | D65: 469.25 | E65: 453.00 | F65: 439.85 | G65: 423.60 | H65: 482.40 | I65: 498.65 | J65: 511.80 | K65: 485.5 | L65: 456.1 | M65: 3.31155
A66: 57 | B66: CROMPTON | C66: 254.95 | D66: 255.60 | E66: 253.20 | F66: 251.45 | G66: 249.05 | H66: 257.35 | I66: 259.75 | J66: 261.50 | K66: 258 | L66: 253.85 | M66: 7.37983
A67: 58 | B67: CUMMINSIND | C67: 546.6 | D67: 549.48 | E67: 540.17 | F67: 533.73 | G67: 524.42 | H67: 555.92 | I67: 565.23 | J67: 571.67 | K67: 558.8 | L67: 543.05 | M67: 4.60153
A68: 59 | B68: DLF | C68: 184.3 | D68: 185.00 | E68: 181.60 | F68: 178.90 | G68: 175.50 | H68: 187.70 | I68: 191.10 | J68: 193.80 | K68: 188.4 | L68: 182.3 | M68: 64.16447
A69: 60 | B69: DABUR | C69: 460.4 | D69: 462.12 | E69: 456.28 | F69: 452.17 | G69: 446.33 | H69: 466.23 | I69: 472.07 | J69: 476.18 | K69: 467.95 | L69: 458 | M69: 16.79706
A70: 61 | B70: DALBHARAT | C70: 812.75 | D70: 821.25 | E70: 798.50 | F70: 784.25 | G70: 761.50 | H70: 835.50 | I70: 858.25 | J70: 872.50 | K70: 844 | L70: 807 | M70: 1.00817
A71: 62 | B71: DIVISLAB | C71: 1735.15 | D71: 1735.53 | E71: 1716.07 | F71: 1696.98 | G71: 1677.52 | H71: 1754.62 | I71: 1774.08 | J71: 1793.17 | K71: 1755 | L71: 1716.45 | M71: 5.15116
A72: 63 | B72: DRREDDY | C72: 2797.8 | D72: 2785.45 | E72: 2760.90 | F72: 2724.00 | G72: 2699.45 | H72: 2822.35 | I72: 2846.90 | J72: 2883.80 | K72: 2810 | L72: 2748.55 | M72: 8.08849
A73: 64 | B73: EDELWEISS | C73: 94.4 | D73: 94.95 | E73: 93.00 | F73: 91.60 | G73: 89.65 | H73: 96.35 | I73: 98.30 | J73: 99.70 | K73: 96.9 | L73: 93.55 | M73: 19.40044
A74: 65 | B74: EICHERMOT | C74: 21740.7 | D74: 21860.23 | E74: 21440.47 | F74: 21140.23 | G74: 20720.47 | H74: 22160.47 | I74: 22580.23 | J74: 22880.47 | K74: 22280 | L74: 21560 | M74: 1.57014
A75: 66 | B75: EMAMILTD | C75: 329.55 | D75: 330.05 | E75: 324.60 | F75: 319.65 | G75: 314.20 | H75: 335.00 | I75: 340.45 | J75: 345.40 | K75: 335.5 | L75: 325.1 | M75: 2.31015
A76: 67 | B76: ENDURANCE | C76: 1111.15 | D76: 1098.92 | E76: 1077.83 | F76: 1044.52 | G76: 1023.43 | H76: 1132.23 | I76: 1153.32 | J76: 1186.63 | K76: 1120 | L76: 1065.6 | M76: 0.09047
A77: 68 | B77: ENGINERSIN | C77: 118.9 | D77: 120.10 | E77: 117.20 | F77: 115.50 | G77: 112.60 | H77: 121.80 | I77: 124.70 | J77: 126.40 | K77: 123 | L77: 118.4 | M77: 12.97534
A78: 69 | B78: ESCORTS | C78: 648.6 | D78: 648.37 | E78: 638.98 | F78: 629.37 | G78: 619.98 | H78: 657.98 | I78: 667.37 | J78: 676.98 | K78: 657.75 | L78: 638.75 | M78: 24.81003
A79: 70 | B79: EXIDEIND | C79: 187.5 | D79: 190.17 | E79: 183.33 | F79: 179.17 | G79: 172.33 | H79: 194.33 | I79: 201.17 | J79: 205.33 | K79: 197 | L79: 186 | M79: 27.73646
A80: 71 | B80: FEDERALBNK | C80: 88.4 | D80: 88.05 | E80: 86.85 | F80: 85.30 | G80: 84.10 | H80: 89.60 | I80: 90.80 | J80: 92.35 | K80: 89.25 | L80: 86.5 | M80: 233.88136
A81: 72 | B81: FCONSUMER | C81: 26.55 | D81: 26.87 | E81: 25.93 | F81: 25.32 | G81: 24.38 | H81: 27.48 | I81: 28.42 | J81: 29.03 | K81: 27.8 | L81: 26.25 | M81: 11.95785
A82: 73 | B82: FRETAIL | C82: 378.8 | D82: 379.27 | E82: 377.03 | F82: 375.27 | G82: 373.03 | H82: 381.03 | I82: 383.27 | J82: 385.03 | K82: 381.5 | L82: 377.5 | M82: 3.54326
A83: 74 | B83: GAIL | C83: 137.05 | D83: 137.70 | E83: 135.65 | F83: 134.25 | G83: 132.20 | H83: 139.10 | I83: 141.15 | J83: 142.55 | K83: 139.75 | L83: 136.3 | M83: 70.28979
A84: 75 | B84: GMRINFRA | C84: 20.85 | D84: 20.93 | E84: 20.67 | F84: 20.48 | G84: 20.22 | H84: 21.12 | I84: 21.38 | J84: 21.57 | K84: 21.2 | L84: 20.75 | M84: 99.70982
A85: 76 | B85: GICRE | C85: 293 | D85: 298.97 | E85: 286.03 | F85: 279.07 | G85: 266.13 | H85: 305.93 | I85: 318.87 | J85: 325.83 | K85: 311.9 | L85: 292 | M85: 4.99905
A86: 77 | B86: GLENMARK | C86: 316.15 | D86: 318.07 | E86: 313.18 | F86: 310.22 | G86: 305.33 | H86: 321.03 | I86: 325.92 | J86: 328.88 | K86: 322.95 | L86: 315.1 | M86: 8.12407
A87: 78 | B87: GODREJAGRO | C87: 519 | D87: 517.37 | E87: 512.78 | F87: 506.57 | G87: 501.98 | H87: 523.58 | I87: 528.17 | J87: 534.38 | K87: 521.95 | L87: 511.15 | M87: 0.64306
A88: 79 | B88: GODREJCP | C88: 721 | D88: 726.78 | E88: 712.72 | F88: 704.43 | G88: 690.37 | H88: 735.07 | I88: 749.13 | J88: 757.42 | K88: 740.85 | L88: 718.5 | M88: 8.63358
A89: 80 | B89: GODREJIND | C89: 424.35 | D89: 423.33 | E89: 418.17 | F89: 411.98 | G89: 406.82 | H89: 429.52 | I89: 434.68 | J89: 440.87 | K89: 428.5 | L89: 417.15 | M89: 1.05219
A90: 81 | B90: GODREJPROP | C90: 985.7 | D90: 989.90 | E90: 973.80 | F90: 961.90 | G90: 945.80 | H90: 1001.80 | I90: 1017.90 | J90: 1029.80 | K90: 1006 | L90: 978 | M90: 1.23475
A91: 82 | B91: GRAPHITE | C91: 299.3 | D91: 299.42 | E91: 287.93 | F91: 276.57 | G91: 265.08 | H91: 310.78 | I91: 322.27 | J91: 333.63 | K91: 310.9 | L91: 288.05 | M91: 38.54173
A92: 83 | B92: GRASIM | C92: 783.8 | D92: 786.57 | E92: 777.23 | F92: 770.67 | G92: 761.33 | H92: 793.13 | I92: 802.47 | J92: 809.03 | K92: 795.9 | L92: 780 | M92: 25.04708
A93: 84 | B93: GSPL | C93: 220.9 | D93: 218.80 | E93: 215.60 | F93: 210.30 | G93: 207.10 | H93: 224.10 | I93: 227.30 | J93: 232.60 | K93: 222 | L93: 213.5 | M93: 7.30354
A94: 85 | B94: HEG | C94: 1026.45 | D94: 1029.48 | E94: 992.97 | F94: 959.48 | G94: 922.97 | H94: 1062.97 | I94: 1099.48 | J94: 1132.97 | K94: 1066 | L94: 996 | M94: 9.64997
A95: 86 | B95: HCLTECH | C95: 1155.9 | D95: 1158.08 | E95: 1149.87 | F95: 1143.83 | G95: 1135.62 | H95: 1164.12 | I95: 1172.33 | J95: 1178.37 | K95: 1166.3 | L95: 1152.05 | M95: 15.11084
A96: 87 | B96: HDFCAMC | C96: 2946.95 | D96: 2953.65 | E96: 2922.30 | F96: 2897.65 | G96: 2866.30 | H96: 2978.30 | I96: 3009.65 | J96: 3034.30 | K96: 2985 | L96: 2929 | M96: 2.30017
A97: 88 | B97: HDFCBANK | C97: 1236.85 | D97: 1238.63 | E97: 1227.27 | F97: 1217.68 | G97: 1206.32 | H97: 1248.22 | I97: 1259.58 | J97: 1269.17 | K97: 1250 | L97: 1229.05 | M97: 49.67588
A98: 89 | B98: HDFCLIFE | C98: 593.3 | D98: 599.13 | E98: 582.57 | F98: 571.83 | G98: 555.27 | H98: 609.87 | I98: 626.43 | J98: 637.17 | K98: 615.7 | L98: 588.4 | M98: 120.53809
A99: 90 | B99: HAVELLS | C99: 693.7 | D99: 692.17 | E99: 687.33 | F99: 680.97 | G99: 676.13 | H99: 698.53 | I99: 703.37 | J99: 709.73 | K99: 697 | L99: 685.8 | M99: 8.30617
A100: 91 | B100: HEROMOTOCO | C100: 2643.5 | D100: 2665.48 | E100: 2616.02 | F100: 2588.53 | G100: 2539.07 | H100: 2692.97 | I100: 2742.43 | J100: 2769.92 | K100: 2714.95 | L100: 2638 | M100: 7.60461
A101: 92 | B101: HEXAWARE | C101: 341.45 | D101: 342.12 | E101: 336.78 | F101: 332.12 | G101: 326.78 | H101: 346.78 | I101: 352.12 | J101: 356.78 | K101: 347.45 | L101: 337.45 | M101: 9.58211
A102: 93 | B102: HINDALCO | C102: 197.95 | D102: 199.18 | E102: 194.27 | F102: 190.58 | G102: 185.67 | H102: 202.87 | I102: 207.78 | J102: 211.47 | K102: 204.1 | L102: 195.5 | M102: 154.21372
A103: 94 | B103: HINDPETRO | C103: 319.1 | D103: 320.97 | E103: 316.23 | F103: 313.37 | G103: 308.63 | H103: 323.83 | I103: 328.57 | J103: 331.43 | K103: 325.7 | L103: 318.1 | M103: 29.7967
A104: 95 | B104: HINDUNILVR | C104: 2158.15 | D104: 2164.93 | E104: 2143.02 | F104: 2127.88 | G104: 2105.97 | H104: 2180.07 | I104: 2201.98 | J104: 2217.12 | K104: 2186.85 | L104: 2149.8 | M104: 15.23698
A105: 96 | B105: HINDZINC | C105: 210.5 | D105: 211.82 | E105: 207.68 | F105: 204.87 | G105: 200.73 | H105: 214.63 | I105: 218.77 | J105: 221.58 | K105: 215.95 | L105: 209 | M105: 22.58686
A106: 97 | B106: HUDCO | C106: 40.8 | D106: 40.92 | E106: 39.93 | F106: 39.07 | G106: 38.08 | H106: 41.78 | I106: 42.77 | J106: 43.63 | K106: 41.9 | L106: 40.05 | M106: 13.76628
A107: 98 | B107: HDFC | C107: 2181.3 | D107: 2165.80 | E107: 2136.60 | F107: 2091.90 | G107: 2062.70 | H107: 2210.50 | I107: 2239.70 | J107: 2284.40 | K107: 2195 | L107: 2121.1 | M107: 65.80464
A108: 99 | B108: ICICIBANK | C108: 470.5 | D108: 468.60 | E108: 464.90 | F108: 459.30 | G108: 455.60 | H108: 474.20 | I108: 477.90 | J108: 483.50 | K108: 472.3 | L108: 463 | M108: 162.54715
A109: 100 | B109: ICICIGI | C109: 1322.75 | D109: 1324.55 | E109: 1309.20 | F109: 1295.65 | G109: 1280.30 | H109: 1338.10 | I109: 1353.45 | J109: 1367.00 | K109: 1339.9 | L109: 1311 | M109: 3.55312
A110: 101 | B110: ICICIPRULI | C110: 510.65 | D110: 510.28 | E110: 506.57 | F110: 502.48 | G110: 498.77 | H110: 514.37 | I110: 518.08 | J110: 522.17 | K110: 514 | L110: 506.2 | M110: 15.07498
A111: 102 | B111: IDBI | C111: 34.95 | D111: 34.93 | E111: 34.02 | F111: 33.08 | G111: 32.17 | H111: 35.87 | I111: 36.78 | J111: 37.72 | K111: 35.85 | L111: 34 | M111: 23.43316
A112: 103 | B112: IDFCFIRSTB | C112: 43.7 | D112: 44.10 | E112: 43.10 | F112: 42.50 | G112: 41.50 | H112: 44.70 | I112: 45.70 | J112: 46.30 | K112: 45.1 | L112: 43.5 | M112: 186.78288
A113: 104 | B113: ITC | C113: 260.75 | D113: 261.92 | E113: 258.88 | F113: 257.02 | G113: 253.98 | H113: 263.78 | I113: 266.82 | J113: 268.68 | K113: 264.95 | L113: 260.05 | M113: 78.95272
A114: 105 | B114: IBULHSGFIN | C114: 218.8 | D114: 220.70 | E114: 212.60 | F114: 206.40 | G114: 198.30 | H114: 226.90 | I114: 235.00 | J114: 241.20 | K114: 228.8 | L114: 214.5 | M114: 427.77294
A115: 106 | B115: IBVENTURES | C115: 111.1 | D115: 111.10 | E115: 111.10 | F115: 111.10 | G115: 111.10 | H115: 111.10 | I115: 111.10 | J115: 111.10 | K115: 111.1 | L115: 111.1 | M115: 0.71796
A116: 107 | B116: INDIANB | C116: 135 | D116: 135.82 | E116: 131.98 | F116: 128.97 | G116: 125.13 | H116: 138.83 | I116: 142.67 | J116: 145.68 | K116: 139.65 | L116: 132.8 | M116: 24.08647
A117: 108 | B117: INDHOTEL | C117: 152.55 | D117: 152.33 | E117: 151.02 | F117: 149.48 | G117: 148.17 | H117: 153.87 | I117: 155.18 | J117: 156.72 | K117: 153.65 | L117: 150.8 | M117: 15.14268
A118: 109 | B118: IOC | C118: 138.7 | D118: 139.83 | E118: 136.97 | F118: 135.23 | G118: 132.37 | H118: 141.57 | I118: 144.43 | J118: 146.17 | K118: 142.7 | L118: 138.1 | M118: 115.49826
A119: 110 | B119: IGL | C119: 391.55 | D119: 391.70 | E119: 388.50 | F119: 385.45 | G119: 382.25 | H119: 394.75 | I119: 397.95 | J119: 401.00 | K119: 394.9 | L119: 388.65 | M119: 8.31441
A120: 111 | B120: INDUSINDBK | C120: 1352.3 | D120: 1365.40 | E120: 1336.90 | F120: 1321.50 | G120: 1293.00 | H120: 1380.80 | I120: 1409.30 | J120: 1424.70 | K120: 1393.9 | L120: 1350 | M120: 36.41707
A121: 112 | B121: NAUKRI | C121: 2527.4 | D121: 2552.28 | E121: 2486.77 | F121: 2446.13 | G121: 2380.62 | H121: 2592.92 | I121: 2658.43 | J121: 2699.07 | K121: 2617.8 | L121: 2511.65 | M121: 1.88911
A122: 113 | B122: INFY | C122: 709 | D122: 706.55 | E122: 680.60 | F122: 652.20 | G122: 626.25 | H122: 734.95 | I122: 760.90 | J122: 789.30 | K122: 732.5 | L122: 678.15 | M122: 293.81982
A123: 114 | B123: INDIGO | C123: 1436.4 | D123: 1439.22 | E123: 1418.78 | F123: 1401.17 | G123: 1380.73 | H123: 1456.83 | I123: 1477.27 | J123: 1494.88 | K123: 1459.65 | L123: 1421.6 | M123: 16.38666
A124: 115 | B124: IPCALAB | C124: 1005.4 | D124: 1015.18 | E124: 991.22 | F124: 977.03 | G124: 953.07 | H124: 1029.37 | I124: 1053.33 | J124: 1067.52 | K124: 1039.15 | L124: 1001 | M124: 1.82399
A125: 116 | B125: JSWENERGY | C125: 73.2 | D125: 74.18 | E125: 71.52 | F125: 69.83 | G125: 67.17 | H125: 75.87 | I125: 78.53 | J125: 80.22 | K125: 76.85 | L125: 72.5 | M125: 48.80455
A126: 117 | B126: JSWSTEEL | C126: 250.2 | D126: 247.92 | E126: 240.98 | F126: 231.77 | G126: 224.83 | H126: 257.13 | I126: 264.07 | J126: 273.28 | K126: 254.85 | L126: 238.7 | M126: 176.13567
A127: 118 | B127: JINDALSTEL | C127: 137.2 | D127: 134.58 | E127: 127.87 | F127: 118.53 | G127: 111.82 | H127: 143.92 | I127: 150.63 | J127: 159.97 | K127: 141.3 | L127: 125.25 | M127: 679.08658
A128: 119 | B128: JUBLFOOD | C128: 1563.6 | D128: 1570.50 | E128: 1548.00 | F128: 1532.40 | G128: 1509.90 | H128: 1586.10 | I128: 1608.60 | J128: 1624.20 | K128: 1593 | L128: 1554.9 | M128: 4.91399
A129: 120 | B129: JUBILANT | C129: 546.4 | D129: 547.52 | E129: 540.13 | F129: 533.87 | G129: 526.48 | H129: 553.78 | I129: 561.17 | J129: 567.43 | K129: 554.9 | L129: 541.25 | M129: 2.07896
A130: 121 | B130: KOTAKBANK | C130: 1571.05 | D130: 1577.62 | E130: 1558.43 | F130: 1545.82 | G130: 1526.63 | H130: 1590.23 | I130: 1609.42 | J130: 1622.03 | K130: 1596.8 | L130: 1565 | M130: 14.34393
A131: 122 | B131: L&TFH | C131: 96.75 | D131: 97.25 | E131: 95.40 | F131: 94.05 | G131: 92.20 | H131: 98.60 | I131: 100.45 | J131: 101.80 | K131: 99.1 | L131: 95.9 | M131: 80.14726
A132: 123 | B132: LTTS | C132: 1500.85 | D132: 1504.62 | E132: 1494.23 | F132: 1487.62 | G132: 1477.23 | H132: 1511.23 | I132: 1521.62 | J132: 1528.23 | K132: 1515 | L132: 1498 | M132: 0.98881
A133: 124 | B133: LICHSGFIN | C133: 420.9 | D133: 421.38 | E133: 412.97 | F133: 405.03 | G133: 396.62 | H133: 429.32 | I133: 437.73 | J133: 445.67 | K133: 429.8 | L133: 413.45 | M133: 23.78852
A134: 125 | B134: LTI | C134: 1659.3 | D134: 1671.43 | E134: 1638.87 | F134: 1618.43 | G134: 1585.87 | H134: 1691.87 | I134: 1724.43 | J134: 1744.87 | K134: 1704 | L134: 1651 | M134: 0.31372
A135: 126 | B135: LT | C135: 1452.2 | D135: 1456.73 | E135: 1445.47 | F135: 1438.73 | G135: 1427.47 | H135: 1463.47 | I135: 1474.73 | J135: 1481.47 | K135: 1468 | L135: 1450 | M135: 14.59894
A136: 127 | B136: LUPIN | C136: 759.95 | D136: 761.85 | E136: 754.10 | F136: 748.25 | G136: 740.50 | H136: 767.70 | I136: 775.45 | J136: 781.30 | K136: 769.6 | L136: 756 | M136: 7.3781
A137: 128 | B137: MRF | C137: 64440.35 | D137: 64783.43 | E137: 63856.92 | F137: 63273.48 | G137: 62346.97 | H137: 65366.87 | I137: 66293.38 | J137: 66876.82 | K137: 65709.95 | L137: 64200 | M137: 0.05008
A138: 129 | B138: MGL | C138: 977.7 | D138: 989.00 | E138: 962.00 | F138: 946.30 | G138: 919.30 | H138: 1004.70 | I138: 1031.70 | J138: 1047.40 | K138: 1016 | L138: 973.3 | M138: 3.29696
A139: 130 | B139: M&MFIN | C139: 359.7 | D139: 361.10 | E139: 354.85 | F139: 350.00 | G139: 343.75 | H139: 365.95 | I139: 372.20 | J139: 377.05 | K139: 367.35 | L139: 356.25 | M139: 17.37324
A140: 131 | B140: M&M | C140: 586.4 | D140: 587.62 | E140: 580.68 | F140: 574.97 | G140: 568.03 | H140: 593.33 | I140: 600.27 | J140: 605.98 | K140: 594.55 | L140: 581.9 | M140: 31.28961
A141: 132 | B141: MANAPPURAM | C141: 171.1 | D141: 171.87 | E141: 169.93 | F141: 168.77 | G141: 166.83 | H141: 173.03 | I141: 174.97 | J141: 176.13 | K141: 173.8 | L141: 170.7 | M141: 30.12633
A142: 133 | B142: MRPL | C142: 52.6 | D142: 52.98 | E142: 51.72 | F142: 50.83 | G142: 49.57 | H142: 53.87 | I142: 55.13 | J142: 56.02 | K142: 54.25 | L142: 52.1 | M142: 4.50248
A143: 134 | B143: MARICO | C143: 365.6 | D143: 366.87 | E143: 362.28 | F143: 358.97 | G143: 354.38 | H143: 370.18 | I143: 374.77 | J143: 378.08 | K143: 371.45 | L143: 363.55 | M143: 16.41703
A144: 135 | B144: MARUTI | C144: 7424 | D144: 7485.48 | E144: 7345.97 | F144: 7267.93 | G144: 7128.42 | H144: 7563.52 | I144: 7703.03 | J144: 7781.07 | K144: 7625 | L144: 7407.45 | M144: 8.24953
A145: 136 | B145: MFSL | C145: 431.95 | D145: 426.78 | E145: 409.67 | F145: 387.38 | G145: 370.27 | H145: 449.07 | I145: 466.18 | J145: 488.47 | K145: 443.9 | L145: 404.5 | M145: 24.3972
A146: 137 | B146: MINDTREE | C146: 714.35 | D146: 718.72 | E146: 708.43 | F146: 702.52 | G146: 692.23 | H146: 724.63 | I146: 734.92 | J146: 740.83 | K146: 729 | L146: 712.8 | M146: 3.20031
A147: 138 | B147: MOTHERSUMI | C147: 125.6 | D147: 125.18 | E147: 122.67 | F147: 119.73 | G147: 117.22 | H147: 128.12 | I147: 130.63 | J147: 133.57 | K147: 127.7 | L147: 122.25 | M147: 87.55206
A148: 139 | B148: MPHASIS | C148: 938.95 | D148: 943.05 | E148: 931.35 | F148: 923.75 | G148: 912.05 | H148: 950.65 | I148: 962.35 | J148: 969.95 | K148: 954.75 | L148: 935.45 | M148: 0.74942
A149: 140 | B149: MUTHOOTFIN | C149: 706.4 | D149: 708.48 | E149: 702.72 | F149: 699.03 | G149: 693.27 | H149: 712.17 | I149: 717.93 | J149: 721.62 | K149: 714.25 | L149: 704.8 | M149: 3.11815
A150: 141 | B150: NATCOPHARM | C150: 589.9 | D150: 591.67 | E150: 582.33 | F150: 574.77 | G150: 565.43 | H150: 599.23 | I150: 608.57 | J150: 616.13 | K150: 601 | L150: 584.1 | M150: 1.33548
A151: 142 | B151: NBCC | C151: 38.55 | D151: 38.62 | E151: 37.53 | F151: 36.52 | G151: 35.43 | H151: 39.63 | I151: 40.72 | J151: 41.73 | K151: 39.7 | L151: 37.6 | M151: 208.22057
A152: 143 | B152: NHPC | C152: 23.7 | D152: 23.67 | E152: 23.43 | F152: 23.17 | G152: 22.93 | H152: 23.93 | I152: 24.17 | J152: 24.43 | K152: 23.9 | L152: 23.4 | M152: 24.22658
A153: 144 | B153: NMDC | C153: 110 | D153: 110.70 | E153: 108.90 | F153: 107.80 | G153: 106.00 | H153: 111.80 | I153: 113.60 | J153: 114.70 | K153: 112.5 | L153: 109.6 | M153: 43.13
A154: 145 | B154: NTPC | C154: 120.55 | D154: 121.02 | E154: 119.43 | F154: 118.32 | G154: 116.73 | H154: 122.13 | I154: 123.72 | J154: 124.83 | K154: 122.6 | L154: 119.9 | M154: 78.94331
A155: 146 | B155: NATIONALUM | C155: 46.8 | D155: 46.90 | E155: 46.05 | F155: 45.30 | G155: 44.45 | H155: 47.65 | I155: 48.50 | J155: 49.25 | K155: 47.75 | L155: 46.15 | M155: 112.02833
A156: 147 | B156: NESTLEIND | C156: 14813.35 | D156: 14902.05 | E156: 14712.40 | F156: 14611.45 | G156: 14421.80 | H156: 15003.00 | I156: 15192.65 | J156: 15293.60 | K156: 15091.7 | L156: 14801.1 | M156: 0.39581
A157: 148 | B157: OBEROIRLTY | C157: 500.55 | D157: 505.82 | E157: 492.73 | F157: 484.92 | G157: 471.83 | H157: 513.63 | I157: 526.72 | J157: 534.53 | K157: 518.9 | L157: 498 | M157: 3.42559
A158: 149 | B158: ONGC | C158: 147.4 | D158: 147.07 | E158: 144.48 | F158: 141.57 | G158: 138.98 | H158: 149.98 | I158: 152.57 | J158: 155.48 | K158: 149.65 | L158: 144.15 | M158: 117.33406
A159: 150 | B159: OIL | C159: 171.4 | D159: 170.80 | E159: 168.65 | F159: 165.90 | G159: 163.75 | H159: 173.55 | I159: 175.70 | J159: 178.45 | K159: 172.95 | L159: 168.05 | M159: 7.60506
A160: 151 | B160: OFSS | C160: 3130.7 | D160: 3156.22 | E160: 3078.48 | F160: 3026.27 | G160: 2948.53 | H160: 3208.43 | I160: 3286.17 | J160: 3338.38 | K160: 3233.95 | L160: 3104 | M160: 0.21309
A161: 152 | B161: ORIENTBANK | C161: 56 | D161: 56.13 | E161: 55.47 | F161: 54.93 | G161: 54.27 | H161: 56.67 | I161: 57.33 | J161: 57.87 | K161: 56.8 | L161: 55.6 | M161: 8.22029
A162: 153 | B162: PIIND | C162: 1387.45 | D162: 1366.10 | E162: 1326.90 | F162: 1266.35 | G162: 1227.15 | H162: 1426.65 | I162: 1465.85 | J162: 1526.40 | K162: 1405.3 | L162: 1305.55 | M162: 0.69046
A163: 154 | B163: PNBHOUSING | C163: 563.2 | D163: 558.23 | E163: 541.77 | F163: 520.33 | G163: 503.87 | H163: 579.67 | I163: 596.13 | J163: 617.57 | K163: 574.7 | L163: 536.8 | M163: 15.21261
A164: 155 | B164: PAGEIND | C164: 24603.7 | D164: 24781.85 | E164: 24231.85 | F164: 23860.00 | G164: 23310.00 | H164: 25153.70 | I164: 25703.70 | J164: 26075.55 | K164: 25331.85 | L164: 24410 | M164: 0.19687
A165: 156 | B165: PETRONET | C165: 285.2 | D165: 285.95 | E165: 282.90 | F165: 280.60 | G165: 277.55 | H165: 288.25 | I165: 291.30 | J165: 293.60 | K165: 289 | L165: 283.65 | M165: 22.81184
A166: 157 | B166: PFIZER | C166: 4074.05 | D166: 4071.68 | E166: 4002.37 | F166: 3930.68 | G166: 3861.37 | H166: 4143.37 | I166: 4212.68 | J166: 4284.37 | K166: 4141 | L166: 4000 | M166: 0.47537
A167: 158 | B167: PIDILITIND | C167: 1399.45 | D167: 1397.48 | E167: 1386.97 | F167: 1374.48 | G167: 1363.97 | H167: 1409.97 | I167: 1420.48 | J167: 1432.97 | K167: 1408 | L167: 1385 | M167: 4.61969
A168: 159 | B168: PEL | C168: 1744.05 | D168: 1738.98 | E168: 1691.07 | F168: 1638.08 | G168: 1590.17 | H168: 1791.97 | I168: 1839.88 | J168: 1892.87 | K168: 1786.9 | L168: 1686 | M168: 20.27463
A169: 160 | B169: PFC | C169: 112.4 | D169: 112.62 | E169: 111.28 | F169: 110.17 | G169: 108.83 | H169: 113.73 | I169: 115.07 | J169: 116.18 | K169: 113.95 | L169: 111.5 | M169: 61.45866
A170: 161 | B170: POWERGRID | C170: 194.75 | D170: 195.82 | E170: 192.98 | F170: 191.22 | G170: 188.38 | H170: 197.58 | I170: 200.42 | J170: 202.18 | K170: 198.65 | L170: 194.05 | M170: 85.36355
A171: 162 | B171: PRESTIGE | C171: 303.55 | D171: 304.27 | E171: 298.63 | F171: 293.72 | G171: 288.08 | H171: 309.18 | I171: 314.82 | J171: 319.73 | K171: 309.9 | L171: 299.35 | M171: 1.14512
A172: 163 | B172: PGHH | C172: 12138.85 | D172: 12151.57 | E172: 12003.13 | F172: 11867.42 | G172: 11718.98 | H172: 12287.28 | I172: 12435.72 | J172: 12571.43 | K172: 12300 | L172: 12015.85 | M172: 0.03155
A173: 164 | B173: PNB | C173: 68.2 | D173: 68.38 | E173: 67.12 | F173: 66.03 | G173: 64.77 | H173: 69.47 | I173: 70.73 | J173: 71.82 | K173: 69.65 | L173: 67.3 | M173: 393.02621
A174: 165 | B174: QUESS | C174: 495.25 | D174: 499.93 | E174: 485.87 | F174: 476.48 | G174: 462.42 | H174: 509.32 | I174: 523.38 | J174: 532.77 | K174: 514 | L174: 490.55 | M174: 2.06828
A175: 166 | B175: RBLBANK | C175: 309.65 | D175: 308.88 | E175: 300.77 | F175: 291.88 | G175: 283.77 | H175: 317.77 | I175: 325.88 | J175: 334.77 | K175: 317 | L175: 300 | M175: 119.52222
A176: 167 | B176: RECLTD | C176: 140.9 | D176: 141.07 | E176: 139.18 | F176: 137.47 | G176: 135.58 | H176: 142.78 | I176: 144.67 | J176: 146.38 | K176: 142.95 | L176: 139.35 | M176: 35.54863
A177: 168 | B177: RAJESHEXPO | C177: 675.05 | D177: 677.08 | E177: 672.52 | F177: 669.98 | G177: 665.42 | H177: 679.62 | I177: 684.18 | J177: 686.72 | K177: 681.65 | L177: 674.55 | M177: 3.25195
A178: 169 | B178: RELIANCE | C178: 1457.65 | D178: 1457.92 | E178: 1444.83 | F178: 1432.02 | G178: 1418.93 | H178: 1470.73 | I178: 1483.82 | J178: 1496.63 | K178: 1471 | L178: 1445.1 | M178: 64.29329
A179: 170 | B179: RNAM | C179: 345.7 | D179: 351.27 | E179: 337.53 | F179: 329.37 | G179: 315.63 | H179: 359.43 | I179: 373.17 | J179: 381.33 | K179: 365 | L179: 343.1 | M179: 22.60903
A180: 171 | B180: SBILIFE | C180: 998.7 | D180: 997.17 | E180: 991.23 | F180: 983.77 | G180: 977.83 | H180: 1004.63 | I180: 1010.57 | J180: 1018.03 | K180: 1003.1 | L180: 989.7 | M180: 8.75743
A181: 172 | B181: SRF | C181: 2929.9 | D181: 2925.23 | E181: 2875.47 | F181: 2821.03 | G181: 2771.27 | H181: 2979.67 | I181: 3029.43 | J181: 3083.87 | K181: 2975 | L181: 2870.8 | M181: 6.13224
A182: 173 | B182: SHREECEM | C182: 20106.45 | D182: 20119.70 | E182: 19899.40 | F182: 19692.35 | G182: 19472.05 | H182: 20326.75 | I182: 20547.05 | J182: 20754.10 | K182: 20340 | L182: 19912.65 | M182: 0.31973
A183: 174 | B183: SRTRANSFIN | C183: 1139.15 | D183: 1141.78 | E183: 1130.37 | F183: 1121.58 | G183: 1110.17 | H183: 1150.57 | I183: 1161.98 | J183: 1170.77 | K183: 1153.2 | L183: 1133 | M183: 5.95573
A184: 175 | B184: SIEMENS | C184: 1683.45 | D184: 1680.73 | E184: 1664.77 | F184: 1646.08 | G184: 1630.12 | H184: 1699.42 | I184: 1715.38 | J184: 1734.07 | K184: 1696.7 | L184: 1662.05 | M184: 5.25063
A185: 176 | B185: SBIN | C185: 314.3 | D185: 315.22 | E185: 311.43 | F185: 308.57 | G185: 304.78 | H185: 318.08 | I185: 321.87 | J185: 324.73 | K185: 319 | L185: 312.35 | M185: 315.35656
A186: 177 | B186: SAIL | C186: 40.3 | D186: 40.33 | E186: 39.47 | F186: 38.63 | G186: 37.77 | H186: 41.17 | I186: 42.03 | J186: 42.87 | K186: 41.2 | L186: 39.5 | M186: 458.20695
A187: 178 | B187: STRTECH | C187: 134.2 | D187: 134.52 | E187: 132.68 | F187: 131.17 | G187: 129.33 | H187: 136.03 | I187: 137.87 | J187: 139.38 | K187: 136.35 | L187: 133 | M187: 10.75517
A188: 179 | B188: SUNPHARMA | C188: 437.95 | D188: 438.00 | E188: 433.60 | F188: 429.25 | G188: 424.85 | H188: 442.35 | I188: 446.75 | J188: 451.10 | K188: 442.4 | L188: 433.65 | M188: 46.46694
A189: 180 | B189: SUNTV | C189: 522 | D189: 528.17 | E189: 512.33 | F189: 502.67 | G189: 486.83 | H189: 537.83 | I189: 553.67 | J189: 563.33 | K189: 544 | L189: 518.5 | M189: 14.35501
A190: 181 | B190: SYNGENE | C190: 330 | D190: 329.13 | E190: 326.27 | F190: 322.53 | G190: 319.67 | H190: 332.87 | I190: 335.73 | J190: 339.47 | K190: 332 | L190: 325.4 | M190: 0.76131
A191: 182 | B191: TVSMOTOR | C191: 455.65 | D191: 460.05 | E191: 448.40 | F191: 441.15 | G191: 429.50 | H191: 467.30 | I191: 478.95 | J191: 486.20 | K191: 471.7 | L191: 452.8 | M191: 16.46975
A192: 183 | B192: TATACHEM | C192: 635.85 | D192: 637.97 | E192: 632.03 | F192: 628.22 | G192: 622.28 | H192: 641.78 | I192: 647.72 | J192: 651.53 | K192: 643.9 | L192: 634.15 | M192: 6.95586
A193: 184 | B193: TCS | C193: 2193.95 | D193: 2201.35 | E193: 2173.50 | F193: 2153.05 | G193: 2125.20 | H193: 2221.80 | I193: 2249.65 | J193: 2270.10 | K193: 2229.2 | L193: 2180.9 | M193: 26.46411
A194: 185 | B194: TATAGLOBAL | C194: 306.6 | D194: 306.75 | E194: 301.25 | F194: 295.90 | G194: 290.40 | H194: 312.10 | I194: 317.60 | J194: 322.95 | K194: 312.25 | L194: 301.4 | M194: 58.79974
A195: 186 | B195: TATAMTRDVR | C195: 80.25 | D195: 80.75 | E195: 78.50 | F195: 76.75 | G195: 74.50 | H195: 82.50 | I195: 84.75 | J195: 86.50 | K195: 83 | L195: 79 | M195: 58.76282
A196: 187 | B196: TATAMOTORS | C196: 172.2 | D196: 173.83 | E196: 169.22 | F196: 166.23 | G196: 161.62 | H196: 176.82 | I196: 181.43 | J196: 184.42 | K196: 178.45 | L196: 170.85 | M196: 406.41411
A197: 188 | B197: TATAPOWER | C197: 59.7 | D197: 59.90 | E197: 59.00 | F197: 58.30 | G197: 57.40 | H197: 60.60 | I197: 61.50 | J197: 62.20 | K197: 60.8 | L197: 59.2 | M197: 96.48773
A198: 189 | B198: TATASTEEL | C198: 409.15 | D198: 411.28 | E198: 400.87 | F198: 392.58 | G198: 382.17 | H198: 419.57 | I198: 429.98 | J198: 438.27 | K198: 421.7 | L198: 403 | M198: 289.34434
A199: 190 | B199: TECHM | C199: 769.5 | D199: 766.85 | E199: 756.10 | F199: 742.70 | G199: 731.95 | H199: 780.25 | I199: 791.00 | J199: 804.40 | K199: 777.6 | L199: 753.45 | M199: 49.36914
A200: 191 | B200: NIACL | C200: 161.2 | D200: 163.48 | E200: 155.97 | F200: 150.73 | G200: 143.22 | H200: 168.72 | I200: 176.23 | J200: 181.47 | K200: 171 | L200: 158.25 | M200: 4.5581
A201: 192 | B201: RAMCOCEM | C201: 803.75 | D201: 809.43 | E201: 794.87 | F201: 785.98 | G201: 771.42 | H201: 818.32 | I201: 832.88 | J201: 841.77 | K201: 824 | L201: 800.55 | M201: 6.1918
A202: 193 | B202: TITAN | C202: 1298.8 | D202: 1297.30 | E202: 1283.60 | F202: 1268.40 | G202: 1254.70 | H202: 1312.50 | I202: 1326.20 | J202: 1341.40 | K202: 1311 | L202: 1282.1 | M202: 17.06003
A203: 194 | B203: TORNTPHARM | C203: 1810.7 | D203: 1814.35 | E203: 1795.20 | F203: 1779.70 | G203: 1760.55 | H203: 1829.85 | I203: 1849.00 | J203: 1864.50 | K203: 1833.5 | L203: 1798.85 | M203: 1.89016
A204: 195 | B204: TORNTPOWER | C204: 286.1 | D204: 286.33 | E204: 281.92 | F204: 277.73 | G204: 273.32 | H204: 290.52 | I204: 294.93 | J204: 299.12 | K204: 290.75 | L204: 282.15 | M204: 14.44896
A205: 196 | B205: UPL | C205: 594.25 | D205: 594.13 | E205: 587.32 | F205: 580.38 | G205: 573.57 | H205: 601.07 | I205: 607.88 | J205: 614.82 | K205: 600.95 | L205: 587.2 | M205: 19.12912
... 30 more rows

Sheet MidCap Intra
L5: Back To Main Page
A6: FOR INTRA DAY TRADING | K6: =Main!B10 -> 2019-11-05
A9: Sr.no | B9: Scrip | C9: CLOSE RATE | D9: Pivot Point | E9: Supports | H9: Resistances
C10: Point | E10: S1 | F10: S2 | G10: S3 | H10: R1 | I10: R2 | J10: R3 | K10: HIGH | L10: LOW | M10: Total Trade Quanity in Lakhs
A11: 1 | B11: 3MINDIA | C11: 22314.85 | D11: 22288.95 | E11: 22027.90 | F11: 21740.95 | G11: 21479.90 | H11: 22575.90 | I11: 22836.95 | J11: 23123.90 | K11: 22550 | L11: 22002 | M11: 0.01559
A12: 2 | B12: ACC | C12: 1564.65 | D12: 1565.78 | E12: 1541.07 | F12: 1517.48 | G12: 1492.77 | H12: 1589.37 | I12: 1614.08 | J12: 1637.67 | K12: 1590.5 | L12: 1542.2 | M12: 10.94603
A13: 3 | B13: AIAENG | C13: 1677.4 | D13: 1681.45 | E13: 1656.95 | F13: 1636.50 | G13: 1612.00 | H13: 1701.90 | I13: 1726.40 | J13: 1746.85 | K13: 1705.95 | L13: 1661 | M13: 0.05411
A14: 4 | B14: APLAPOLLO | C14: 1505.55 | D14: 1496.08 | E14: 1474.97 | F14: 1444.38 | G14: 1423.27 | H14: 1526.67 | I14: 1547.78 | J14: 1578.37 | K14: 1517.2 | L14: 1465.5 | M14: 0.16414
A15: 5 | B15: AUBANK | C15: 686.8 | D15: 687.42 | E15: 682.38 | F15: 677.97 | G15: 672.93 | H15: 691.83 | I15: 696.87 | J15: 701.28 | K15: 692.45 | L15: 683 | M15: 3.28041
A16: 6 | B16: AAVAS | C16: 1532.55 | D16: 1555.88 | E16: 1501.77 | F16: 1470.98 | G16: 1416.87 | H16: 1586.67 | I16: 1640.78 | J16: 1671.57 | K16: 1610 | L16: 1525.1 | M16: 0.24641
A17: 7 | B17: ABBOTINDIA | C17: 11987.25 | D17: 12052.42 | E17: 11704.83 | F17: 11422.42 | G17: 11074.83 | H17: 12334.83 | I17: 12682.42 | J17: 12964.83 | K17: 12400 | L17: 11770 | M17: 0.12263
A18: 8 | B18: ADANIGAS | C18: 147.9 | D18: 147.80 | E18: 146.70 | F18: 145.50 | G18: 144.40 | H18: 149.00 | I18: 150.10 | J18: 151.30 | K18: 148.9 | L18: 146.6 | M18: 8.06625
A19: 9 | B19: ADANIGREEN | C19: 92.65 | D19: 92.70 | E19: 89.55 | F19: 86.45 | G19: 83.30 | H19: 95.80 | I19: 98.95 | J19: 102.05 | K19: 95.85 | L19: 89.6 | M19: 32.84998
A20: 10 | B20: ADANIPORTS | C20: 391 | D20: 391.90 | E20: 388.85 | F20: 386.70 | G20: 383.65 | H20: 394.05 | I20: 397.10 | J20: 399.25 | K20: 394.95 | L20: 389.75 | M20: 31.46855
A21: 11 | B21: ADANIPOWER | C21: 71.6 | D21: 71.18 | E21: 68.57 | F21: 65.53 | G21: 62.92 | H21: 74.22 | I21: 76.83 | J21: 79.87 | K21: 73.8 | L21: 68.15 | M21: 326.91051
A22: 12 | B22: ADANITRANS | C22: 284.5 | D22: 283.03 | E22: 279.32 | F22: 274.13 | G22: 270.42 | H22: 288.22 | I22: 291.93 | J22: 297.12 | K22: 286.75 | L22: 277.85 | M22: 4.05314
A23: 13 | B23: ABCAPITAL | C23: 83.35 | D23: 84.12 | E23: 82.03 | F23: 80.72 | G23: 78.63 | H23: 85.43 | I23: 87.52 | J23: 88.83 | K23: 86.2 | L23: 82.8 | M23: 28.29489
A24: 14 | B24: ABFRL | C24: 213.7 | D24: 212.90 | E24: 210.85 | F24: 208.00 | G24: 205.95 | H24: 215.75 | I24: 217.80 | J24: 220.65 | K24: 214.95 | L24: 210.05 | M24: 2.02328
A25: 15 | B25: ADVENZYMES | C25: 191.05 | D25: 195.72 | E25: 184.83 | F25: 178.62 | G25: 167.73 | H25: 201.93 | I25: 212.82 | J25: 219.03 | K25: 206.6 | L25: 189.5 | M25: 4.09891
A26: 16 | B26: AEGISCHEM | C26: 169.05 | D26: 169.98 | E26: 165.82 | F26: 162.58 | G26: 158.42 | H26: 173.22 | I26: 177.38 | J26: 180.62 | K26: 174.15 | L26: 166.75 | M26: 1.25437
A27: 17 | B27: AJANTPHARM | C27: 1004.5 | D27: 998.85 | E27: 909.05 | F27: 813.60 | G27: 723.80 | H27: 1094.30 | I27: 1184.10 | J27: 1279.55 | K27: 1088.65 | L27: 903.4 | M27: 3.85788
A28: 18 | B28: AKZOINDIA | C28: 2146.2 | D28: 2119.43 | E28: 2088.87 | F28: 2031.53 | G28: 2000.97 | H28: 2176.77 | I28: 2207.33 | J28: 2264.67 | K28: 2150 | L28: 2062.1 | M28: 0.17337
A29: 19 | B29: APLLTD | C29: 579.2 | D29: 580.15 | E29: 571.30 | F29: 563.40 | G29: 554.55 | H29: 588.05 | I29: 596.90 | J29: 604.80 | K29: 589 | L29: 572.25 | M29: 1.49301
A30: 20 | B30: ALKEM | C30: 2015.95 | D30: 2012.03 | E30: 1999.07 | F30: 1982.18 | G30: 1969.22 | H30: 2028.92 | I30: 2041.88 | J30: 2058.77 | K30: 2025 | L30: 1995.15 | M30: 0.49039
A31: 21 | B31: ALBK | C31: 27.55 | D31: 27.55 | E31: 27.30 | F31: 27.05 | G31: 26.80 | H31: 27.80 | I31: 28.05 | J31: 28.30 | K31: 27.8 | L31: 27.3 | M31: 9.11223
A32: 22 | B32: ALLCARGO | C32: 110.3 | D32: 109.08 | E32: 106.67 | F32: 103.03 | G32: 100.62 | H32: 112.72 | I32: 115.13 | J32: 118.77 | K32: 111.5 | L32: 105.45 | M32: 12.75103
A33: 23 | B33: AMARAJABAT | C33: 658.6 | D33: 670.35 | E33: 645.25 | F33: 631.90 | G33: 606.80 | H33: 683.70 | I33: 708.80 | J33: 722.15 | K33: 695.45 | L33: 657 | M33: 7.66588
A34: 24 | B34: AMBER | C34: 1007 | D34: 1016.35 | E34: 993.30 | F34: 979.60 | G34: 956.55 | H34: 1030.05 | I34: 1053.10 | J34: 1066.80 | K34: 1039.4 | L34: 1002.65 | M34: 0.14588
A35: 25 | B35: AMBUJACEM | C35: 203.35 | D35: 204.07 | E35: 201.43 | F35: 199.52 | G35: 196.88 | H35: 205.98 | I35: 208.62 | J35: 210.53 | K35: 206.7 | L35: 202.15 | M35: 42.43318
A36: 26 | B36: ANDHRABANK | C36: 18.45 | D36: 18.45 | E36: 18.25 | F36: 18.05 | G36: 17.85 | H36: 18.65 | I36: 18.85 | J36: 19.05 | K36: 18.65 | L36: 18.25 | M36: 8.01776
A37: 27 | B37: APOLLOHOSP | C37: 1414.75 | D37: 1432.25 | E37: 1393.50 | F37: 1372.25 | G37: 1333.50 | H37: 1453.50 | I37: 1492.25 | J37: 1513.50 | K37: 1471 | L37: 1411 | M37: 5.19503
A38: 28 | B38: APOLLOTYRE | C38: 185.55 | D38: 187.00 | E38: 183.35 | F38: 181.15 | G38: 177.50 | H38: 189.20 | I38: 192.85 | J38: 195.05 | K38: 190.65 | L38: 184.8 | M38: 21.25782
A39: 29 | B39: ARVINDFASN | C39: 440.95 | D39: 441.75 | E39: 435.20 | F39: 429.45 | G39: 422.90 | H39: 447.50 | I39: 454.05 | J39: 459.80 | K39: 448.3 | L39: 436 | M39: 0.41495
A40: 30 | B40: ASHOKLEY | C40: 75.2 | D40: 75.30 | E40: 73.90 | F40: 72.60 | G40: 71.20 | H40: 76.60 | I40: 78.00 | J40: 79.30 | K40: 76.7 | L40: 74 | M40: 198.55689
A41: 31 | B41: ASHOKA | C41: 100.45 | D41: 101.28 | E41: 99.22 | F41: 97.98 | G41: 95.92 | H41: 102.52 | I41: 104.58 | J41: 105.82 | K41: 103.35 | L41: 100.05 | M41: 13.03963
A42: 32 | B42: ASIANPAINT | C42: 1785.9 | D42: 1780.70 | E42: 1771.40 | F42: 1756.90 | G42: 1747.60 | H42: 1795.20 | I42: 1804.50 | J42: 1819.00 | K42: 1790 | L42: 1766.2 | M42: 8.21893
A43: 33 | B43: ASTERDM | C43: 142.45 | D43: 143.37 | E43: 140.18 | F43: 137.92 | G43: 134.73 | H43: 145.63 | I43: 148.82 | J43: 151.08 | K43: 146.55 | L43: 141.1 | M43: 1.23384
A44: 34 | B44: ASTRAZEN | C44: 2632.1 | D44: 2665.75 | E44: 2561.45 | F44: 2490.80 | G44: 2386.50 | H44: 2736.40 | I44: 2840.70 | J44: 2911.35 | K44: 2770.05 | L44: 2595.1 | M44: 0.21601
A45: 35 | B45: ASTRAL | C45: 1089.5 | D45: 1082.83 | E45: 1037.67 | F45: 985.83 | G45: 940.67 | H45: 1134.67 | I45: 1179.83 | J45: 1231.67 | K45: 1128 | L45: 1031 | M45: 1.60356
A46: 36 | B46: ATUL | C46: 4253.9 | D46: 4287.47 | E46: 4216.43 | F46: 4178.97 | G46: 4107.93 | H46: 4324.93 | I46: 4395.97 | J46: 4433.43 | K46: 4358.5 | L46: 4250 | M46: 0.10484
A47: 37 | B47: AUROPHARMA | C47: 477.65 | D47: 486.40 | E47: 465.30 | F47: 452.95 | G47: 431.85 | H47: 498.75 | I47: 519.85 | J47: 532.20 | K47: 507.5 | L47: 474.05 | M47: 72.80307
A48: 38 | B48: AVANTIFEED | C48: 463.85 | D48: 462.62 | E48: 455.23 | F48: 446.62 | G48: 439.23 | H48: 471.23 | I48: 478.62 | J48: 487.23 | K48: 470 | L48: 454 | M48: 4.7425
A49: 39 | B49: DMART | C49: 1956.65 | D49: 1963.85 | E49: 1932.80 | F49: 1908.95 | G49: 1877.90 | H49: 1987.70 | I49: 2018.75 | J49: 2042.60 | K49: 1994.9 | L49: 1940 | M49: 3.09293
A50: 40 | B50: AXISBANK | C50: 742.6 | D50: 744.37 | E50: 733.78 | F50: 724.97 | G50: 714.38 | H50: 753.18 | I50: 763.77 | J50: 772.58 | K50: 754.95 | L50: 735.55 | M50: 78.5137
A51: 41 | B51: BASF | C51: 995.75 | D51: 1001.75 | E51: 984.25 | F51: 972.75 | G51: 955.25 | H51: 1013.25 | I51: 1030.75 | J51: 1042.25 | K51: 1019.25 | L51: 990.25 | M51: 0.12385
A52: 42 | B52: BEML | C52: 992.2 | D52: 1000.18 | E52: 975.37 | F52: 958.53 | G52: 933.72 | H52: 1017.02 | I52: 1041.83 | J52: 1058.67 | K52: 1025 | L52: 983.35 | M52: 7.89668
A53: 43 | B53: BSE | C53: 547.75 | D53: 550.92 | E53: 538.83 | F53: 529.92 | G53: 517.83 | H53: 559.83 | I53: 571.92 | J53: 580.83 | K53: 563 | L53: 542 | M53: 1.3277
A54: 44 | B54: BAJAJ-AUTO | C54: 3212.05 | D54: 3213.87 | E54: 3179.48 | F54: 3146.92 | G54: 3112.53 | H54: 3246.43 | I54: 3280.82 | J54: 3313.38 | K54: 3248.25 | L54: 3181.3 | M54: 3.30025
A55: 45 | B55: BAJAJCON | C55: 255.4 | D55: 254.47 | E55: 248.93 | F55: 242.47 | G55: 236.93 | H55: 260.93 | I55: 266.47 | J55: 272.93 | K55: 260 | L55: 248 | M55: 2.56178
A56: 46 | B56: BAJAJELEC | C56: 389.25 | D56: 386.10 | E56: 380.20 | F56: 371.15 | G56: 365.25 | H56: 395.15 | I56: 401.05 | J56: 410.10 | K56: 392 | L56: 377.05 | M56: 2.25402
A57: 47 | B57: BAJFINANCE | C57: 4113 | D57: 4122.22 | E57: 4066.93 | F57: 4020.87 | G57: 3965.58 | H57: 4168.28 | I57: 4223.57 | J57: 4269.63 | K57: 4177.5 | L57: 4076.15 | M57: 18.63158
A58: 48 | B58: BAJAJFINSV | C58: 8706.6 | D58: 8635.62 | E58: 8521.23 | F58: 8335.87 | G58: 8221.48 | H58: 8820.98 | I58: 8935.37 | J58: 9120.73 | K58: 8750 | L58: 8450.25 | M58: 5.52812
A59: 49 | B59: BAJAJHLDNG | C59: 3708.95 | D59: 3730.65 | E59: 3655.30 | F59: 3601.65 | G59: 3526.30 | H59: 3784.30 | I59: 3859.65 | J59: 3913.30 | K59: 3806 | L59: 3677 | M59: 0.43348
A60: 50 | B60: BALKRISIND | C60: 866.15 | D60: 870.37 | E60: 857.73 | F60: 849.32 | G60: 836.68 | H60: 878.78 | I60: 891.42 | J60: 899.83 | K60: 883 | L60: 861.95 | M60: 2.07352
A61: 51 | B61: BALMLAWRIE | C61: 202.35 | D61: 203.55 | E61: 196.45 | F61: 190.55 | G61: 183.45 | H61: 209.45 | I61: 216.55 | J61: 222.45 | K61: 210.65 | L61: 197.65 | M61: 2.97626
A62: 52 | B62: BALRAMCHIN | C62: 161.8 | D62: 162.63 | E62: 159.57 | F62: 157.33 | G62: 154.27 | H62: 164.87 | I62: 167.93 | J62: 170.17 | K62: 165.7 | L62: 160.4 | M62: 5.99514
A63: 53 | B63: BANDHANBNK | C63: 590 | D63: 593.15 | E63: 581.00 | F63: 572.00 | G63: 559.85 | H63: 602.15 | I63: 614.30 | J63: 623.30 | K63: 605.3 | L63: 584.15 | M63: 7.55659
A64: 54 | B64: BANKBARODA | C64: 101.95 | D64: 102.02 | E64: 100.28 | F64: 98.62 | G64: 96.88 | H64: 103.68 | I64: 105.42 | J64: 107.08 | K64: 103.75 | L64: 100.35 | M64: 330.14625
A65: 55 | B65: BANKINDIA | C65: 71.35 | D65: 71.83 | E65: 70.52 | F65: 69.68 | G65: 68.37 | H65: 72.67 | I65: 73.98 | J65: 74.82 | K65: 73.15 | L65: 71 | M65: 134.45702
A66: 56 | B66: MAHABANK | C66: 12.95 | D66: 13.07 | E66: 12.38 | F66: 11.82 | G66: 11.13 | H66: 13.63 | I66: 14.32 | J66: 14.88 | K66: 13.75 | L66: 12.5 | M66: 17.46193
A67: 57 | B67: BATAINDIA | C67: 1731.15 | D67: 1735.12 | E67: 1711.23 | F67: 1691.32 | G67: 1667.43 | H67: 1755.03 | I67: 1778.92 | J67: 1798.83 | K67: 1759 | L67: 1715.2 | M67: 5.74339
A68: 58 | B68: BAYERCROP | C68: 3707.45 | D68: 3723.48 | E68: 3656.97 | F68: 3606.48 | G68: 3539.97 | H68: 3773.97 | I68: 3840.48 | J68: 3890.97 | K68: 3790 | L68: 3673 | M68: 0.03957
A69: 59 | B69: BERGEPAINT | C69: 503.35 | D69: 504.62 | E69: 495.78 | F69: 488.22 | G69: 479.38 | H69: 512.18 | I69: 521.02 | J69: 528.58 | K69: 513.45 | L69: 497.05 | M69: 16.70083
A70: 60 | B70: BDL | C70: 332.7 | D70: 337.80 | E70: 325.60 | F70: 318.50 | G70: 306.30 | H70: 344.90 | I70: 357.10 | J70: 364.20 | K70: 350 | L70: 330.7 | M70: 1.06801
A71: 61 | B71: BEL | C71: 119.5 | D71: 120.22 | E71: 118.33 | F71: 117.17 | G71: 115.28 | H71: 121.38 | I71: 123.27 | J71: 124.43 | K71: 122.1 | L71: 119.05 | M71: 108.8666
A72: 62 | B72: BHARATFORG | C72: 461.5 | D72: 461.03 | E72: 454.67 | F72: 447.83 | G72: 441.47 | H72: 467.87 | I72: 474.23 | J72: 481.07 | K72: 467.4 | L72: 454.2 | M72: 12.77869
A73: 63 | B73: BHEL | C73: 56.4 | D73: 56.62 | E73: 55.33 | F73: 54.27 | G73: 52.98 | H73: 57.68 | I73: 58.97 | J73: 60.03 | K73: 57.9 | L73: 55.55 | M73: 208.59205
A74: 64 | B74: BPCL | C74: 522.2 | D74: 521.32 | E74: 515.18 | F74: 508.17 | G74: 502.03 | H74: 528.33 | I74: 534.47 | J74: 541.48 | K74: 527.45 | L74: 514.3 | M74: 46.81345
A75: 65 | B75: BHARTIARTL | C75: 378 | D75: 377.90 | E75: 374.10 | F75: 370.20 | G75: 366.40 | H75: 381.80 | I75: 385.60 | J75: 389.50 | K75: 381.7 | L75: 374 | M75: 76.20719
A76: 66 | B76: INFRATEL | C76: 214.85 | D76: 213.30 | E76: 209.00 | F76: 203.15 | G76: 198.85 | H76: 219.15 | I76: 223.45 | J76: 229.30 | K76: 217.6 | L76: 207.45 | M76: 169.66469
A77: 67 | B77: BIOCON | C77: 263.6 | D77: 258.22 | E77: 251.43 | F77: 239.27 | G77: 232.48 | H77: 270.38 | I77: 277.17 | J77: 289.33 | K77: 265 | L77: 246.05 | M77: 75.79244
A78: 68 | B78: BIRLACORPN | C78: 610.95 | D78: 604.08 | E78: 593.27 | F78: 575.58 | G78: 564.77 | H78: 621.77 | I78: 632.58 | J78: 650.27 | K78: 614.9 | L78: 586.4 | M78: 1.87513
A79: 69 | B79: BSOFT | C79: 66.55 | D79: 66.78 | E79: 65.87 | F79: 65.18 | G79: 64.27 | H79: 67.47 | I79: 68.38 | J79: 69.07 | K79: 67.7 | L79: 66.1 | M79: 1.93697
A80: 70 | B80: BLISSGVS | C80: 143.9 | D80: 143.97 | E80: 141.93 | F80: 139.97 | G80: 137.93 | H80: 145.93 | I80: 147.97 | J80: 149.93 | K80: 146 | L80: 142 | M80: 1.1155
A81: 71 | B81: BLUEDART | C81: 2315.55 | D81: 2336.50 | E81: 2265.05 | F81: 2214.55 | G81: 2143.10 | H81: 2387.00 | I81: 2458.45 | J81: 2508.95 | K81: 2407.95 | L81: 2286 | M81: 0.04375
A82: 72 | B82: BLUESTARCO | C82: 798.25 | D82: 806.10 | E82: 787.20 | F82: 776.15 | G82: 757.25 | H82: 817.15 | I82: 836.05 | J82: 847.10 | K82: 825 | L82: 795.05 | M82: 0.46682
A83: 73 | B83: BBTC | C83: 1218.5 | D83: 1223.60 | E83: 1197.60 | F83: 1176.70 | G83: 1150.70 | H83: 1244.50 | I83: 1270.50 | J83: 1291.40 | K83: 1249.6 | L83: 1202.7 | M83: 1.75743
A84: 74 | B84: BOMDYEING | C84: 84.6 | D84: 85.27 | E84: 83.33 | F84: 82.07 | G84: 80.13 | H84: 86.53 | I84: 88.47 | J84: 89.73 | K84: 87.2 | L84: 84 | M84: 18.88734
A85: 75 | B85: BOSCHLTD | C85: 15759.45 | D85: 15683.48 | E85: 15517.97 | F85: 15276.48 | G85: 15110.97 | H85: 15924.97 | I85: 16090.48 | J85: 16331.97 | K85: 15849 | L85: 15442 | M85: 0.23444
A86: 76 | B86: BRIGADE | C86: 208 | D86: 206.33 | E86: 202.82 | F86: 197.63 | G86: 194.12 | H86: 211.52 | I86: 215.03 | J86: 220.22 | K86: 209.85 | L86: 201.15 | M86: 1.48462
A87: 77 | B87: BRITANNIA | C87: 3239.85 | D87: 3255.28 | E87: 3211.57 | F87: 3183.28 | G87: 3139.57 | H87: 3283.57 | I87: 3327.28 | J87: 3355.57 | K87: 3299 | L87: 3227 | M87: 2.83144
A88: 78 | B88: CARERATING | C88: 531.95 | D88: 535.35 | E88: 525.60 | F88: 519.25 | G88: 509.50 | H88: 541.70 | I88: 551.45 | J88: 557.80 | K88: 545.1 | L88: 529 | M88: 2.39828
A89: 79 | B89: CCL | C89: 210.9 | D89: 211.93 | E89: 208.97 | F89: 207.03 | G89: 204.07 | H89: 213.87 | I89: 216.83 | J89: 218.77 | K89: 214.9 | L89: 210 | M89: 0.55628
A90: 80 | B90: CESC | C90: 825.7 | D90: 820.27 | E90: 805.88 | F90: 786.07 | G90: 771.68 | H90: 840.08 | I90: 854.47 | J90: 874.28 | K90: 834.65 | L90: 800.45 | M90: 7.18321
A91: 81 | B91: CGPOWER | C91: 14.55 | D91: 14.55 | E91: 14.55 | F91: 14.55 | G91: 14.55 | H91: 14.55 | I91: 14.55 | J91: 14.55 | K91: 14.55 | L91: 14.55 | M91: 2.57265
A92: 82 | B92: CRISIL | C92: 1509.3 | D92: 1514.40 | E92: 1491.20 | F92: 1473.10 | G92: 1449.90 | H92: 1532.50 | I92: 1555.70 | J92: 1573.80 | K92: 1537.6 | L92: 1496.3 | M92: 0.12452
A93: 83 | B93: CADILAHC | C93: 241.65 | D93: 245.35 | E93: 229.80 | F93: 217.95 | G93: 202.40 | H93: 257.20 | I93: 272.75 | J93: 284.60 | K93: 260.9 | L93: 233.5 | M93: 52.31174
A94: 84 | B94: CANFINHOME | C94: 426.3 | D94: 419.12 | E94: 405.23 | F94: 384.17 | G94: 370.28 | H94: 440.18 | I94: 454.07 | J94: 475.13 | K94: 433 | L94: 398.05 | M94: 19.83433
A95: 85 | B95: CANBK | C95: 207.85 | D95: 208.70 | E95: 205.80 | F95: 203.75 | G95: 200.85 | H95: 210.75 | I95: 213.65 | J95: 215.70 | K95: 211.6 | L95: 206.65 | M95: 63.48189
A96: 86 | B96: CAPLIPOINT | C96: 407.4 | D96: 411.73 | E96: 400.97 | F96: 394.53 | G96: 383.77 | H96: 418.17 | I96: 428.93 | J96: 435.37 | K96: 422.5 | L96: 405.3 | M96: 0.36829
A97: 87 | B97: CGCL | C97: 218.4 | D97: 213.85 | E97: 203.70 | F97: 189.00 | G97: 178.85 | H97: 228.55 | I97: 238.70 | J97: 253.40 | K97: 224 | L97: 199.15 | M97: 4.5687
A98: 88 | B98: CARBORUNIV | C98: 320.55 | D98: 322.53 | E98: 316.07 | F98: 311.58 | G98: 305.12 | H98: 327.02 | I98: 333.48 | J98: 337.97 | K98: 329 | L98: 318.05 | M98: 1.34908
A99: 89 | B99: CASTROLIND | C99: 150.55 | D99: 152.63 | E99: 147.82 | F99: 145.08 | G99: 140.27 | H99: 155.37 | I99: 160.18 | J99: 162.92 | K99: 157.45 | L99: 149.9 | M99: 32.25877
A100: 90 | B100: CEATLTD | C100: 996.8 | D100: 999.22 | E100: 987.58 | F100: 978.37 | G100: 966.73 | H100: 1008.43 | I100: 1020.07 | J100: 1029.28 | K100: 1010.85 | L100: 990 | M100: 0.96015
A101: 91 | B101: CENTRALBK | C101: 23.25 | D101: 23.92 | E101: 22.33 | F101: 21.42 | G101: 19.83 | H101: 24.83 | I101: 26.42 | J101: 27.33 | K101: 25.5 | L101: 23 | M101: 45.837
A102: 92 | B102: CDSL | C102: 235.9 | D102: 237.00 | E102: 231.40 | F102: 226.90 | G102: 221.30 | H102: 241.50 | I102: 247.10 | J102: 251.60 | K102: 242.6 | L102: 232.5 | M102: 4.87213
A103: 93 | B103: CENTURYPLY | C103: 172.45 | D103: 171.02 | E103: 167.33 | F103: 162.22 | G103: 158.53 | H103: 176.13 | I103: 179.82 | J103: 184.93 | K103: 174.7 | L103: 165.9 | M103: 1.90064
A104: 94 | B104: CERA | C104: 2708.6 | D104: 2693.62 | E104: 2667.23 | F104: 2625.87 | G104: 2599.48 | H104: 2734.98 | I104: 2761.37 | J104: 2802.73 | K104: 2720 | L104: 2652.25 | M104: 0.02726
A105: 95 | B105: CHALET | C105: 332.05 | D105: 330.55 | E105: 327.00 | F105: 321.95 | G105: 318.40 | H105: 335.60 | I105: 339.15 | J105: 344.20 | K105: 334.1 | L105: 325.5 | M105: 0.01786
A106: 96 | B106: CHAMBLFERT | C106: 170.85 | D106: 171.10 | E106: 168.25 | F106: 165.65 | G106: 162.80 | H106: 173.70 | I106: 176.55 | J106: 179.15 | K106: 173.95 | L106: 168.5 | M106: 4.99815
A107: 97 | B107: CHENNPETRO | C107: 160.6 | D107: 159.23 | E107: 156.97 | F107: 153.33 | G107: 151.07 | H107: 162.87 | I107: 165.13 | J107: 168.77 | K107: 161.5 | L107: 155.6 | M107: 2.326
A108: 98 | B108: CHOLAHLDNG | C108: 470 | D108: 471.67 | E108: 464.33 | F108: 458.67 | G108: 451.33 | H108: 477.33 | I108: 484.67 | J108: 490.33 | K108: 479 | L108: 466 | M108: 2.28107
A109: 99 | B109: CHOLAFIN | C109: 316 | D109: 317.88 | E109: 310.77 | F109: 305.53 | G109: 298.42 | H109: 323.12 | I109: 330.23 | J109: 335.47 | K109: 325 | L109: 312.65 | M109: 42.81408
A110: 100 | B110: CIPLA | C110: 468.3 | D110: 471.28 | E110: 464.07 | F110: 459.83 | G110: 452.62 | H110: 475.52 | I110: 482.73 | J110: 486.97 | K110: 478.5 | L110: 467.05 | M110: 23.93325
A111: 101 | B111: CUB | C111: 212.2 | D111: 212.47 | E111: 210.08 | F111: 207.97 | G111: 205.58 | H111: 214.58 | I111: 216.97 | J111: 219.08 | K111: 214.85 | L111: 210.35 | M111: 5.80093
A112: 102 | B112: COALINDIA | C112: 215 | D112: 212.13 | E112: 208.67 | F112: 202.33 | G112: 198.87 | H112: 218.47 | I112: 221.93 | J112: 228.27 | K112: 215.6 | L112: 205.8 | M112: 84.89492
A113: 103 | B113: COCHINSHIP | C113: 399.95 | D113: 405.32 | E113: 392.63 | F113: 385.32 | G113: 372.63 | H113: 412.63 | I113: 425.32 | J113: 432.63 | K113: 418 | L113: 398 | M113: 1.47921
A114: 104 | B114: COFFEEDAY | C114: 33.65 | D114: 33.65 | E114: 33.65 | F114: 33.65 | G114: 33.65 | H114: 33.65 | I114: 33.65 | J114: 33.65 | K114: 33.65 | L114: 33.65 | M114: 0.60715
A115: 105 | B115: COLPAL | C115: 1552.45 | D115: 1545.13 | E115: 1535.32 | F115: 1518.18 | G115: 1508.37 | H115: 1562.27 | I115: 1572.08 | J115: 1589.22 | K115: 1554.95 | L115: 1528 | M115: 4.50746
A116: 106 | B116: CONCOR | C116: 578.7 | D116: 582.32 | E116: 573.43 | F116: 568.17 | G116: 559.28 | H116: 587.58 | I116: 596.47 | J116: 601.73 | K116: 591.2 | L116: 577.05 | M116: 15.82095
A117: 107 | B117: COROMANDEL | C117: 466.15 | D117: 469.25 | E117: 453.00 | F117: 439.85 | G117: 423.60 | H117: 482.40 | I117: 498.65 | J117: 511.80 | K117: 485.5 | L117: 456.1 | M117: 3.31155
A118: 108 | B118: CORPBANK | C118: 17.3 | D118: 17.07 | E118: 16.63 | F118: 15.97 | G118: 15.53 | H118: 17.73 | I118: 18.17 | J118: 18.83 | K118: 17.5 | L118: 16.4 | M118: 5.83289
A119: 109 | B119: COX&KINGS | C119: 1.65 | D119: 1.67 | E119: 1.63 | F119: 1.62 | G119: 1.58 | H119: 1.68 | I119: 1.72 | J119: 1.73 | K119: 1.7 | L119: 1.65 | M119: 29.00858
A120: 110 | B120: CREDITACC | C120: 669.2 | D120: 660.73 | E120: 643.47 | F120: 617.73 | G120: 600.47 | H120: 686.47 | I120: 703.73 | J120: 729.47 | K120: 678 | L120: 635 | M120: 1.04117
A121: 111 | B121: CROMPTON | C121: 254.95 | D121: 255.60 | E121: 253.20 | F121: 251.45 | G121: 249.05 | H121: 257.35 | I121: 259.75 | J121: 261.50 | K121: 258 | L121: 253.85 | M121: 7.37983
A122: 112 | B122: CUMMINSIND | C122: 546.6 | D122: 549.48 | E122: 540.17 | F122: 533.73 | G122: 524.42 | H122: 555.92 | I122: 565.23 | J122: 571.67 | K122: 558.8 | L122: 543.05 | M122: 4.60153
A123: 113 | B123: CYIENT | C123: 411.5 | D123: 415.32 | E123: 405.68 | F123: 399.87 | G123: 390.23 | H123: 421.13 | I123: 430.77 | J123: 436.58 | K123: 424.95 | L123: 409.5 | M123: 1.7598
A124: 114 | B124: DBCORP | C124: 146.35 | D124: 146.82 | E124: 144.53 | F124: 142.72 | G124: 140.43 | H124: 148.63 | I124: 150.92 | J124: 152.73 | K124: 149.1 | L124: 145 | M124: 0.50157
A125: 115 | B125: DCBBANK | C125: 182.9 | D125: 183.55 | E125: 181.60 | F125: 180.30 | G125: 178.35 | H125: 184.85 | I125: 186.80 | J125: 188.10 | K125: 185.5 | L125: 182.25 | M125: 10.4141
A126: 116 | B126: DCMSHRIRAM | C126: 369.4 | D126: 371.87 | E126: 363.83 | F126: 358.27 | G126: 350.23 | H126: 377.43 | I126: 385.47 | J126: 391.03 | K126: 379.9 | L126: 366.3 | M126: 0.88454
A127: 117 | B127: DLF | C127: 184.3 | D127: 185.00 | E127: 181.60 | F127: 178.90 | G127: 175.50 | H127: 187.70 | I127: 191.10 | J127: 193.80 | K127: 188.4 | L127: 182.3 | M127: 64.16447
A128: 118 | B128: DABUR | C128: 460.4 | D128: 462.12 | E128: 456.28 | F128: 452.17 | G128: 446.33 | H128: 466.23 | I128: 472.07 | J128: 476.18 | K128: 467.95 | L128: 458 | M128: 16.79706
A129: 119 | B129: DALBHARAT | C129: 812.75 | D129: 821.25 | E129: 798.50 | F129: 784.25 | G129: 761.50 | H129: 835.50 | I129: 858.25 | J129: 872.50 | K129: 844 | L129: 807 | M129: 1.00817
A130: 120 | B130: DEEPAKNTR | C130: 338.6 | D130: 339.60 | E130: 336.25 | F130: 333.90 | G130: 330.55 | H130: 341.95 | I130: 345.30 | J130: 347.65 | K130: 342.95 | L130: 337.25 | M130: 1.78168
A131: 121 | B131: DELTACORP | C131: 196.7 | D131: 199.92 | E131: 191.88 | F131: 187.07 | G131: 179.03 | H131: 204.73 | I131: 212.77 | J131: 217.58 | K131: 207.95 | L131: 195.1 | M131: 8.17108
A132: 122 | B132: DEN | C132: 45.75 | D132: 46.83 | E132: 44.67 | F132: 43.58 | G132: 41.42 | H132: 47.92 | I132: 50.08 | J132: 51.17 | K132: 49 | L132: 45.75 | M132: 1.35284
A133: 123 | B133: DHFL | C133: 19.2 | D133: 18.60 | E133: 18.00 | F133: 16.80 | G133: 16.20 | H133: 19.80 | I133: 20.40 | J133: 21.60 | K133: 19.2 | L133: 17.4 | M133: 61.34011
A134: 124 | B134: DBL | C134: 441.9 | D134: 448.17 | E134: 428.98 | F134: 416.07 | G134: 396.88 | H134: 461.08 | I134: 480.27 | J134: 493.18 | K134: 467.35 | L134: 435.25 | M134: 3.4098
A135: 125 | B135: DISHTV | C135: 14.55 | D135: 15.08 | E135: 13.77 | F135: 12.98 | G135: 11.67 | H135: 15.87 | I135: 17.18 | J135: 17.97 | K135: 16.4 | L135: 14.3 | M135: 792.93726
A136: 126 | B136: DCAL | C136: 119.45 | D136: 120.27 | E136: 115.78 | F136: 112.12 | G136: 107.63 | H136: 123.93 | I136: 128.42 | J136: 132.08 | K136: 124.75 | L136: 116.6 | M136: 6.36519
A137: 127 | B137: DIVISLAB | C137: 1735.15 | D137: 1735.53 | E137: 1716.07 | F137: 1696.98 | G137: 1677.52 | H137: 1754.62 | I137: 1774.08 | J137: 1793.17 | K137: 1755 | L137: 1716.45 | M137: 5.15116
A138: 128 | B138: DIXON | C138: 3015.25 | D138: 3021.75 | E138: 3003.50 | F138: 2991.75 | G138: 2973.50 | H138: 3033.50 | I138: 3051.75 | J138: 3063.50 | K138: 3040 | L138: 3010 | M138: 0.04477
A139: 129 | B139: LALPATHLAB | C139: 1441.2 | D139: 1440.73 | E139: 1415.47 | F139: 1389.73 | G139: 1364.47 | H139: 1466.47 | I139: 1491.73 | J139: 1517.47 | K139: 1466 | L139: 1415 | M139: 2.05303
A140: 130 | B140: DRREDDY | C140: 2797.8 | D140: 2785.45 | E140: 2760.90 | F140: 2724.00 | G140: 2699.45 | H140: 2822.35 | I140: 2846.90 | J140: 2883.80 | K140: 2810 | L140: 2748.55 | M140: 8.08849
A141: 131 | B141: EIDPARRY | C141: 169.15 | D141: 169.87 | E141: 167.28 | F141: 165.42 | G141: 162.83 | H141: 171.73 | I141: 174.32 | J141: 176.18 | K141: 172.45 | L141: 168 | M141: 2.99575
A142: 132 | B142: EIHOTEL | C142: 162.4 | D142: 163.75 | E142: 160.25 | F142: 158.10 | G142: 154.60 | H142: 165.90 | I142: 169.40 | J142: 171.55 | K142: 167.25 | L142: 161.6 | M142: 1.11472
A143: 133 | B143: EDELWEISS | C143: 94.4 | D143: 94.95 | E143: 93.00 | F143: 91.60 | G143: 89.65 | H143: 96.35 | I143: 98.30 | J143: 99.70 | K143: 96.9 | L143: 93.55 | M143: 19.40044
A144: 134 | B144: EICHERMOT | C144: 21740.7 | D144: 21860.23 | E144: 21440.47 | F144: 21140.23 | G144: 20720.47 | H144: 22160.47 | I144: 22580.23 | J144: 22880.47 | K144: 22280 | L144: 21560 | M144: 1.57014
A145: 135 | B145: ELGIEQUIP | C145: 274.6 | D145: 274.85 | E145: 271.75 | F145: 268.90 | G145: 265.80 | H145: 277.70 | I145: 280.80 | J145: 283.65 | K145: 277.95 | L145: 272 | M145: 0.45298
A146: 136 | B146: EMAMILTD | C146: 329.55 | D146: 330.05 | E146: 324.60 | F146: 319.65 | G146: 314.20 | H146: 335.00 | I146: 340.45 | J146: 345.40 | K146: 335.5 | L146: 325.1 | M146: 2.31015
A147: 137 | B147: ENDURANCE | C147: 1111.15 | D147: 1098.92 | E147: 1077.83 | F147: 1044.52 | G147: 1023.43 | H147: 1132.23 | I147: 1153.32 | J147: 1186.63 | K147: 1120 | L147: 1065.6 | M147: 0.09047
A148: 138 | B148: ENGINERSIN | C148: 118.9 | D148: 120.10 | E148: 117.20 | F148: 115.50 | G148: 112.60 | H148: 121.80 | I148: 124.70 | J148: 126.40 | K148: 123 | L148: 118.4 | M148: 12.97534
A149: 139 | B149: EQUITAS | C149: 98.2 | D149: 97.88 | E149: 95.87 | F149: 93.53 | G149: 91.52 | H149: 100.22 | I149: 102.23 | J149: 104.57 | K149: 99.9 | L149: 95.55 | M149: 38.99496
A150: 140 | B150: ERIS | C150: 420.65 | D150: 424.05 | E150: 413.65 | F150: 406.65 | G150: 396.25 | H150: 431.05 | I150: 441.45 | J150: 448.45 | K150: 434.45 | L150: 417.05 | M150: 0.46348
A151: 141 | B151: ESCORTS | C151: 648.6 | D151: 648.37 | E151: 638.98 | F151: 629.37 | G151: 619.98 | H151: 657.98 | I151: 667.37 | J151: 676.98 | K151: 657.75 | L151: 638.75 | M151: 24.81003
A152: 142 | B152: ESSELPACK | C152: 115 | D152: 115.48 | E152: 112.52 | F152: 110.03 | G152: 107.07 | H152: 117.97 | I152: 120.93 | J152: 123.42 | K152: 118.45 | L152: 113 | M152: 0.84868
A153: 143 | B153: EXIDEIND | C153: 187.5 | D153: 190.17 | E153: 183.33 | F153: 179.17 | G153: 172.33 | H153: 194.33 | I153: 201.17 | J153: 205.33 | K153: 197 | L153: 186 | M153: 27.73646
A154: 144 | B154: FDC | C154: 177.95 | D154: 178.08 | E154: 176.17 | F154: 174.38 | G154: 172.47 | H154: 179.87 | I154: 181.78 | J154: 183.57 | K154: 180 | L154: 176.3 | M154: 0.44915
A155: 145 | B155: FEDERALBNK | C155: 88.4 | D155: 88.05 | E155: 86.85 | F155: 85.30 | G155: 84.10 | H155: 89.60 | I155: 90.80 | J155: 92.35 | K155: 89.25 | L155: 86.5 | M155: 233.88136
A156: 146 | B156: FMGOETZE | C156: 551.3 | D156: 553.77 | E156: 548.13 | F156: 544.97 | G156: 539.33 | H156: 556.93 | I156: 562.57 | J156: 565.73 | K156: 559.4 | L156: 550.6 | M156: 0.00923
A157: 147 | B157: FINEORG | C157: 1911.65 | D157: 1901.77 | E157: 1886.93 | F157: 1862.22 | G157: 1847.38 | H157: 1926.48 | I157: 1941.32 | J157: 1966.03 | K157: 1916.6 | L157: 1877.05 | M157: 0.05545
A158: 148 | B158: FINCABLES | C158: 383.4 | D158: 383.60 | E158: 379.50 | F158: 375.60 | G158: 371.50 | H158: 387.50 | I158: 391.60 | J158: 395.50 | K158: 387.7 | L158: 379.7 | M158: 0.29136
A159: 149 | B159: FINPIPE | C159: 591 | D159: 594.93 | E159: 586.07 | F159: 581.13 | G159: 572.27 | H159: 599.87 | I159: 608.73 | J159: 613.67 | K159: 603.8 | L159: 590 | M159: 0.22296
A160: 150 | B160: FSL | C160: 50.15 | D160: 50.12 | E160: 49.53 | F160: 48.92 | G160: 48.33 | H160: 50.73 | I160: 51.32 | J160: 51.93 | K160: 50.7 | L160: 49.5 | M160: 12.7057
A161: 151 | B161: FORTIS | C161: 150.35 | D161: 150.58 | E161: 148.77 | F161: 147.18 | G161: 145.37 | H161: 152.17 | I161: 153.98 | J161: 155.57 | K161: 152.4 | L161: 149 | M161: 24.35999
A162: 152 | B162: FCONSUMER | C162: 26.55 | D162: 26.87 | E162: 25.93 | F162: 25.32 | G162: 24.38 | H162: 27.48 | I162: 28.42 | J162: 29.03 | K162: 27.8 | L162: 26.25 | M162: 11.95785
A163: 153 | B163: FLFL | C163: 407.2 | D163: 407.67 | E163: 400.53 | F163: 393.87 | G163: 386.73 | H163: 414.33 | I163: 421.47 | J163: 428.13 | K163: 414.8 | L163: 401 | M163: 0.15929
A164: 154 | B164: FRETAIL | C164: 378.8 | D164: 379.27 | E164: 377.03 | F164: 375.27 | G164: 373.03 | H164: 381.03 | I164: 383.27 | J164: 385.03 | K164: 381.5 | L164: 377.5 | M164: 3.54326
A165: 155 | B165: GAIL | C165: 137.05 | D165: 137.70 | E165: 135.65 | F165: 134.25 | G165: 132.20 | H165: 139.10 | I165: 141.15 | J165: 142.55 | K165: 139.75 | L165: 136.3 | M165: 70.28979
A166: 156 | B166: GEPIL | C166: 717.7 | D166: 715.22 | E166: 705.03 | F166: 692.37 | G166: 682.18 | H166: 727.88 | I166: 738.07 | J166: 750.73 | K166: 725.4 | L166: 702.55 | M166: 0.11725
A167: 157 | B167: GET&D | C167: 199.45 | D167: 201.88 | E167: 195.77 | F167: 192.08 | G167: 185.97 | H167: 205.57 | I167: 211.68 | J167: 215.37 | K167: 208 | L167: 198.2 | M167: 0.24232
A168: 158 | B168: GHCL | C168: 212.75 | D168: 213.58 | E168: 211.27 | F168: 209.78 | G168: 207.47 | H168: 215.07 | I168: 217.38 | J168: 218.87 | K168: 215.9 | L168: 212.1 | M168: 0.6776
A169: 159 | B169: GMRINFRA | C169: 20.85 | D169: 20.93 | E169: 20.67 | F169: 20.48 | G169: 20.22 | H169: 21.12 | I169: 21.38 | J169: 21.57 | K169: 21.2 | L169: 20.75 | M169: 99.70982
A170: 160 | B170: GALAXYSURF | C170: 1502.95 | D170: 1511.08 | E170: 1475.17 | F170: 1447.38 | G170: 1411.47 | H170: 1538.87 | I170: 1574.78 | J170: 1602.57 | K170: 1547 | L170: 1483.3 | M170: 0.07251
A171: 161 | B171: GARFIBRES | C171: 1200.8 | D171: 1195.25 | E171: 1180.55 | F171: 1160.30 | G171: 1145.60 | H171: 1215.50 | I171: 1230.20 | J171: 1250.45 | K171: 1209.95 | L171: 1175 | M171: 0.03389
A172: 162 | B172: GAYAPROJ | C172: 122.8 | D172: 122.58 | E172: 120.22 | F172: 117.63 | G172: 115.27 | H172: 125.17 | I172: 127.53 | J172: 130.12 | K172: 124.95 | L172: 120 | M172: 3.15635
A173: 163 | B173: GICRE | C173: 293 | D173: 298.97 | E173: 286.03 | F173: 279.07 | G173: 266.13 | H173: 305.93 | I173: 318.87 | J173: 325.83 | K173: 311.9 | L173: 292 | M173: 4.99905
A174: 164 | B174: GILLETTE | C174: 7937.85 | D174: 7962.12 | E174: 7905.73 | F174: 7873.62 | G174: 7817.23 | H174: 7994.23 | I174: 8050.62 | J174: 8082.73 | K174: 8018.5 | L174: 7930 | M174: 0.03102
A175: 165 | B175: GLAXO | C175: 1650.8 | D175: 1661.67 | E175: 1630.33 | F175: 1609.87 | G175: 1578.53 | H175: 1682.13 | I175: 1713.47 | J175: 1733.93 | K175: 1693 | L175: 1641.2 | M175: 0.33393
A176: 166 | B176: GLENMARK | C176: 316.15 | D176: 318.07 | E176: 313.18 | F176: 310.22 | G176: 305.33 | H176: 321.03 | I176: 325.92 | J176: 328.88 | K176: 322.95 | L176: 315.1 | M176: 8.12407
A177: 167 | B177: GODFRYPHLP | C177: 1101.6 | D177: 1106.15 | E177: 1077.90 | F177: 1054.20 | G177: 1025.95 | H177: 1129.85 | I177: 1158.10 | J177: 1181.80 | K177: 1134.4 | L177: 1082.45 | M177: 0.55263
A178: 168 | B178: GODREJAGRO | C178: 519 | D178: 517.37 | E178: 512.78 | F178: 506.57 | G178: 501.98 | H178: 523.58 | I178: 528.17 | J178: 534.38 | K178: 521.95 | L178: 511.15 | M178: 0.64306
A179: 169 | B179: GODREJCP | C179: 721 | D179: 726.78 | E179: 712.72 | F179: 704.43 | G179: 690.37 | H179: 735.07 | I179: 749.13 | J179: 757.42 | K179: 740.85 | L179: 718.5 | M179: 8.63358
A180: 170 | B180: GODREJIND | C180: 424.35 | D180: 423.33 | E180: 418.17 | F180: 411.98 | G180: 406.82 | H180: 429.52 | I180: 434.68 | J180: 440.87 | K180: 428.5 | L180: 417.15 | M180: 1.05219
A181: 171 | B181: GODREJPROP | C181: 985.7 | D181: 989.90 | E181: 973.80 | F181: 961.90 | G181: 945.80 | H181: 1001.80 | I181: 1017.90 | J181: 1029.80 | K181: 1006 | L181: 978 | M181: 1.23475
A182: 172 | B182: GRANULES | C182: 123.4 | D182: 123.43 | E182: 120.97 | F182: 118.53 | G182: 116.07 | H182: 125.87 | I182: 128.33 | J182: 130.77 | K182: 125.9 | L182: 121 | M182: 10.6925
A183: 173 | B183: GRAPHITE | C183: 299.3 | D183: 299.42 | E183: 287.93 | F183: 276.57 | G183: 265.08 | H183: 310.78 | I183: 322.27 | J183: 333.63 | K183: 310.9 | L183: 288.05 | M183: 38.54173
A184: 174 | B184: GRASIM | C184: 783.8 | D184: 786.57 | E184: 777.23 | F184: 770.67 | G184: 761.33 | H184: 793.13 | I184: 802.47 | J184: 809.03 | K184: 795.9 | L184: 780 | M184: 25.04708
A185: 175 | B185: GESHIP | C185: 292.4 | D185: 293.55 | E185: 289.10 | F185: 285.80 | G185: 281.35 | H185: 296.85 | I185: 301.30 | J185: 304.60 | K185: 298 | L185: 290.25 | M185: 1.63324
A186: 176 | B186: GREAVESCOT | C186: 136.65 | D186: 137.40 | E186: 134.80 | F186: 132.95 | G186: 130.35 | H186: 139.25 | I186: 141.85 | J186: 143.70 | K186: 140 | L186: 135.55 | M186: 7.77103
A187: 177 | B187: GRINDWELL | C187: 604.05 | D187: 601.92 | E187: 595.78 | F187: 587.52 | G187: 581.38 | H187: 610.18 | I187: 616.32 | J187: 624.58 | K187: 608.05 | L187: 593.65 | M187: 2.10566
A188: 178 | B188: GUJALKALI | C188: 469.2 | D188: 470.93 | E188: 462.27 | F188: 455.33 | G188: 446.67 | H188: 477.87 | I188: 486.53 | J188: 493.47 | K188: 479.6 | L188: 464 | M188: 0.91872
A189: 179 | B189: GUJGASLTD | C189: 205.4 | D189: 203.45 | E189: 198.95 | F189: 192.50 | G189: 188.00 | H189: 209.90 | I189: 214.40 | J189: 220.85 | K189: 207.95 | L189: 197 | M189: 11.32433
A190: 180 | B190: GMDCLTD | C190: 64.5 | D190: 64.60 | E190: 63.40 | F190: 62.30 | G190: 61.10 | H190: 65.70 | I190: 66.90 | J190: 68.00 | K190: 65.8 | L190: 63.5 | M190: 1.66747
A191: 181 | B191: GNFC | C191: 219.4 | D191: 220.23 | E191: 215.97 | F191: 212.53 | G191: 208.27 | H191: 223.67 | I191: 227.93 | J191: 231.37 | K191: 224.5 | L191: 216.8 | M191: 5.2518
A192: 182 | B192: GPPL | C192: 88.55 | D192: 88.15 | E192: 87.40 | F192: 86.25 | G192: 85.50 | H192: 89.30 | I192: 90.05 | J192: 91.20 | K192: 88.9 | L192: 87 | M192: 1.84101
A193: 183 | B193: GSFC | C193: 81.45 | D193: 81.93 | E193: 80.57 | F193: 79.68 | G193: 78.32 | H193: 82.82 | I193: 84.18 | J193: 85.07 | K193: 83.3 | L193: 81.05 | M193: 3.95554
A194: 184 | B194: GSPL | C194: 220.9 | D194: 218.80 | E194: 215.60 | F194: 210.30 | G194: 207.10 | H194: 224.10 | I194: 227.30 | J194: 232.60 | K194: 222 | L194: 213.5 | M194: 7.30354
A195: 185 | B195: GULFOILLUB | C195: 885 | D195: 880.33 | E195: 871.67 | F195: 858.33 | G195: 849.67 | H195: 893.67 | I195: 902.33 | J195: 915.67 | K195: 889 | L195: 867 | M195: 0.24983
A196: 186 | B196: HEG | C196: 1026.45 | D196: 1029.48 | E196: 992.97 | F196: 959.48 | G196: 922.97 | H196: 1062.97 | I196: 1099.48 | J196: 1132.97 | K196: 1066 | L196: 996 | M196: 9.64997
A197: 187 | B197: HCLTECH | C197: 1155.9 | D197: 1158.08 | E197: 1149.87 | F197: 1143.83 | G197: 1135.62 | H197: 1164.12 | I197: 1172.33 | J197: 1178.37 | K197: 1166.3 | L197: 1152.05 | M197: 15.11084
A198: 188 | B198: HDFCAMC | C198: 2946.95 | D198: 2953.65 | E198: 2922.30 | F198: 2897.65 | G198: 2866.30 | H198: 2978.30 | I198: 3009.65 | J198: 3034.30 | K198: 2985 | L198: 2929 | M198: 2.30017
A199: 189 | B199: HDFCBANK | C199: 1236.85 | D199: 1238.63 | E199: 1227.27 | F199: 1217.68 | G199: 1206.32 | H199: 1248.22 | I199: 1259.58 | J199: 1269.17 | K199: 1250 | L199: 1229.05 | M199: 49.67588
A200: 190 | B200: HDFCLIFE | C200: 593.3 | D200: 599.13 | E200: 582.57 | F200: 571.83 | G200: 555.27 | H200: 609.87 | I200: 626.43 | J200: 637.17 | K200: 615.7 | L200: 588.4 | M200: 120.53809
A201: 191 | B201: HATHWAY | C201: 21.4 | D201: 21.40 | E201: 21.00 | F201: 20.60 | G201: 20.20 | H201: 21.80 | I201: 22.20 | J201: 22.60 | K201: 21.8 | L201: 21 | M201: 2.05198
A202: 192 | B202: HATSUN | C202: 604.3 | D202: 604.98 | E202: 600.42 | F202: 596.53 | G202: 591.97 | H202: 608.87 | I202: 613.43 | J202: 617.32 | K202: 609.55 | L202: 601.1 | M202: 0.03813
A203: 193 | B203: HAVELLS | C203: 693.7 | D203: 692.17 | E203: 687.33 | F203: 680.97 | G203: 676.13 | H203: 698.53 | I203: 703.37 | J203: 709.73 | K203: 697 | L203: 685.8 | M203: 8.30617
A204: 194 | B204: HEIDELBERG | C204: 191 | D204: 189.85 | E204: 186.40 | F204: 181.80 | G204: 178.35 | H204: 194.45 | I204: 197.90 | J204: 202.50 | K204: 193.3 | L204: 185.25 | M204: 3.43218
A205: 195 | B205: HERITGFOOD | C205: 343.85 | D205: 337.50 | E205: 327.85 | F205: 311.85 | G205: 302.20 | H205: 353.50 | I205: 363.15 | J205: 379.15 | K205: 347.15 | L205: 321.5 | M205: 3.85779
A206: 196 | B206: HEROMOTOCO | C206: 2643.5 | D206: 2665.48 | E206: 2616.02 | F206: 2588.53 | G206: 2539.07 | H206: 2692.97 | I206: 2742.43 | J206: 2769.92 | K206: 2714.95 | L206: 2638 | M206: 7.60461
... 320 more rows

Sheet Bulk Deals
E6: Back To Main Page
A7: Subject : | B7: BULK DEAL | D7: =Main!B10 -> 2019-11-05
A9: Date | B9: Scrip code | C9: Scrip Name | D9: Client Name | E9: Buy / Sell | F9: Quantity Traded | G9: Trade Price / Wt.Avg.trade price | H9: Exchange
A10: 2019-11-04 | B10: 538716 | C10: ARYACAPM | D10: PARESH BABULAL SHAH | E10: SELL | F10: 65,000 | G10: 30.00 | H10: BSE
A11: 2019-11-04 | B11: 538716 | C11: ARYACAPM | D11: VARSHABEN J THOBHANI | E11: BUY | F11: 160,000 | G11: 30.70 | H11: BSE
A12: 2019-11-04 | B12: 500093 | C12: CGPOWER | D12: L&T FINANCE LIMITED | E12: BUY | F12: 62,600,000 | G12: 13.97 | H12: BSE
A13: 2019-11-04 | B13: 500093 | C13: CGPOWER | D13: VISTRA ITCL INDIA LIMITED | E13: SELL | F13: 62,600,000 | G13: 13.97 | H13: BSE
A14: 2019-11-04 | B14: 533144 | C14: COX&KINGS | D14: ALPHA LEON ENTERPRISES LLP | E14: BUY | F14: 6,111,816 | G14: 1.46 | H14: BSE
A15: 2019-11-04 | B15: 533144 | C15: COX&KINGS | D15: ALPHA LEON ENTERPRISES LLP | E15: SELL | F15: 2,531,816 | G15: 1.53 | H15: BSE
A16: 2019-11-04 | B16: 533144 | C16: COX&KINGS | D16: TANISH TRADEFIN LLP | E16: BUY | F16: 1,500,000 | G16: 1.48 | H16: BSE
A17: 2019-11-04 | B17: 533144 | C17: COX&KINGS | D17: TANISH TRADEFIN LLP | E17: SELL | F17: 303,313 | G17: 1.53 | H17: BSE
A18: 2019-11-04 | B18: 533144 | C18: COX&KINGS | D18: SWAPNIL MEHTA | E18: BUY | F18: 2,527,006 | G18: 1.51 | H18: BSE
A19: 2019-11-04 | B19: 533144 | C19: COX&KINGS | D19: SWAPNIL MEHTA | E19: SELL | F19: 527,006 | G19: 1.47 | H19: BSE
A20: 2019-11-04 | B20: 533144 | C20: COX&KINGS | D20: MULTIPLIER SHARE & STOCK ADVISORS PRIVATE LIMITED | E20: BUY | F20: 2,556,236 | G20: 1.49 | H20: BSE
A21: 2019-11-04 | B21: 533144 | C21: COX&KINGS | D21: MULTIPLIER SHARE & STOCK ADVISORS PRIVATE LIMITED | E21: SELL | F21: 2,272,552 | G21: 1.50 | H21: BSE
A22: 2019-11-04 | B22: 533144 | C22: COX&KINGS | D22: NEW HORIZON OPPORTUNITIES MASTER FUND | E22: SELL | F22: 1,150,000 | G22: 1.48 | H22: BSE
A23: 2019-11-04 | B23: 533144 | C23: COX&KINGS | D23: PRITESH PRAVIN VORA | E23: BUY | F23: 900,000 | G23: 1.49 | H23: BSE
A24: 2019-11-04 | B24: 533144 | C24: COX&KINGS | D24: PRITESH PRAVIN VORA | E24: SELL | F24: 500,000 | G24: 1.53 | H24: BSE
A25: 2019-11-04 | B25: 533144 | C25: COX&KINGS | D25: XANDER FINANCE PRIVATE LIMITED | E25: SELL | F25: 4,000,000 | G25: 1.48 | H25: BSE
A26: 2019-11-04 | B26: 533144 | C26: COX&KINGS | D26: LETKO BROSSEAU EMERGING MARKETS EQUITY FUND | E26: SELL | F26: 2,232,613 | G26: 1.49 | H26: BSE
A27: 2019-11-04 | B27: 539770 | C27: DARJEELING | D27: VIDHI NIKUNJ SHAH | E27: BUY | F27: 18,929 | G27: 84.24 | H27: BSE
A28: 2019-11-04 | B28: 539770 | C28: DARJEELING | D28: VIDHI NIKUNJ SHAH | E28: SELL | F28: 10 | G28: 86.8 | H28: BSE
A29: 2019-11-04 | B29: 539032 | C29: FRASER | D29: RESOURCE OPZIONE CONSULTANCY PRIVATE LIMITED | E29: SELL | F29: 51,855 | G29: 14.67 | H29: BSE
A30: 2019-11-04 | B30: 526859 | C30: ISFL | D30: VISHAL DANG | E30: BUY | F30: 2,700,000 | G30: 0.36 | H30: BSE
A31: 2019-11-04 | B31: 526859 | C31: ISFL | D31: SIMBAL SINGH | E31: SELL | F31: 2,698,951 | G31: 0.36 | H31: BSE
A32: 2019-11-04 | B32: 538765 | C32: JSHL | D32: VIVEK DWIVEDI | E32: BUY | F32: 35,000 | G32: 10.35 | H32: BSE
A33: 2019-11-04 | B33: 538765 | C33: JSHL | D33: VIVEK DWIVEDI | E33: SELL | F33: 35,000 | G33: 10.25 | H33: BSE
A34: 2019-11-04 | B34: 540192 | C34: LKPSEC | D34: SAYANTA BASU | E34: SELL | F34: 917,352 | G34: 5.51 | H34: BSE
A35: 2019-11-04 | B35: 540192 | C35: LKPSEC | D35: HAS LIFESTYLE LIMITED | E35: BUY | F35: 917,352 | G35: 5.51 | H35: BSE
A36: 2019-11-04 | B36: 514330 | C36: OBRSESY | D36: RAHUL ANANTRAI MEHTA | E36: SELL | F36: 44,045 | G36: 5.78 | H36: BSE
A37: 2019-11-04 | B37: 514330 | C37: OBRSESY | D37: HEMAL ARUNBHAI MEHTA | E37: BUY | F37: 50,000 | G37: 5.78 | H37: BSE
A38: 2019-11-04 | B38: 538452 | C38: QUASAR | D38: KAILASH CHAND MITTAL | E38: SELL | F38: 30,000 | G38: 9.87 | H38: BSE
A39: 2019-11-04 | B39: 539814 | C39: RADHEY | D39: SHIV PARVATI LEASING PRIVATE LIMITED | E39: SELL | F39: 65,000 | G39: 19.8 | H39: BSE
A40: 2019-11-04 | B40: 540175 | C40: REGENCY | D40: NEHA ABROL | E40: BUY | F40: 26,900 | G40: 29.57 | H40: BSE
A41: 2019-11-04 | B41: 542725 | C41: SBC | D41: SANDEEP KUMAR SRIVASTAVA | E41: SELL | F41: 66,000 | G41: 25.7 | H41: BSE
A42: 2019-11-04 | B42: 542725 | C42: SBC | D42: VRIDHI KUJUR | E42: BUY | F42: 78,000 | G42: 25.7 | H42: BSE
A43: 2019-11-04 | B43: 542725 | C43: SBC | D43: VRIDHI KUJUR | E43: SELL | F43: 36,000 | G43: 25.7 | H43: NSE
A44: 2019-11-04 | B44: 540253 | C44: SNTCL | D44: FASTNER MACHINERY DEALERS PVT LIMITED | E44: SELL | F44: 40,000 | G44: 8.3 | H44: NSE
A45: 2019-11-04 | B45: 539026 | C45: SSPNFIN | D45: SANDESH ASHOK NANDODE | E45: BUY | F45: 6,000 | G45: 74.2 | H45: NSE
A46: 2019-11-04 | B46: 539026 | C46: SSPNFIN | D46: SANDESH ASHOK NANDODE | E46: SELL | F46: 12,000 | G46: 69.6 | H46: NSE
A47: 2019-11-04 | B47: 539026 | C47: SSPNFIN | D47: DEVJEET CHAKRABORTY | E47: BUY | F47: 12,000 | G47: 72.75 | H47: NSE
A48: 2019-11-04 | B48: 539026 | C48: SSPNFIN | D48: DEVJEET CHAKRABORTY | E48: SELL | F48: 6,000 | G48: 74.1 | H48: NSE
A49: 2019-11-04 | B49: 532144 | C49: WELCORP | D49: MILLENNIUM STOCK BROKING PVT LTD | E49: BUY | F49: 1,652,093 | G49: 141.86 | H49: NSE
A50: 2019-11-04 | B50: 532144 | C50: WELCORP | D50: MILLENNIUM STOCK BROKING PVT LTD | E50: SELL | F50: 226,509 | G50: 144.02 | H50: NSE
A51: 2019-11-04 | B51: 532144 | C51: WELCORP | D51: GRANELE LIMITED | E51: SELL | F51: 13,300,000 | G51: 140.6 | H51: NSE
A52: 2019-11-04 | B52: 532648 | C52: YESBANK | D52: RAKESH RADHEYSHYAM JHUNJHUNWALA | E52: BUY | F52: 12,950,000 | G52: 67.1 | H52: NSE
A53: 2019-11-04 | B53: IBULHSGFIN | C53: Indiabulls Hsg Fin Ltd | D53: TOWER RESEARCH CAPITAL MARKETS INDIA PRIVATE LIMITED | E53: BUY | F53: 2,588,790 | G53: 221.59 | H53: NSE
A54: 2019-11-04 | B54: JINDALSTEL | C54: Jindal Steel & Power | D54: SURJECTIVE RESEARCH CAPITAL LLP | E54: BUY | F54: 6,103,976 | G54: 133.66 | H54: NSE
A55: 2019-11-04 | B55: JINDALSTEL | C55: Jindal Steel & Power | D55: TOWER RESEARCH CAPITAL MARKETS INDIA PRIVATE LIMITED | E55: BUY | F55: 5,153,918 | G55: 132.24 | H55: NSE
A56: 2019-11-04 | B56: WELCORP | C56: Welspun Corp Limited | D56: ABU DHABI INVESTMENT AUTHORITY-GOLDMAN SACHS ASSET MANAGEMENT- GANGES | E56: BUY | F56: 3,694,817 | G56: 142.85 | H56: NSE
A57: 2019-11-04 | B57: WELCORP | C57: Welspun Corp Limited | D57: MILLENNIUM STOCK BROKING PVT LTD | E57: BUY | F57: 217,136 | G57: 143.92 | H57: NSE
A58: 2019-11-04 | B58: YESBANK | C58: Yes Bank Limited | D58: TOWER RESEARCH CAPITAL MARKETS INDIA PRIVATE LIMITED | E58: BUY | F58: 22,103,839 | G58: 66.22 | H58: NSE
A59: 2019-11-04 | B59: YESBANK | C59: Yes Bank Limited | D59: SURJECTIVE RESEARCH CAPITAL LLP | E59: BUY | F59: 23,890,911 | G59: 66.43 | H59: NSE
A60: 2019-11-04 | B60: YESBANK | C60: Yes Bank Limited | D60: ALPHAGREP SECURITIES PRIVATE LIMITED | E60: BUY | F60: 13,967,643 | G60: 66.42 | H60: NSE
A61: 2019-11-04 | B61: IBULHSGFIN | C61: Indiabulls Hsg Fin Ltd | D61: TOWER RESEARCH CAPITAL MARKETS INDIA PRIVATE LIMITED | E61: SELL | F61: 2,559,143 | G61: 221.61 | H61: NSE
A62: 2019-11-04 | B62: JINDALSTEL | C62: Jindal Steel & Power | D62: TOWER RESEARCH CAPITAL MARKETS INDIA PRIVATE LIMITED | E62: SELL | F62: 5,181,082 | G62: 132.34 | H62: NSE
A63: 2019-11-04 | B63: JINDALSTEL | C63: Jindal Steel & Power | D63: SURJECTIVE RESEARCH CAPITAL LLP | E63: SELL | F63: 6,094,317 | G63: 133.83 | H63: NSE
A64: 2019-11-04 | B64: WELCORP | C64: Welspun Corp Limited | D64: MILLENNIUM STOCK BROKING PVT LTD | E64: SELL | F64: 1642720 | G64: 142.42 | H64: NSE
A65: 2019-11-04 | B65: WELCORP | C65: Welspun Corp Limited | D65: GRANELE LIMITED | E65: SELL | F65: 4700000 | G65: 142.75 | H65: NSE
A66: 2019-11-04 | B66: YESBANK | C66: Yes Bank Limited | D66: ALPHAGREP SECURITIES PRIVATE LIMITED | E66: SELL | F66: 13965771 | G66: 66.45 | H66: NSE
A67: 2019-11-04 | B67: YESBANK | C67: Yes Bank Limited | D67: SURJECTIVE RESEARCH CAPITAL LLP | E67: SELL | F67: 23881148 | G67: 66.43 | H67: NSE
A68: 2019-11-04 | B68: YESBANK | C68: Yes Bank Limited | D68: TOWER RESEARCH CAPITAL MARKETS INDIA PRIVATE LIMITED | E68: SELL | F68: 21418695 | G68: 66.25 | H68: NSE

Sheet Call Tracker (Equity & F&O)
M5: Back To Main Page
A6: Retail Research Technical Calls & Fundamental Performance Report for the month of November-2019
M7: =Main!B10 -> 2019-11-05
B8: Positional Call
A9: Sr.no | B9: Date | D9: Company | E9: Rec | F9: Rec Price | G9: Stop Loss*** | H9: Call Closed At | I9: Target | J9: Remark | K9: Profit / Loss per Share | L9: Gain / Loss % | M9: Status | N9: Closed Date | O9: NSE Closed Price
A10: 1 | B10: 2019-09-26 | D10: HDFC | E10: Buy | F10: 2070 | G10: 1940 | H10: 2165 | I10: 2250-2300 | J10: Profit of Rs.95/- | K10: =H10-F10 -> 95 | L10: =K10/F10 -> 4.59% | M10: Successful | N10: 2019-11-01 | O10: =VLOOKUP(D10,Sheet2!A43:M1682,6,0) -> 2181.3 | R10: H
A11: 2 | B11: 2019-10-01 | D11: UPL | E11: Buy | F11: 592-598 | G11: 564 | I11: 650-660 | J11: Open | O11: =VLOOKUP(D11,Sheet2!A47:M1686,6,0) -> 594.25 | R11: R
A12: 3 | B12: 2019-10-07 | D12: PIDILITIND | E12: Buy | F12: 1367.5 | G12: 1297 | H12: 1413.5 | I12: 1500-1520 | J12: Part Profit of Rs.46/- | K12: =H12-F12 -> 46 | L12: =K12/F12 -> 3.36% | M12: Successful | N12: 2019-10-31 | O12: =VLOOKUP(D12,Sheet2!A51:M1690,6,0) -> 1399.45 | R12: R
A13: 4 | B13: 2019-10-22 | D13: HEIDELBERG | E13: Buy | F13: 187.50-189.50 | G13: 178 | I13: 205-210 | J13: Open | O13: =VLOOKUP(D13,Sheet2!A58:M1697,6,0) -> 191 | R13: H
A14: 5 | B14: 2019-10-27 | D14: AMBUJACEM | E14: Buy | F14: 197 | G14: 185.4 | H14: 203.5 | I14: 216-220 | J14: Part Profit of Rs.6.5/- | K14: =H14-F14 -> 6.5 | L14: =K14/F14 -> 3.30% | M14: Successful | N14: 2019-10-30 | O14: =VLOOKUP(D14,Sheet2!A60:M1699,6,0) -> 203.35 | R14: R
A15: 6 | B15: 2019-11-04 | D15: UBL | E15: Buy | F15: 1237-1243 | G15: 1178 | I15: 1340-1360 | J15: Open | O15: =VLOOKUP(D15,Sheet2!A60:M1699,6,0) -> 1233.7 | R15: H
A30: CLBS = Closing Basis ***
A31: Dividend adjusted <> | F31: Reinitiated $
A32: Part book {} | F32: Revised stoploss #
B34: Momentum Call
A35: Sr.no | B35: Date | D35: Company | E35: Rec | F35: Rec Price | G35: Stop Loss | H35: Call Closed At | I35: Target | J35: Remark | K35: Profit / Loss per Share/Lot | L35: Gain / Loss % | M35: Gain / Loss per Lot | N35: Lot | O35: Status | P35: Closed Date
A36: 1 | B36: 2019-10-29 | D36: RELIANCE | E36: Sell | F36: 1445-1450 | G36: 1505 | I36: 1380-1350 | J36: Open | R36: H
A37: 2 | B37: 2019-10-29 | D37: INDUSINDBK | E37: Buy | F37: 1319 | G37: 1278 | H37: 1347.5 | I37: 1370-1390 | J37: Profit of Rs.28.5/- | K37: =H37-F37 -> 28.5 | L37: =K37/F37 -> 2.16% | O37: Successful | P37: 2019-11-01 | R37: H
A38: 3 | B38: 2019-10-30 | D38: POWERGRID | E38: Buy | F38: 199-200 | G38: 194.5 | I38: 210 | J38: Open | R38: H
A39: 4 | B39: 2019-10-31 | D39: MFSL NOV FUT | E39: Buy | F39: 407 | G39: 396 | H39: 414 | I39: 425 | J39: Profit of Rs.7/- | K39: 7 | M39: =N39*K39 -> 8400 | N39: 1200 | O39: Successful | P39: 2019-11-04 | R39: N
A40: 5 | B40: 2019-10-31 | D40: HDFCBANK NOV FUT | E40: Buy | F40: 1238-1240 | G40: 1215 | I40: 1280 | J40: Open | R40: N
A41: 6 | B41: 2019-11-01 | D41: TORNTPOWER NOV FUT | E41: Sell | F41: 285 | G41: 289 | H41: 282 | I41: 276 | J41: Profit of Rs.3/- | K41: =F41-H41 -> 3 | M41: =N41*K41 -> 9000 | N41: 3000 | O41: Successful | P41: 2019-11-01 | R41: N
A42: 7 | B42: 2019-11-01 | D42: SBIN | E42: Sell | F42: 313-315 | G42: 322 | I42: 300-395 | J42: Open | R42: R
A43: 8 | B43: 2019-11-04 | D43: AXISBANK NOV FUT | E43: Sell | F43: 749 | G43: 758.3 | H43: 742.5 | I43: 733 | J43: Profit of Rs.6.50/- | K43: =F43-H43 -> 6.5 | M43: =N43*K43 -> 7800 | N43: 1200 | O43: Successful | P43: 2019-11-04 | R43: R
A44: 9 | B44: 2019-11-04 | D44: COLPAL NOV FUT | E44: Buy | F44: 1527.5 | G44: 1510 | H44: 1539 | I44: 1560 | J44: Profit of Rs.11.50/- | K44: =H44-F44 -> 11.5 | M44: =N44*K44 -> 8050 | N44: 700 | O44: Successful | P44: 2019-11-04 | R44: N
A45: 10 | B45: 2019-11-04 | D45: LUPIN | E45: Buy | F45: 760-765 | G45: 747 | I45: 790-800 | J45: Open | R45: H
A46: 11 | B46: 2019-11-04 | D46: MARUTI | E46: Sell | F46: 7510-7520 | G46: 7777.7 | I46: 7100-7000 | J46: Open | R46: R
A47: 12 | B47: 2019-11-04 | D47: BANKBARODA | E47: Sell | F47: 101-102 | G47: 105 | I47: 97-95 | J47: Open | R47: H
A48: 13 | B48: 2019-11-04 | D48: COALINDIA | E48: Sell | F48: 210-212 | G48: 216.3 | I48: 200-198 | J48: Open | R48: R
A52: CLBS = Closing Basis ***
A53: Dividend adjusted <> | F53: Reinitiated $
F54: Revised stoploss #
A56: Master Trade High Risk
A57: Sr.no | B57: Date | D57: Company | E57: Rec | F57: Rec Price | G57: Stop Loss | H57: Call Closed At | I57: Target | J57: Remark | K57: Profit / Loss per share | L57: Gain / Loss per Lot | M57: Lot | N57: Status | O57: Closed Date
A58: 1 | B58: 2019-10-30 | D58: BAJAJ-AUTO NOV FUT | E58: Sell | F58: 3240 | G58: 3360 | H58: 3205 | I58: 3040 | J58: Profit of Rs.36.50/- | K58: =F58-H58 -> 35 | L58: =M58*36.5 -> 9125 | M58: 250 | N58: Successful | O58: 2019-11-04 | R58: H
D59: BAJAJ-AUTO 3100 PE NOV | E59: Sell | F59: 49.50 | H59: 48 | K59: =F59-H59 -> 1.5 | R59: H
A60: 2 | B60: 2019-10-30 | D60: LT NOV FUT | E60: Buy | F60: 1474-1479 | G60: 1418 | I60: 1550 | J60: Open | R60: H
D61: LT 1520 CE NOV | E61: Sell | F61: 27-29 | R61: H
A62: 3 | B62: 2019-10-30 | D62: HEROMOTOCO NOV FUT | E62: Buy | F62: 2715 | G62: 2640 | H62: 2747.5 | I62: 2900 | J62: Profit of Rs.27.50/- | K62: =H62-F62 -> 32.5 | L62: =M62*27.5 -> 5500 | M62: 200 | N62: Successful | O62: 2019-11-01 | R62: N
D63: HEROMOTOCO 2850 CE NOV | E63: Sell | F63: 55 | H63: 60 | K63: =F63-H63 -> -5 | R63: N
A64: 4 | B64: 2019-10-31 | D64: AXISBANK NOV FUT | E64: Buy | F64: 738 | G64: 718 | H64: 743.5 | I64: 760 | J64: Profit of Rs.5/- | K64: =H64-F64 -> 5.5 | L64: =M64*5 -> 6000 | M64: 1200 | N64: Successful | O64: 2019-11-01 | R64: H
D65: AXISBANK 760 CE NOV | E65: Sell | F65: 17.50 | H65: 18 | K65: =F65-H65 -> -0.5 | R65: H
A66: 5 | B66: 2019-11-01 | D66: NIFTY NOV FUT | E66: Sell | F66: 11905-11910 | G66: 12060 | I66: 11700 | J66: Open | R66: H
D67: Nifty 11750 PE 14-NOV | E67: Sell | F67: 76-80 | R67: H
A68: 6
A91: Master Trade Medium Risk
A92: Sr.no | B92: Date | D92: Company | E92: Rec | F92: Rec Price | G92: Stop Loss | H92: Call Closed At | I92: Target | J92: Remark | K92: Profit/ Loss per lot | L92: Gain / Loss per Lot | M92: Lot | N92: Status | O92: Closed Date
A93: 1 | B93: 2019-11-01 | D93: INFRATEL NOV 200 CE | E93: Buy | F93: 16.50 | H93: 21.5 | J93: Profit of Rs.2/- | K93: =H93-F93 -> 5 | L93: =2000*2 -> 4000 | M93: 2000 | N93: Successful | O93: 2019-11-04 | R93: H
D94: INFRATEL NOV 210 CE | E94: Sell | F94: 12.50 | H94: 15.5 | K94: -3 | R94: H
A95: 2 | B95: 2019-11-01 | D95: MARUTI NOV 7500 PE | E95: Buy | F95: 198-202 | J95: Open | R95: N
D96: MARUTI NOV 7300 PE | E96: Sell | F96: 130-135 | R96: N
A97: 3 | B97: 2019-11-01 | D97: BANKNIFTY 30000 PE 7-NOV | E97: Buy | F97: 250 | G97: 130 | H97: 130 | I97: 450-500 | J97: Loss of Rs.120/- | K97: =H97-F97 -> -120 | L97: =M97*K97 -> -2400 | M97: 20 | N97: Unsuccessful | O97: 2019-11-04 | R97: H
A98: 4 | B98: 2019-11-04 | D98: BANKNIFTY 14 NOV 30400 PE | E98: Buy | F98: 400-420 | J98: Open | R98: H
D99: BANKNIFTY 14 NOV 30100 PE | E99: Sell | F99: 295-305 | R99: H
A100: 5 | B100: 2019-11-04 | D100: MOTHERSUMI NOV 120 PE | E100: Buy | F100: 5.50-6.00 | J100: Open | R100: H
D101: MOTHERSUMI 115 PE | E101: Sell | F101: 4.00-4.20 | R101: H
A110: Techno -Funda (positional)
A111: Sr.no | B111: Date | D111: Company | E111: Rec | F111: Rec Price | G111: Stop Loss*** | H111: Call Closed At | I111: Target | J111: Remark | K111: Profit / Loss per Share | L111: Gain / Loss % | M111: Status | N111: Closed Date | O111: NSE Closed Price
A112: 1 | B112: 2019-08-13 | D112: ITC | E112: Buy | F112: 247 | G112: 228 | H112: 262.5 | I112: 290-300 | J112: Part Profit of Rs.15.5/- | K112: =H112-F112 -> 15.5 | L112: =K112/F112 -> 6.28% | M112: Successful | N112: 2019-10-01 | O112: =VLOOKUP(D112,Sheet2!A131:M1770,6,0) -> 260.75 | R112: H
A116: CLBS = Closing Basis *** | F116: Reinitiated $
A117: Dividend adjusted <> | F117: Revised stoploss #
B122: Investment Idea
A123: Sr.no | B123: Date | D123: Company | E123: Rec | F123: Rec Price | G123: Point of Review | H123: Close Rate | I123: Target | J123: Remark | K123: Profit / Loss per Share | L123: Gain / Loss % | M123: Status | N123: Closed Date
A124: 1 | B124: 2013-11-01 | D124: L&T Finance Holding | E124: Accu | F124: 82.00 | G124: - | H124: 100 | I124: 100.00 | J124: Target Achieved | K124: =H124-F124 -> 18.00 | L124: =K124/F124 -> 21.95% | M124: Successful | N124: 2016-10-14
A125: 2 | B125: 2014-06-04 | D125: Finolex Inds | E125: Buy | F125: 257.00 | G125: - | H125: 300 | I125: 300.00 | J125: Target Achieved | K125: 43.00 | L125: 16.73% | M125: Successful | N125: 2014-07-02
A126: 3 | B126: 2014-07-08 | D126: JK Cement | E126: Buy | F126: 393.00 | G126: - | H126: 468 | I126: 468.00 | J126: Target Achieved | K126: 75.00 | L126: 19.08% | M126: Successful | N126: 2014-08-12
A127: 4 | B127: 2014-08-06 | D127: Finolex Cables | E127: Buy | F127: 205.00 | G127: - | H127: 275 | I127: 250.00 | J127: Target Achieved | K127: 70.00 | L127: 34.15% | M127: Successful | N127: 2014-11-19
A128: 5 | B128: 2014-09-04 | D128: Exide Inds | E128: Buy | F128: 162.00 | G128: - | H128: 190 | I128: 190.00 | J128: Target Achieved | K128: 28.00 | L128: 17.28% | M128: Successful | N128: 2015-01-02
A129: 6 | B129: 2014-09-04 | D129: Deepak Nitrite | E129: Buy | F129: 75.00 | G129: - | H129: 91.5 | I129: 95-100 | J129: Profit of Rs.16.50/- | K129: 16.50 | L129: 22.00% | M129: Successful | N129: 2014-11-11
A130: 7 | B130: 2014-10-01 | D130: Mercks | E130: Buy | F130: 850.00 | G130: - | H130: 982.5 | I130: 1050.00 | J130: Profit of Rs.132.50/- | K130: 132.50 | L130: 15.59% | M130: Successful | N130: 2015-02-04
A131: 8 | B131: 2014-10-01 | D131: Grindwell Norton | E131: Buy | F131: 475.00 | G131: - | H131: 515 | I131: 600.00 | J131: Profit of Rs.40/- | K131: 40.00 | L131: 8.42% | M131: Successful | N131: 2014-10-27
A132: 9 | B132: 2014-10-01 | D132: Snowman Logistics | E132: Buy | F132: 86.00 | G132: - | H132: 99 | I132: 140.00 | J132: Profit of Rs.13.00/- | K132: 13.00 | L132: 15.12% | M132: Successful | N132: 2014-10-27
A133: 10 | B133: 2014-10-14 | D133: Birla Corp | E133: Buy | F133: 496.60 | G133: - | H133: 621 | I133: 580.00 | J133: Target Achieved | K133: 124.40 | L133: 25.05% | M133: Successful | N133: 2016-08-23
A134: 11 | B134: 2014-10-14 | D134: Ultratech Cem | E134: Buy | F134: 2481.90 | G134: - | H134: 2840 | I134: 2870.00 | J134: Profit of Rs.358.10/- | K134: 358.10 | L134: 14.43% | M134: Successful | N134: 2015-01-13
A135: 12 | B135: 2014-10-16 | D135: Sintex Inds | E135: Buy | F135: 84.50 | G135: - | H135: 93 | I135: 110.00 | J135: Profit of Rs.8.50/- | K135: 8.50 | L135: 10.06% | M135: Successful | N135: 2014-10-27
A136: 13 | B136: 2014-10-16 | D136: HSIL | E136: Buy | F136: 401.00 | G136: - | H136: 428 | I136: 450.00 | J136: Profit of Rs.27.00/- | K136: 27.00 | L136: 6.73% | M136: Successful | N136: 2015-01-16
A137: 14 | B137: 2014-10-16 | D137: Eveready Inds | E137: Buy | F137: 101.00 | G137: - | H137: 112 | I137: 120.00 | J137: Profit of Rs.11.00/- | K137: 11.00 | L137: 10.89% | M137: Successful | N137: 2014-10-27
A138: 15 | B138: 2014-11-11 | D138: Pennar Inds | E138: Buy | F138: 59.00 | G138: - | H138: 76 | I138: 76.00 | J138: Target Achieved | K138: 17.00 | L138: 28.81% | M138: Successful | N138: 2017-10-24
A139: 16 | B139: 2014-11-11 | D139: Snowman Logistics | E139: Buy | F139: 99.00 | G139: - | H139: 120 | I139: 120.00 | J139: Profit of Rs.21/- | K139: 21.00 | L139: 21.21% | M139: Successful | N139: 2014-11-17
A140: 17 | B140: 2014-11-13 | D140: Dharamsi Morarji Chem | E140: Buy | F140: 22.00 | G140: - | H140: 33.55 | I140: 32.00 | J140: Profit of Rs 11.55/- | K140: 11.55 | L140: 52.50% | M140: Successful | N140: 2015-07-03
A141: 18 | B141: 2014-12-03 | D141: Tatachem | E141: Buy | F141: 440.00 | G141: - | H141: 520 | I141: 520.00 | J141: Profit of Rs 80.00/- | K141: 80.00 | L141: 18.18% | M141: Successful | N141: 2015-07-23
A142: 19 | B142: 2014-12-03 | D142: Advanta | E142: Buy | F142: 360.00 | G142: - | H142: 427 | I142: 425.00 | J142: Profit of Rs.67.00/- | K142: 67.00 | L142: 18.61% | M142: Successful | N142: 2015-02-23
A143: 20 | B143: 2015-01-08 | D143: GDL | E143: Buy | F143: 360.00 | G143: - | H143: 455 | I143: 420.00 | J143: Profit of Rs.95.00/- | K143: 95.00 | L143: 26.39% | M143: Successful | N143: 2015-01-20
A144: 21 | B144: 2015-01-08 | D144: NRB Bearing | E144: Buy | F144: 130.00 | H144: 175.5 | I144: 165.00 | J144: Profit of Rs 45.50/- | K144: 45.50 | L144: 35.00% | M144: Successful | N144: 2017-12-19
A145: 22 | B145: 2015-02-05 | D145: GSFC | E145: Accu | F145: 98.00 | H145: 120 | I145: 120.00 | J145: Target Achieved | K145: 22.00 | L145: 22.45% | M145: Successful | N145: 2017-01-18
A146: 23 | B146: 2015-02-05 | D146: Sundrmfast | E146: Accu | F146: 196.00 | H146: 262 | I146: 255.00 | J146: Target Achieved | K146: 66.00 | L146: 33.67% | M146: Successful | N146: 2016-08-17
A147: 24 | B147: 2015-03-04 | D147: GPPL | E147: Accu | F147: 235 | H147: 77.00 | I147: 280-285 | J147: Loss of Rs.158/- | K147: -158.00 | L147: -67.23% | M147: Unsuccessful | N147: 2019-02-26
A148: 25 | B148: 2015-03-04 | D148: ORIENTCEM | E148: Accu | F148: 185.00 | H148: 224 | I148: 220-225 | J148: Target Achieved | K148: 39.00 | L148: 21.08% | M148: Successful | N148: 2016-10-04
A149: 26 | B149: 2015-03-27 | D149: PFS | E149: Accu | F149: 49.5 | H149: 15.85 | I149: 67.00 | J149: Loss of Rs.33.65/- | K149: -33.65 | L149: -68% | M149: Unsuccessful | N149: 2019-06-11
A150: 27 | B150: 2015-03-30 | D150: Walchandnagar Ind Ltd | E150: Accu | F150: 183.50 | H150: 219 | I150: 218.00 | J150: Profit of Rs.35.50/- | K150: 35.50 | L150: 19.35% | M150: Successful | N150: 2015-04-09
A151: 28 | B151: 2015-04-20 | D151: Kalpataru Power Transmission Ltd | E151: Accu | F151: =(227+237)/2 -> 232.00 | H151: 298 | I151: 298.00 | J151: Target Achieved | K151: 66.00 | L151: 28.45% | M151: Successful | N151: 2017-03-29
A152: 29 | B152: 2015-05-04 | D152: Mastek Ltd | E152: Buy | F152: 385.00 | H152: =212.5+331 -> 543.5 | I152: 510.00 | J152: Profit of Rs 158.50/- | K152: 158.50 | L152: 41.17% | M152: Successful | N152: 2015-08-19
A153: 30 | B153: 2015-05-04 | D153: Suprajit Eng | E153: Buy | F153: 115.50 | H153: 146 | I153: 142.00 | J153: Profit of Rs 30.50/- | K153: 30.50 | L153: 26.41% | M153: Successful | N153: 2015-07-17
A154: 31 | B154: 2015-05-27 | D154: TCI | E154: Buy | F154: 237.50 | H154: 279.5 | I154: 278.00 | J154: Target Achieved | K154: 42.00 | L154: 17.68% | M154: Successful | N154: 2015-08-06
A155: 32 | B155: 2015-06-19 | D155: HSIL | E155: Accu | F155: 340.00 | H155: 448 | I155: 448.00 | J155: Target Achieved | K155: 108.00 | L155: 31.76% | M155: Successful | N155: 2017-10-10
A156: 33 | B156: 2015-07-06 | D156: Capital First | E156: Accu | F156: 390.00 | H156: 460 | I156: 460.00 | J156: Target Achieved | K156: =H156-F156 -> 70.00 | L156: =K156/F156 -> 17.95% | M156: Successful | N156: 2016-04-18
A157: 34 | B157: 2015-07-10 | D157: Dolphin OffShore | E157: Accu | F157: 122.5 | H157: 61.00 | I157: 172.00 | J157: Loss of Rs.61.50/- | K157: -61.50 | L157: -50.20% | M157: Unsuccessful | N157: 2018-08-21
A158: 35 | B158: 2015-08-03 | D158: Allcargo logistics | E158: Accu | F158: 297.50 | H158: 350 | I158: 360.00 | J158: Profit of Rs 52.50/- | K158: 52.50 | L158: 17.65% | M158: Successful | N158: 2015-08-16
A159: 36 | B159: 2015-08-03 | D159: Camline Fine | E159: Accu | F159: 115.50 | H159: 149 | I159: 140.00 | J159: Profit of Rs 33.50/- | K159: 33.50 | L159: 29.00% | M159: Successful | N159: 2017-01-05
A160: 37 | B160: 2015-09-04 | D160: TCI | E160: Accu | F160: 226.00 | H160: 292 | I160: 292.00 | J160: Target Achieved | K160: 66.00 | L160: 29.20% | M160: Successful | N160: 2015-10-09
A161: 38 | B161: 2015-09-07 | D161: Kalpataru Power Transmission Ltd | E161: Accu | F161: 232.50 | H161: 312.5 | I161: 310.00 | J161: Target Achieved | K161: 80.00 | L161: 34.41% | M161: Successful | N161: 2017-03-29
A162: 39 | B162: 2015-09-21 | D162: LLOYD ELECTRIC & ENG LTD | E162: Accu | F162: 196.50 | H162: 238 | I162: 238.00 | J162: Target Achieved | K162: 41.50 | L162: 21.12% | M162: Successful | N162: 2015-10-14
A163: 40 | B163: 2015-09-24 | D163: L&T Finance Holding | E163: Accu | F163: 65.00 | H163: 82 | I163: 82.00 | J163: Target Achieved | K163: 17.00 | L163: 26.15% | M163: Successful | N163: 2016-07-27
A164: 41 | B164: 2015-10-14 | D164: KEC International ltd | E164: Accu | F164: 144.00 | H164: 182.5 | I164: 181.00 | J164: Target Achieved | K164: 38.50 | L164: 26.74% | M164: Successful | N164: 2017-03-23
A165: 42 | B165: 2015-10-14 | D165: Gruh Finance | E165: Accu | F165: 264.00 | H165: 311 | I165: 311.00 | J165: Target Achieved | K165: 47.00 | L165: 17.80% | M165: Successful | N165: 2016-08-22
A166: 43 | B166: 2015-11-10 | D166: Pidilitind | E166: Buy | F166: 549.50 | H166: 630 | I166: 630.00 | J166: Target Achieved | K166: 80.50 | L166: 14.65% | M166: Successful | N166: 2016-02-19
A167: 44 | B167: 2015-12-04 | D167: Zensar Technology | E167: Accu | F167: 1027.50 | H167: 1315 | I167: 1250.00 | J167: Target Achieved | K167: 287.50 | L167: 27.98% | M167: Successful | N167: 2018-05-24
A168: 45 | B168: 2015-12-29 | D168: Vinati Organics Ltd | E168: Accu | F168: 465.00 | H168: 540 | I168: 540.00 | J168: Target Achieved | K168: 75.00 | L168: 16.13% | M168: Successful | N168: 2016-06-09
A169: 46 | B169: 2016-01-11 | D169: GSFC | E169: Buy | F169: 81.00 | H169: 110 | I169: 110.00 | J169: Target Achieved | K169: 29.00 | L169: 35.80% | M169: Successful | N169: 2017-01-10
A170: 47 | B170: 2016-01-13 | D170: SSWL | E170: Buy | F170: 417.50 | H170: 547 | I170: 535.00 | J170: Target Achieved | K170: 129.50 | L170: 31.02% | M170: Successful | N170: 2016-07-27
A171: 48 | B171: 2016-02-08 | D171: Persistent System Ltd | E171: Accu | F171: 650.00 | H171: 800 | I171: 800.00 | J171: Target Achieved | K171: 150.00 | L171: 23.08% | M171: Successful | N171: 2018-02-23
A172: 49 | B172: 2016-03-04 | D172: UPL | E172: Accu | F172: 437.50 | H172: 504.5 | I172: 522.00 | J172: Profit of Rs.67/- | K172: 67.00 | L172: 15.31% | M172: Successful | N172: 2016-04-20
A173: 50 | B173: 2016-03-09 | D173: Ashoka Buildcon Ltd | E173: Accu | F173: 189.50 | H173: 218 | I173: 218.00 | J173: Target Achieved | K173: 28.50 | L173: 15.04% | M173: Successful | N173: 2017-10-26
A174: 51 | B174: 2016-04-11 | D174: PTC INDIA FIN SERV LTD | E174: Accu | F174: 36.5 | H174: 15.85 | I174: 60.00 | J174: Loss of Rs.20.65/- | K174: -20.65 | L174: -56.58% | M174: Unsuccessful | N174: 2019-06-11
A175: 52 | B175: 2016-04-12 | D175: CAMLINFINE $ | E175: Accu | F175: 93.00 | H175: 149 | I175: 140.00 | J175: Profit of Rs 56/- | K175: 56.00 | L175: 60.22% | M175: Successful | N175: 2017-01-05
A176: 53 | B176: 2016-04-12 | D176: Greaves Cotton Ltd. | E176: Accu | F176: 130.00 | H176: 150 | I176: 150-155 | J176: Target Achieved | K176: 20.00 | L176: 15.38% | M176: Successful | N176: 2016-07-13
A177: 54 | B177: 2016-04-13 | D177: DHFL | E177: Accu | F177: 196.00 | H177: 299 | I177: 299.00 | J177: Target Achieved | K177: 103.00 | L177: 52.55% | M177: Successful | N177: 2016-09-07
A178: 55 | B178: 2016-04-13 | D178: Magma | E178: Accu | F178: 88.00 | H178: 103 | I178: 103.00 | J178: Target Achieved | K178: 15.00 | L178: 17.05% | M178: Successful | N178: 2016-06-09
A179: 56 | B179: 2016-05-02 | D179: KEC International ltd $ | E179: Accu | F179: 127.50 | H179: 148 | I179: 148-150 | J179: Target Achieved | K179: =H179-F179 -> 20.50 | L179: =K179/F179 -> 16.08% | M179: Successful | N179: 2016-07-13
A180: 57 | B180: 2016-05-03 | D180: Mindtree | E180: Accu | F180: 675.00 | H180: 815 | I180: 790-800 | J180: Target Achieved | K180: =H180-F180 -> 140.00 | L180: =K180/F180 -> 20.74% | M180: Successful | N180: 2018-02-23
A181: 58 | B181: 2016-06-01 | D181: Atulauto | E181: Accu | F181: 500 | H181: 232.50 | I181: 565-570 | J181: Loss of Rs.267.50 /- | K181: =H181-F181 -> -267.50 | L181: =K181/F181 -> -53.50% | M181: Unsuccessful | N181: 2019-09-27
A182: 59 | B182: 2016-06-06 | D182: TRITURBINE | E182: Accu | F182: 110.00 | H182: 126.5 | I182: 125.00 | J182: Profit of Rs.16.50/- | K182: =H182-F182 -> 16.50 | L182: =K182/F182 -> 15.00% | M182: Successful | N182: 2016-07-01
A183: 60 | B183: 2016-06-17 | D183: Pennar Industries Ltd | E183: Accu | F183: 44.00 | H183: 69.5 | I183: 69.50 | J183: Profit of Rs.25.50/- | K183: =H183-F183 -> 25.50 | L183: =K183/F183 -> 57.95% | M183: Successful | N183: 2017-08-30
A184: 61 | B184: 2016-06-28 | D184: EVEREADY | E184: Accu | F184: 262.50 | H184: 340 | I184: 333.00 | J184: Profit of Rs.77.50/- | K184: 77.50 | L184: 29.52% | M184: Successful | N184: 2017-10-09
A185: 62 | B185: 2016-06-28 | D185: FIEMIND | E185: Accu | F185: 840.00 | H185: 1230 | I185: 1230.00 | J185: Target Achieved | K185: 390.00 | L185: 46.43% | M185: Successful | N185: 2016-10-06
A186: 63 | B186: 2016-07-05 | D186: Bajaj Corp Ltd | E186: Accu | F186: 395 | H186: =(468.5+342.5)/2 -> 405.50 | I186: 510.00 | J186: Profit of Rs.10.50/- | K186: =H186-F186 -> 10.50 | L186: =K186/F186 -> 3% | M186: Neutral | N186: 2019-05-21
A187: 64 | B187: 2016-08-02 | D187: GPPL $ | E187: Buy | F187: 169.5 | H187: 77.00 | I187: 198-200 | J187: Loss of Rs.92.5/- | K187: -92.50 | L187: -54.57% | M187: Unsuccessful | N187: 2019-02-26
A188: 65 | B188: 2016-08-04 | D188: WONDERLA HOLIDAYS LTD | E188: Accu | F188: 400 | H188: 305.00 | I188: 475.00 | J188: Loss of Rs.95/- | K188: -95.00 | L188: -23.75% | M188: Unsuccessful | N188: 2019-05-21
A189: 66 | B189: 2016-08-11 | D189: CAMLINFINE | E189: Accu | F189: 86.50 | H189: 130 | I189: 130.00 | J189: Profit of Rs.43.50/- | K189: 43.50 | L189: 50.29% | M189: Successful | N189: 2017-12-22
A190: 67 | B190: 2016-08-18 | D190: GRANULES | E190: Accu | F190: 133.5 | H190: 126.50 | I190: 178.00 | J190: Exit | K190: -7.00 | L190: -5.24% | M190: Unsuccessful | N190: 2016-09-02
A191: 68 | B191: 2016-08-31 | D191: VA TECH WABAG | E191: Accu | F191: 560.00 | H191: 725 | I191: 725.00 | J191: Target Achieved | K191: 165.00 | L191: 29.46% | M191: Successful | N191: 2016-03-27
A192: 69 | B192: 2016-09-01 | D192: SKIPPER LIMITED | E192: Accu | F192: 160.50 | H192: 210 | I192: 210.00 | J192: Target Achieved | K192: 49.50 | L192: 30.84% | M192: Successful | N192: 2017-05-16
A193: 70 | B193: 2016-10-03 | D193: IFBIND | E193: Accu | F193: 430.00 | H193: 596 | I193: 575.00 | J193: Profit of Rs.166/- | K193: 166.00 | L193: 38.60% | M193: Successful | N193: 2017-02-03
A194: 71 | B194: 2016-10-14 | D194: ASIANTILES | E194: Accu | F194: 280.00 | H194: 345 | I194: 345.00 | J194: Target Achieved | K194: =H194-F194 -> 65.00 | L194: =K194/F194 -> 23.21% | M194: Successful | N194: 2017-03-20
A195: 72 | B195: 2016-10-14 | D195: DEEPIND | E195: Accu | F195: 245.00 | H195: 325.5 | I195: 330.00 | J195: Profit of Rs.80.5/- | K195: 80.50 | L195: =K195/F195 -> 32.86% | M195: Successful | N195: 2017-02-03
A196: 73 | B196: 2016-10-17 | D196: DCBBANK | E196: Accu | F196: 125.00 | H196: 160 | I196: 160.00 | J196: Target Achieved | K196: 35.00 | L196: 28.00% | M196: Successful | N196: 2017-03-09
A197: 74 | B197: 2016-10-17 | D197: ORIENTREF | E197: Accu | F197: 114.00 | H197: 145 | I197: 145.00 | J197: Target Achieved | K197: 31.00 | L197: =K197/F197 -> 27.19% | M197: Successful | N197: 2017-05-04
A198: 75 | B198: 2016-10-17 | D198: GANECOS | E198: Accu | F198: 212.00 | H198: 280 | I198: 276.00 | J198: Profit of Rs.68/- | K198: 68.00 | L198: =K198/F198 -> 32.08% | M198: Successful | N198: 2017-05-03
A199: 76 | B199: 2016-11-04 | D199: NBCC | E199: Accu | F199: 155.00 | H199: 210 | I199: 210.00 | J199: Profit of Rs.55/- | K199: 55.00 | L199: =K199/F199 -> 35.48% | M199: Successful | N199: 2017-07-28
A200: 77 | B200: 2016-12-06 | D200: PRECAM | E200: Accu | F200: 150.5 | H200: 72.50 | I200: 174.00 | J200: Loss of Rs.78/- | K200: -78.00 | L200: -51.83% | M200: Unsuccessful | N200: 2018-08-21
A201: 78 | B201: 2016-12-08 | D201: INFRATEL | E201: Accu | F201: 380.00 | H201: 478 | I201: 468.00 | J201: Target Achieved | K201: =H201-F201 -> 98.00 | L201: =K201/F201 -> 25.79% | M201: Successful | N201: 2017-10-17
A202: 79 | B202: 2016-12-30 | D202: GODREJPROP | E202: Accu | F202: 305.00 | H202: 375 | I202: 375.00 | J202: Target Achieved | K202: =H202-F202 -> 70.00 | L202: =K202/F202 -> 22.95% | M202: Successful | N202: 2017-02-02
A203: 80 | B203: 2017-01-04 | D203: DEEPAKNTR | E203: Accu | F203: 99.50 | H203: 158 | I203: 158.00 | J203: Target Achieved | K203: =H203-F203 -> 58.50 | L203: =K203/F203 -> 58.79% | M203: Successful | N203: 2017-06-12
A204: 81 | B204: 2017-01-04 | D204: DEEPAKNTR | E204: Accu | F204: 99.50 | H204: 158 | I204: 158.00 | J204: Target Achieved | K204: 58.50 | L204: 58.79% | M204: Successful | N204: 2017-06-12
A205: 82 | B205: 2017-02-20 | D205: RECLTD | E205: Accu | F205: 140.50 | H205: 220 | I205: 220.00 | J205: Target Achieved | K205: =H205-F205 -> 79.50 | L205: =K205/F205 -> 56.58% | M205: Successful | N205: 2017-05-09
A206: 83 | B206: 2017-02-20 | D206: SUBROS | E206: Accu | F206: 202.50 | H206: 234 | I206: 234.00 | J206: Target Achieved | K206: 31.50 | L206: 15.56% | M206: Successful | N206: 2017-04-11
A207: 84 | B207: 2017-03-24 | D207: VRLLOG | E207: Accu | F207: 300.50 | H207: 417.5 | I207: 420.00 | J207: Profit of Rs.117/- | K207: =H207-F207 -> 117.00 | L207: =K207/F207 -> 38.94% | M207: Successful | N207: 2017-12-01
A208: 85 | B208: 2017-03-24 | D208: FIEMIND | E208: Accu | F208: 850.00 | H208: 1042.5 | I208: 1023.00 | J208: Profit of Rs 192.50/- | K208: 192.50 | L208: 22.65% | M208: Successful | N208: 2017-04-05
A209: 86 | B209: 2017-04-05 | D209: RATNAMANI | E209: Accu | F209: 785.00 | H209: 930 | I209: 920.00 | J209: Profit of Rs.145/- | K209: =H209-F209 -> 145.00 | L209: =K209/F209 -> 18.47% | M209: Successful | N209: 2017-08-29
A210: 87 | B210: 2017-04-06 | D210: ZEEMEDIA | E210: Accu | F210: 40 | H210: 13.10 | I210: 60.00 | J210: Loss of Rs.26.9/- | K210: -26.90 | L210: -67.25% | M210: Unsuccessful | N210: 2018-02-07
A211: 88 | B211: 2017-04-12 | D211: DABUR | E211: Accu | F211: 289.50 | H211: 354 | I211: 360.00 | J211: Profit of Rs.64.5/- | K211: =H211-F211 -> 64.50 | L211: =K211/F211 -> 22.28% | M211: Successful | N211: 2017-11-01
A212: 89 | B212: 2017-04-20 | D212: KPRMILL | E212: Accu | F212: 700.00 | H212: 840 | I212: 840.00 | J212: Profit of Rs.140/- | K212: 140.00 | L212: 20.00% | M212: Successful | N212: 2017-06-07
A213: 90 | B213: 2017-06-01 | D213: ESSELPACK | E213: Accu | F213: 130.00 | H213: 144.25 | I213: 170.00 | J213: Profit of Rs.14.25/- | K213: 14.25 | L213: 10.96% | M213: Successful | N213: 2019-07-29
A214: 91 | B214: 2017-06-15 | D214: KEI | E214: Accu | F214: 214.50 | H214: 262 | I214: 262.00 | J214: Profit of Rs.47.5/- | K214: 47.50 | L214: 22.14% | M214: Successful | N214: 2017-08-30
A215: 92 | B215: 2017-07-17 | D215: MAYURUNIQ | E215: Accu | F215: 370.00 | H215: 447.5 | I215: 450.00 | J215: Target Achieved | K215: 77.50 | L215: 20.95% | M215: Successful | N215: 2017-10-27
A216: 93 | B216: 2017-07-27 | D216: RAMCOCEM | E216: Accu | F216: 657.50 | H216: 825 | I216: 820.00 | J216: Target Achieved | K216: 167.50 | L216: 25.48% | M216: Successful | N216: 2017-12-21
A217: 94 | B217: 2017-08-17 | D217: FINPIPE | E217: Accu | F217: 605.00 | H217: 750 | I217: 750.00 | J217: Profit of Rs.145/- | K217: 145.00 | L217: 23.97% | M217: Successful | N217: 2017-10-19
A218: 95 | B218: 2017-09-01 | D218: SHK | E218: Accu | F218: 255 | H218: 217.25 | I218: 320.00 | J218: Loss of Rs.37.75/- | K218: -37.75 | L218: -15% | M218: Unsuccessful | N218: 2019-07-15
A219: 96 | B219: 2017-09-19 | D219: SKIPPER | E219: Accu | F219: 215.00 | H219: 258 | I219: 258.00 | J219: Target Achieved | K219: 43.00 | L219: 20.00% | M219: Successful | N219: 2017-11-01
A220: 97 | B220: 2017-09-19 | D220: SKIPPER | E220: Accu | F220: 215.00 | H220: 258 | I220: 258.00 | J220: Target Achieved | K220: 43.00 | L220: 20.00% | M220: Successful | N220: 2017-11-01
A221: 98 | B221: 2017-09-20 | D221: CAMLINFINE$ | E221: Accu | F221: 75.00 | H221: 90 | I221: 90.00 | J221: Profit of Rs.15.00/- | K221: =H221-F221 -> 15.00 | L221: =K221/F221 -> 20.00% | M221: Successful | N221: 2017-10-11
A222: 99 | B222: 2017-10-03 | D222: GNA | E222: Accu | F222: 315.00 | H222: 392 | I222: 384.00 | J222: Profit of Rs.77/- | K222: 77.00 | L222: 24.44% | M222: Successful | N222: 2017-10-09
A223: 100 | B223: 2017-10-05 | D223: NOCIL | E223: Accu | F223: 145.00 | H223: 179 | I223: 180.00 | J223: Profit of Rs.34/- | K223: 34.00 | L223: 23.45% | M223: Successful | N223: 2017-10-17
A224: 101 | B224: 2017-10-06 | D224: CENTURYPLY | E224: Accu | F224: 256.00 | H224: 323 | I224: 320.00 | J224: Target Achieved | K224: 67.00 | L224: 26.17% | M224: Successful | N224: 2017-11-28
A225: 102 | B225: 2017-10-09 | D225: EIHOTEL | E225: Accu | F225: 137.50 | H225: 184 | I225: 183.00 | J225: Profit of Rs.46.5/- | K225: 46.50 | L225: 33.82% | M225: Successful | N225: 2018-01-08
A226: 103 | B226: 2017-10-10 | D226: NRBBEARING | E226: Accu | F226: 125.50 | H226: 158 | I226: 155.00 | J226: Profit of Rs.32.5/- | K226: 32.50 | L226: 25.90% | M226: Successful | N226: 2017-11-28
A227: 104 | B227: 2017-10-10 | D227: BOROSIL | E227: Accu | F227: 895.00 | H227: 1122.5 | I227: 1078.00 | J227: Profit of Rs.227.5/- | K227: 227.50 | L227: 25.42% | M227: Successful | N227: 2018-01-17
A228: 105 | B228: 2017-10-12 | D228: CYIENT | E228: Accu | F228: 525.00 | H228: 629 | I228: 629.00 | J228: Target Achieved | K228: 104.00 | L228: 19.81% | M228: Successful | N228: 2018-01-19
A229: 106 | B229: 2017-11-07 | D229: HATSUN | E229: Accu | F229: 740.00 | H229: 892.5 | I229: 900.00 | J229: Profit of Rs.152.5/- | K229: =H229-F229 -> 152.50 | L229: =K229/F229 -> 20.61% | M229: Successful | N229: 2017-11-13
A230: 107 | B230: 2017-12-04 | D230: SANGHIIND | E230: Accu | F230: 118.50 | H230: 143.5 | I230: 145.00 | J230: Profit of Rs.25/- | K230: =H230-F230 -> 25.00 | L230: =K230/F230 -> 21.10% | M230: Successful | N230: 2017-12-28
A231: 108 | B231: 2017-12-21 | D231: KAJARIACER | E231: Accu | F231: 715 | H231: 500.00 | I231: 872.00 | J231: Loss of Rs.215/- | K231: =H231-F231 -> -215.00 | L231: =K231/F231 -> -30.07% | M231: Unsuccessful | N231: 2019-07-24
A232: 109 | B232: 2017-12-29 | D232: GNA | E232: Accu | F232: 435.00 | H232: 542.5 | I232: 539.00 | J232: Target Achieved | K232: 107.50 | L232: 24.71% | M232: Successful | N232: 2018-04-16
A233: 110 | B233: 2017-12-29 | D233: ZENSARTECH | E233: Accu | F233: 885.00 | H233: 1090 | I233: 1084.00 | J233: Target Achieved | K233: 205.00 | L233: 23.16% | M233: Successful | N233: 2018-04-23
A234: 111 | B234: 2018-04-02 | D234: EVERESTIND | E234: Accu | F234: 492.50 | H234: 442 | I234: 613.00 | J234: Loss of Rs.50.50 /- | K234: =H234-F234 -> -50.50 | L234: =K234/F234 -> -10.25% | M234: Unsuccessful | N234: 2019-10-24
A235: 112 | B235: 2018-04-04 | D235: GPPL$ | E235: Accu | F235: 141.5 | H235: 77.00 | I235: 180.00 | J235: Loss of Rs.64.5/- | K235: =H235-F235 -> -64.50 | L235: =K235/F235 -> -45.58% | M235: Unsuccessful | N235: 2019-02-26
A236: 113 | B236: 2018-04-19 | D236: MANPASAND | E236: Accu | F236: 430 | H236: 220.00 | I236: 537.00 | J236: Loss of Rs.210/- | K236: =H236-F236 -> -210.00 | L236: =K236/F236 -> -48.84% | M236: Unsuccessful | N236: 2018-06-01
A237: 114 | B237: 2018-04-30 | D237: HEIDELBERG | E237: Accu | F237: 156 | H237: 196.00 | I237: 196.00 | J237: Profit of Rs.40/- | K237: =H237-F237 -> 40.00 | L237: =K237/F237 -> 26% | M237: Successful | N237: 2019-05-20
A238: 115 | B238: 2018-07-25 | D238: ZEEMEDIA | E238: Accu | F238: 27.5 | H238: 13.10 | I238: 60.00 | J238: Loss of Rs.14.40/- | K238: -14.40 | L238: -52.36% | M238: Unsuccessful | N238: 2018-02-07
A239: 116 | B239: 2018-08-06 | D239: GABRIEL | E239: Accu | F239: 150.00 | H239: 102 | I239: 182.00 | J239: Loss of Rs.48 /- | K239: =H239-F239 -> -48.00 | L239: =K239/F239 -> -32.00% | M239: Unsuccessful | N239: 2019-07-15
A240: 117 | B240: 2018-08-23 | D240: INDIANHUME | E240: Accu | F240: 285.00 | H240: 355 | I240: 364.00 | J240: Profit of Rs.70/- | K240: 70.00 | L240: 24.56% | M240: Successful | N240: 2018-12-21
A241: 118 | B241: 2018-08-29 | D241: GRINDWELL | E241: Accu | F241: 525.00 | H241: 585 | I241: 635.00 | J241: Profit of Rs.60- | K241: =H241-F241 -> 60.00 | L241: =K241/F241 -> 11.43% | M241: Successful | N241: 2019-07-16
A242: 119 | B242: 2018-10-22 | D242: FINPIPE | E242: Accu | F242: 475.00 | H242: 574 | I242: 570.00 | J242: Target Achieved | K242: 99.00 | L242: 20.84% | M242: Successful | N242: 2018-10-30
A243: 120 | B243: 2018-10-24 | D243: GULFOILLUB | E243: Accu | F243: 707.50 | H243: 872 | I243: 872.00 | J243: Target Achieved | K243: 164.50 | L243: 23.25% | M243: Successful | N243: 2019-01-17
A244: 121 | B244: 2018-10-25 | D244: DBCORP | E244: Accu | F244: 164.00 | H244: 204 | I244: 209.00 | J244: Profit of Rs.40/- | K244: 40.00 | L244: 24.39% | M244: Successful | N244: 2019-03-15
A245: 122 | B245: 2018-10-26 | D245: RITES | E245: Accu | F245: 240.00 | H245: 297 | I245: 297.00 | J245: Target Achieved | K245: 57.00 | L245: 23.75% | M245: Successful | N245: 2018-11-13
A246: 123 | B246: 2018-12-05 | D246: BRIGADE | E246: Accu | F246: 202.50 | H246: 255 | I246: 252.00 | J246: Target Achieved | K246: 52.50 | L246: 25.93% | M246: Successful | N246: 2019-03-18
A247: 124 | B247: 2018-12-31 | D247: JKCEMENT | E247: Accu | F247: 710.00 | H247: 866 | I247: 866.00 | J247: Target Achieved | K247: 156.00 | L247: 21.97% | M247: Successful | N247: 2019-03-29
A248: 125 | B248: 2019-02-26 | D248: MARICO | E248: Accu | F248: 340.00 | H248: 398.5 | I248: 411.00 | J248: Profit of Rs.58.50/- | K248: 58.50 | L248: 17.21% | M248: Successful | N248: 2019-10-22
A249: 126 | B249: 2019-04-04 | D249: ITDCEM | E249: Accu | F249: 130.00 | H249: 65 | I249: 158.00 | J249: Loss of Rs.65 /- | K249: -65.00 | L249: -50.00% | M249: Unsuccessful | N249: 2019-09-18
A250: 127 | B250: 2017-10-09 | D250: RECLTD | E250: Accu | F250: 152.5 | H250: 183.50 | I250: 210.00 | J250: Part Profit of Rs.31/- | K250: 31.00 | L250: 20% | M250: Successful | N250: 2017-11-03 | R250: V
A251: 128 | B251: 2017-12-05 | D251: ALLCARGO | E251: Accu | F251: 177.5 | H251: 215.00 | I251: 230.00 | J251: Part Profit of Rs.37.5/- | K251: 37.50 | L251: 21% | M251: Successful | N251: 2017-12-27 | R251: V
A252: 129 | B252: 2018-10-25 | D252: GODREJCP | E252: Accu | F252: 707.5 | H252: 850.00 | I252: 890.00 | J252: Part Profit of Rs.142.5/- | K252: 142.50 | L252: 20% | M252: Successful | N252: 2018-12-19 | R252: V
A253: 130 | B253: 2017-05-22 | D253: GREAVESCOT | E253: Accu | F253: 153-158 | I253: 190.00 | M253: Open | R253: K
A254: 131 | B254: 2018-02-07 | D254: GREAVESCOT$ | E254: Accu | F254: 130-132 | I254: 190.00 | M254: Open | R254: K
A255: 132 | B255: 2018-02-27 | D255: MOLDTKPAC | E255: Accu | F255: 320-330 | I255: 398.00 | M255: Open | R255: K
A256: 133 | B256: 2018-03-05 | D256: LICHSGFIN | E256: Accu | F256: 505-515 | I256: 672.00 | M256: Open | R256: V
A257: 134 | B257: 2018-05-17 | D257: PHILIPCARB | E257: Accu | F257: 230-240 | I257: 348.00 | M257: Open | R257: K
A258: 135 | B258: 2018-06-07 | D258: KEC | E258: Accu | F258: 340-345 | I258: 439.00 | M258: Open | R258: K
A259: 136 | B259: 2018-07-04 | D259: ASHOKLEY | E259: Accu | F259: 125-130 | I259: 170.00 | M259: Open | R259: V
A260: 137 | B260: 2018-07-13 | D260: FCONSUMER | E260: Accu | F260: 46-47 | I260: 59.00 | M260: Open | R260: V
... 16 more rows

Sheet Sheet2 (hidden)
A1: SYMBOL | B1: SERIES | C1: OPEN | D1: HIGH | E1: LOW | F1: CLOSE | G1: LAST | H1: PREVCLOSE | I1: TOTTRDQTY | J1: TOTTRDVAL | K1: TIMESTAMP | L1: TOTALTRADES | M1: ISIN | N1: ISIN
A2: 20MICRONS | B2: EQ | C2: 38.3 | D2: 38.6 | E2: 37.3 | F2: 37.35 | G2: 37.3 | H2: 37.7 | I2: 30798 | J2: 1163619.1 | K2: 2019-11-04 | L2: 319 | M2: INE144J01027
A3: 21STCENMGM | B3: EQ | C3: 13.25 | D3: 13.5 | E3: 13.25 | F3: 13.5 | G3: 13.5 | H3: 13.25 | I3: 171 | J3: 2283.5 | K3: 2019-11-04 | L3: 6 | M3: INE253B01015
A4: 3IINFOTECH | B4: EQ | C4: 2 | D4: 2.05 | E4: 1.95 | F4: 2 | G4: 2 | H4: 2 | I4: 988118 | J4: 1971743.9 | K4: 2019-11-04 | L4: 590 | M4: INE748C01020
A5: 3MINDIA | B5: EQ | C5: 22399 | D5: 22550 | E5: 22002 | F5: 22314.85 | G5: 22300 | H5: 22202.1 | I5: 1559 | J5: 34867768.45 | K5: 2019-11-04 | L5: 783 | M5: INE470A01017
A6: 3PLAND | B6: EQ | C6: 6.5 | D6: 6.5 | E6: 6.5 | F6: 6.5 | G6: 6.5 | H6: 6.2 | I6: 125 | J6: 812.5 | K6: 2019-11-04 | L6: 2 | M6: INE105C01023
A7: 5PAISA | B7: EQ | C7: 170.5 | D7: 171 | E7: 164.7 | F7: 166.25 | G7: 167.95 | H7: 169.65 | I7: 11522 | J7: 1931269.9 | K7: 2019-11-04 | L7: 197 | M7: INE618L01018
A8: 63MOONS | B8: EQ | C8: 120.45 | D8: 122 | E8: 116.1 | F8: 117.6 | G8: 118.5 | H8: 119.8 | I8: 152881 | J8: 18184136.35 | K8: 2019-11-04 | L8: 2021 | M8: INE111B01023
A9: A2ZINFRA | B9: EQ | C9: 10.8 | D9: 11.2 | E9: 9.9 | F9: 10 | G9: 9.95 | H9: 10.7 | I9: 1288068 | J9: 13508375 | K9: 2019-11-04 | L9: 2638 | M9: INE619I01012
A10: AARTIDRUGS | B10: EQ | C10: 541 | D10: 541.15 | E10: 524.4 | F10: 526.6 | G10: 528 | H10: 532 | I10: 8039 | J10: 4265228.95 | K10: 2019-11-04 | L10: 702 | M10: INE767A01016
A11: AARTIIND | B11: EQ | C11: 870 | D11: 879.95 | E11: 850 | F11: 852.1 | G11: 853.5 | H11: 877.4 | I11: 78171 | J11: 67534572.95 | K11: 2019-11-04 | L11: 7109 | M11: INE769A01020
A12: AARVEEDEN | B12: EQ | C12: 14.15 | D12: 15.15 | E12: 14.05 | F12: 14.3 | G12: 14.75 | H12: 14.1 | I12: 4203 | J12: 60605.65 | K12: 2019-11-04 | L12: 97 | M12: INE273D01019
A13: AAVAS | B13: EQ | C13: 1610 | D13: 1610 | E13: 1525.1 | F13: 1532.55 | G13: 1529 | H13: 1582.75 | I13: 24641 | J13: 38178670.5 | K13: 2019-11-04 | L13: 3066 | M13: INE216P01012
A14: ABAN | B14: BE | C14: 28.95 | D14: 29.4 | E14: 28.1 | F14: 29.4 | G14: 29.4 | H14: 28 | I14: 38984 | J14: 1139413.6 | K14: 2019-11-04 | L14: 394 | M14: INE421A01028
A15: ABB | B15: EQ | C15: 1467.7 | D15: 1478.4 | E15: 1452.7 | F15: 1456.7 | G15: 1459 | H15: 1458.85 | I15: 35652 | J15: 52149016.3 | K15: 2019-11-04 | L15: 2423 | M15: INE117A01022
A16: ABBOTINDIA | B16: EQ | C16: 11770 | D16: 12400 | E16: 11770 | F16: 11987.25 | G16: 11950 | H16: 11620.15 | I16: 12263 | J16: 147671894.3 | K16: 2019-11-04 | L16: 3728 | M16: INE358A01014
A17: ABCAPITAL | B17: EQ | C17: 83.2 | D17: 86.2 | E17: 82.8 | F17: 83.35 | G17: 83.45 | H17: 83 | I17: 2829489 | J17: 238568477.6 | K17: 2019-11-04 | L17: 27788 | M17: INE674K01013
A18: ABFRL | B18: EQ | C18: 212 | D18: 214.95 | E18: 210.05 | F18: 213.7 | G18: 213.85 | H18: 211 | I18: 202328 | J18: 43127883.35 | K18: 2019-11-04 | L18: 5287 | M18: INE647O01011
A19: ABMINTLTD | B19: BE | C19: 14.1 | D19: 14.1 | E19: 14.1 | F19: 14.1 | G19: 14.1 | H19: 14.1 | I19: 26 | J19: 366.6 | K19: 2019-11-04 | L19: 1 | M19: INE251C01017
A20: ABSLBANETF | B20: EQ | C20: 330 | D20: 330 | E20: 330 | F20: 330 | G20: 330 | H20: 330 | I20: 91 | J20: 30030 | K20: 2019-11-04 | L20: 3 | M20: INF209KB1O58
A21: ACC | B21: EQ | C21: 1549.8 | D21: 1590.5 | E21: 1542.2 | F21: 1564.65 | G21: 1567 | H21: 1542.2 | I21: 1094603 | J21: 1724061065 | K21: 2019-11-04 | L21: 35198 | M21: INE012A01025
A22: ACCELYA | B22: EQ | C22: 939.25 | D22: 942 | E22: 935 | F22: 939 | G22: 940 | H22: 939.25 | I22: 3523 | J22: 3299663.35 | K22: 2019-11-04 | L22: 240 | M22: INE793A01012
A23: ACE | B23: EQ | C23: 81.55 | D23: 84.6 | E23: 81.55 | F23: 84.05 | G23: 84.1 | H23: 82.8 | I23: 79086 | J23: 6599024.7 | K23: 2019-11-04 | L23: 687 | M23: INE731H01025
A24: ADANIENT | B24: EQ | C24: 200.95 | D24: 203.9 | E24: 198.25 | F24: 200.9 | G24: 199.5 | H24: 200.45 | I24: 3965499 | J24: 797281263.4 | K24: 2019-11-04 | L24: 21529 | M24: INE423A01024
A25: ADANIGAS | B25: EQ | C25: 146.6 | D25: 148.9 | E25: 146.6 | F25: 147.9 | G25: 148.05 | H25: 146.85 | I25: 806625 | J25: 119478487.8 | K25: 2019-11-04 | L25: 6019 | M25: INE399L01023
A26: ADANIGREEN | B26: EQ | C26: 89.7 | D26: 95.85 | E26: 89.6 | F26: 92.65 | G26: 92.95 | H26: 89.95 | I26: 3284998 | J26: 306277084.1 | K26: 2019-11-04 | L26: 20086 | M26: INE364U01010
A27: ADANIPORTS | B27: EQ | C27: 390 | D27: 394.95 | E27: 389.75 | F27: 391 | G27: 391.5 | H27: 389.75 | I27: 3146855 | J27: 1235117858 | K27: 2019-11-04 | L27: 43747 | M27: INE742F01042
A28: ADANIPOWER | B28: EQ | C28: 68.15 | D28: 73.8 | E28: 68.15 | F28: 71.6 | G28: 71.55 | H28: 67.9 | I28: 32691051 | J28: 2356982778 | K28: 2019-11-04 | L28: 118832 | M28: INE814H01011
A29: ADANITRANS | B29: EQ | C29: 277.85 | D29: 286.75 | E29: 277.85 | F29: 284.5 | G29: 285.2 | H29: 277.45 | I29: 405314 | J29: 114529772.2 | K29: 2019-11-04 | L29: 8588 | M29: INE931S01010
A30: ADFFOODS | B30: EQ | C30: 301.95 | D30: 324 | E30: 301.95 | F30: 307.75 | G30: 307.6 | H30: 299.55 | I30: 438974 | J30: 138350125.9 | K30: 2019-11-04 | L30: 9868 | M30: INE982B01019
A31: ADHUNIKIND | B31: EQ | C31: 123 | D31: 124.75 | E31: 120.65 | F31: 121.45 | G31: 122.45 | H31: 122.15 | I31: 28311 | J31: 3476302.85 | K31: 2019-11-04 | L31: 1035 | M31: INE452L01012
A32: ADLABS | B32: EQ | C32: 2.7 | D32: 2.7 | E32: 2.7 | F32: 2.7 | G32: 2.7 | H32: 2.6 | I32: 18751 | J32: 50627.7 | K32: 2019-11-04 | L32: 26 | M32: INE172N01012
A33: ADORWELD | B33: EQ | C33: 323 | D33: 324.8 | E33: 315 | F33: 315.4 | G33: 318.5 | H33: 319.45 | I33: 802 | J33: 255827 | K33: 2019-11-04 | L33: 72 | M33: INE045A01017
A34: ADROITINFO | B34: BE | C34: 7.5 | D34: 7.85 | E34: 7.35 | F34: 7.5 | G34: 7.5 | H34: 7.5 | I34: 1161 | J34: 8909.85 | K34: 2019-11-04 | L34: 8 | M34: INE737B01033
A35: ADSL | B35: EQ | C35: 14 | D35: 15.75 | E35: 13.55 | F35: 14.95 | G35: 15.25 | H35: 13.95 | I35: 51142 | J35: 759222 | K35: 2019-11-04 | L35: 271 | M35: INE102I01027
A36: ADVANIHOTR | B36: EQ | C36: 58 | D36: 60 | E36: 57.1 | F36: 58.35 | G36: 58.05 | H36: 57.65 | I36: 3434 | J36: 200374.75 | K36: 2019-11-04 | L36: 157 | M36: INE199C01026
A37: ADVENZYMES | B37: EQ | C37: 200 | D37: 206.6 | E37: 189.5 | F37: 191.05 | G37: 189.5 | H37: 189.45 | I37: 409891 | J37: 81026365.95 | K37: 2019-11-04 | L37: 8658 | M37: INE837H01020
A38: AEGISCHEM | B38: EQ | C38: 173.4 | D38: 174.15 | E38: 166.75 | F38: 169.05 | G38: 168.65 | H38: 172.2 | I38: 125437 | J38: 21419485.35 | K38: 2019-11-04 | L38: 4652 | M38: INE208C01025
A39: AFFLE | B39: EQ | C39: 1407.9 | D39: 1461 | E39: 1395 | F39: 1417.9 | G39: 1420 | H39: 1397.15 | I39: 114612 | J39: 164179806 | K39: 2019-11-04 | L39: 7275 | M39: INE00WC01019
A40: AGARIND | B40: EQ | C40: 112.4 | D40: 116 | E40: 112.4 | F40: 115.5 | G40: 115.4 | H40: 114.95 | I40: 1519 | J40: 175486 | K40: 2019-11-04 | L40: 35 | M40: INE204E01012
A41: AGCNET | B41: BE | C41: 118.9 | D41: 119 | E41: 112.05 | F41: 112.55 | G41: 112.55 | H41: 114.95 | I41: 990 | J41: 115829.5 | K41: 2019-11-04 | L41: 12 | M41: INE676A01019
A42: AGRITECH | B42: EQ | C42: 47.25 | D42: 49.8 | E42: 47.25 | F42: 48.35 | G42: 48.4 | H42: 49 | I42: 9826 | J42: 476267.15 | K42: 2019-11-04 | L42: 425 | M42: INE449G01018
A43: AGROPHOS | B43: EQ | C43: 116.4 | D43: 117.3 | E43: 116.4 | F43: 116.95 | G43: 116.95 | H43: 116.25 | I43: 678850 | J43: 79326324.45 | K43: 2019-11-04 | L43: 34505 | M43: INE740V01019
A44: AHLEAST | B44: EQ | C44: 186.7 | D44: 187 | E44: 178 | F44: 180.2 | G44: 182.7 | H44: 184.9 | I44: 1435 | J44: 257506.1 | K44: 2019-11-04 | L44: 115 | M44: INE926K01017
A45: AHLUCONT | B45: EQ | C45: 301 | D45: 314 | E45: 301 | F45: 306.15 | G45: 307 | H45: 309.55 | I45: 11303 | J45: 3452935.2 | K45: 2019-11-04 | L45: 695 | M45: INE758C01029
A46: AHLWEST | B46: EQ | C46: 290 | D46: 303.35 | E46: 258.05 | F46: 273.8 | G46: 270.15 | H46: 275.45 | I46: 4878 | J46: 1309367.7 | K46: 2019-11-04 | L46: 472 | M46: INE915K01010
A47: AIAENG | B47: EQ | C47: 1694.2 | D47: 1705.95 | E47: 1661 | F47: 1677.4 | G47: 1685 | H47: 1679.85 | I47: 5411 | J47: 9095588.65 | K47: 2019-11-04 | L47: 975 | M47: INE212H01026
A48: AIONJSW | B48: EQ | C48: 10 | D48: 10 | E48: 9.95 | F48: 10 | G48: 10 | H48: 9.9 | I48: 201982 | J48: 2019602.15 | K48: 2019-11-04 | L48: 205 | M48: INE743C01021
A49: AIRAN | B49: EQ | C49: 13 | D49: 13 | E49: 12.6 | F49: 12.75 | G49: 12.7 | H49: 12.95 | I49: 18865 | J49: 240468.45 | K49: 2019-11-04 | L49: 24 | M49: INE645W01026
A50: AJANTPHARM | B50: EQ | C50: 1072.9 | D50: 1088.65 | E50: 903.4 | F50: 1004.5 | G50: 999.95 | H50: 1062.8 | I50: 385788 | J50: 400378369.9 | K50: 2019-11-04 | L50: 18093 | M50: INE031B01049
A51: AJMERA | B51: EQ | C51: 122.5 | D51: 131.5 | E51: 120.25 | F51: 121.5 | G51: 122.5 | H51: 121.15 | I51: 90940 | J51: 11281696.15 | K51: 2019-11-04 | L51: 1553 | M51: INE298G01027
A52: AKASH | B52: EQ | C52: 63 | D52: 64.2 | E52: 62.15 | F52: 62.15 | G52: 62.15 | H52: 63 | I52: 2000 | J52: 126287.5 | K52: 2019-11-04 | L52: 7 | M52: INE737W01013
A53: AKSHARCHEM | B53: EQ | C53: 224.85 | D53: 224.85 | E53: 208 | F53: 215.1 | G53: 215.85 | H53: 218.15 | I53: 3049 | J53: 653072.2 | K53: 2019-11-04 | L53: 132 | M53: INE542B01011
A54: AKSHOPTFBR | B54: EQ | C54: 7.8 | D54: 7.9 | E54: 7.7 | F54: 7.9 | G54: 7.9 | H54: 7.55 | I54: 139760 | J54: 1098648.4 | K54: 2019-11-04 | L54: 262 | M54: INE523B01011
A55: AKZOINDIA | B55: EQ | C55: 2062.1 | D55: 2150 | E55: 2062.1 | F55: 2146.2 | G55: 2140 | H55: 2090.1 | I55: 17337 | J55: 36967433.1 | K55: 2019-11-04 | L55: 2504 | M55: INE133A01011
A56: ALANKIT | B56: EQ | C56: 16.5 | D56: 16.55 | E56: 16.4 | F56: 16.55 | G56: 16.55 | H56: 15.8 | I56: 53944 | J56: 890885.5 | K56: 2019-11-04 | L56: 131 | M56: INE914E01040
A57: ALBERTDAVD | B57: EQ | C57: 405.15 | D57: 414.1 | E57: 405.1 | F57: 412.3 | G57: 414 | H57: 410.45 | I57: 8973 | J57: 3681120.7 | K57: 2019-11-04 | L57: 356 | M57: INE155C01010
A58: ALBK | B58: EQ | C58: 27.5 | D58: 27.8 | E58: 27.3 | F58: 27.55 | G58: 27.55 | H58: 27.3 | I58: 911223 | J58: 25108390.15 | K58: 2019-11-04 | L58: 2831 | M58: INE428A01015
A59: ALCHEM | B59: BE | C59: 0.75 | D59: 0.8 | E59: 0.7 | F59: 0.8 | G59: 0.8 | H59: 0.75 | I59: 6244 | J59: 4803.05 | K59: 2019-11-04 | L59: 13 | M59: INE964B01033
A60: ALEMBICLTD | B60: EQ | C60: 54.4 | D60: 54.4 | E60: 48.55 | F60: 49.25 | G60: 49.3 | H60: 53.8 | I60: 253414 | J60: 13000732.2 | K60: 2019-11-04 | L60: 2310 | M60: INE426A01027
A61: ALICON | B61: EQ | C61: 420 | D61: 420 | E61: 381 | F61: 388.6 | G61: 390.9 | H61: 398.65 | I61: 3590 | J61: 1413344.95 | K61: 2019-11-04 | L61: 225 | M61: INE062D01024
A62: ALKALI | B62: EQ | C62: 45.55 | D62: 52 | E62: 45.2 | F62: 51.6 | G62: 51.7 | H62: 45.8 | I62: 47484 | J62: 2355874.35 | K62: 2019-11-04 | L62: 896 | M62: INE773I01017
A63: ALKEM | B63: EQ | C63: 2014.1 | D63: 2025 | E63: 1995.15 | F63: 2015.95 | G63: 2015.1 | H63: 2000.15 | I63: 49039 | J63: 98597547.85 | K63: 2019-11-04 | L63: 2615 | M63: INE540L01014
A64: ALKYLAMINE | B64: EQ | C64: 883 | D64: 894 | E64: 880 | F64: 891.6 | G64: 890 | H64: 869.55 | I64: 9781 | J64: 8685752.9 | K64: 2019-11-04 | L64: 678 | M64: INE150B01021
A65: ALLCARGO | B65: EQ | C65: 105.45 | D65: 111.5 | E65: 105.45 | F65: 110.3 | G65: 110.15 | H65: 103.85 | I65: 1275103 | J65: 139688851.8 | K65: 2019-11-04 | L65: 11771 | M65: INE418H01029
A66: ALLSEC | B66: EQ | C66: 305.05 | D66: 306.5 | E66: 298 | F66: 298 | G66: 298 | H66: 298.05 | I66: 2187 | J66: 654733.2 | K66: 2019-11-04 | L66: 153 | M66: INE835G01018
A67: ALMONDZ | B67: EQ | C67: 9.6 | D67: 10.1 | E67: 9.6 | F67: 10.05 | G67: 10.05 | H67: 10 | I67: 1154 | J67: 11473.85 | K67: 2019-11-04 | L67: 15 | M67: INE326B01027
A68: ALOKTEXT | B68: EQ | C68: 1.6 | D68: 1.6 | E68: 1.6 | F68: 1.6 | G68: 1.6 | H68: 1.55 | I68: 399544 | J68: 639270.4 | K68: 2019-11-04 | L68: 175 | M68: INE270A01011
A69: ALPA | B69: EQ | C69: 18.3 | D69: 19.7 | E69: 17.5 | F69: 17.8 | G69: 17.7 | H69: 17.25 | I69: 198826 | J69: 3674551.3 | K69: 2019-11-04 | L69: 1341 | M69: INE385I01010
A70: ALPHAGEO | B70: EQ | C70: 189 | D70: 194.9 | E70: 181 | F70: 188.4 | G70: 186.6 | H70: 189.25 | I70: 8748 | J70: 1623724.1 | K70: 2019-11-04 | L70: 376 | M70: INE137C01018
A71: ALPSINDUS | B71: BE | C71: 0.4 | D71: 0.45 | E71: 0.4 | F71: 0.4 | G71: 0.4 | H71: 0.4 | I71: 14927 | J71: 6550.35 | K71: 2019-11-04 | L71: 21 | M71: INE093B01015
A72: AMARAJABAT | B72: EQ | C72: 694 | D72: 695.45 | E72: 657 | F72: 658.6 | G72: 658 | H72: 689.75 | I72: 766588 | J72: 511300907.1 | K72: 2019-11-04 | L72: 30543 | M72: INE885A01032
A73: AMBER | B73: EQ | C73: 1027.95 | D73: 1039.4 | E73: 1002.65 | F73: 1007 | G73: 1007.9 | H73: 1022.65 | I73: 14588 | J73: 14894868 | K73: 2019-11-04 | L73: 1415 | M73: INE371P01015
A74: AMBIKCO | B74: EQ | C74: 918.95 | D74: 926 | E74: 905 | F74: 911.25 | G74: 905 | H74: 909.7 | I74: 4717 | J74: 4319560.05 | K74: 2019-11-04 | L74: 403 | M74: INE540G01014
A75: AMBUJACEM | B75: EQ | C75: 203 | D75: 206.7 | E75: 202.15 | F75: 203.35 | G75: 203.45 | H75: 201.6 | I75: 4243318 | J75: 867343008.2 | K75: 2019-11-04 | L75: 29882 | M75: INE079A01024
A76: AMDIND | B76: EQ | C76: 15.6 | D76: 17.2 | E76: 15.4 | F76: 16.9 | G76: 17 | H76: 15.4 | I76: 40847 | J76: 676360.2 | K76: 2019-11-04 | L76: 469 | M76: INE005I01014
A77: AMJLAND | B77: EQ | C77: 19.1 | D77: 19.1 | E77: 18.5 | F77: 19 | G77: 19 | H77: 18.15 | I77: 3074 | J77: 57629.95 | K77: 2019-11-04 | L77: 37 | M77: INE606A01024
A78: AMRUTANJAN | B78: EQ | C78: 429 | D78: 454 | E78: 422.1 | F78: 448.2 | G78: 449.2 | H78: 424.25 | I78: 125296 | J78: 55685402.8 | K78: 2019-11-04 | L78: 5140 | M78: INE098F01031
A79: ANANTRAJ | B79: EQ | C79: 32.15 | D79: 32.7 | E79: 31.15 | F79: 31.35 | G79: 31.3 | H79: 31.8 | I79: 135694 | J79: 4348826.5 | K79: 2019-11-04 | L79: 2112 | M79: INE242C01024
A80: ANDHRABANK | B80: EQ | C80: 18.65 | D80: 18.65 | E80: 18.25 | F80: 18.45 | G80: 18.5 | H80: 18.2 | I80: 801776 | J80: 14825716.35 | K80: 2019-11-04 | L80: 2218 | M80: INE434A01013
A81: ANDHRACEMT | B81: BE | C81: 2.45 | D81: 2.45 | E81: 2.3 | F81: 2.45 | G81: 2.45 | H81: 2.35 | I81: 30504 | J81: 74046.3 | K81: 2019-11-04 | L81: 55 | M81: INE666E01012
A82: ANDHRSUGAR | B82: EQ | C82: 277 | D82: 284.5 | E82: 276 | F82: 279.2 | G82: 280.4 | H82: 274.25 | I82: 66816 | J82: 18676077.3 | K82: 2019-11-04 | L82: 1990 | M82: INE715B01013
A83: ANIKINDS | B83: EQ | C83: 7.85 | D83: 7.85 | E83: 7.55 | F83: 7.85 | G83: 7.85 | H83: 7.5 | I83: 3309 | J83: 25972.65 | K83: 2019-11-04 | L83: 19 | M83: INE087B01017
A84: ANKITMETAL | B84: BE | C84: 0.55 | D84: 0.55 | E84: 0.45 | F84: 0.5 | G84: 0.45 | H84: 0.5 | I84: 25144 | J84: 12678.65 | K84: 2019-11-04 | L84: 30 | M84: INE106I01010
A85: ANSALAPI | B85: EQ | C85: 4.65 | D85: 4.65 | E85: 4.4 | F85: 4.65 | G85: 4.65 | H85: 4.45 | I85: 18692 | J85: 86485.45 | K85: 2019-11-04 | L85: 58 | M85: INE436A01026
A86: ANSALHSG | B86: EQ | C86: 5.6 | D86: 5.6 | E86: 5 | F86: 5.35 | G86: 5.25 | H86: 5.2 | I86: 47131 | J86: 254190.55 | K86: 2019-11-04 | L86: 263 | M86: INE880B01015
A87: ANTGRAPHIC | B87: BE | C87: 0.7 | D87: 0.7 | E87: 0.65 | F87: 0.7 | G87: 0.7 | H87: 0.7 | I87: 22711 | J87: 14944.35 | K87: 2019-11-04 | L87: 18 | M87: INE414B01021
A88: ANUP | B88: EQ | C88: 476.05 | D88: 486 | E88: 474.55 | F88: 480.45 | G88: 480 | H88: 483.4 | I88: 12330 | J88: 5928474.15 | K88: 2019-11-04 | L88: 808 | M88: INE294Z01018
A89: APARINDS | B89: EQ | C89: 522.4 | D89: 525 | E89: 513.2 | F89: 519.55 | G89: 518.05 | H89: 512.55 | I89: 3019 | J89: 1571303.5 | K89: 2019-11-04 | L89: 317 | M89: INE372A01015
A90: APCL | B90: EQ | C90: 154.95 | D90: 154.95 | E90: 146.55 | F90: 149.75 | G90: 148.6 | H90: 147.75 | I90: 2043 | J90: 306073.6 | K90: 2019-11-04 | L90: 131 | M90: INE071F01012
A91: APCOTEXIND | B91: EQ | C91: 167.75 | D91: 175 | E91: 166.95 | F91: 169.9 | G91: 169.95 | H91: 165.15 | I91: 29530 | J91: 5054086.4 | K91: 2019-11-04 | L91: 1277 | M91: INE116A01032
A92: APEX | B92: EQ | C92: 233.9 | D92: 239.15 | E92: 230.15 | F92: 236.25 | G92: 236 | H92: 232.2 | I92: 54441 | J92: 12835400.25 | K92: 2019-11-04 | L92: 2053 | M92: INE346W01013
A93: APLAPOLLO | B93: EQ | C93: 1465.5 | D93: 1517.2 | E93: 1465.5 | F93: 1505.55 | G93: 1490 | H93: 1481.15 | I93: 16414 | J93: 24475266.2 | K93: 2019-11-04 | L93: 1858 | M93: INE702C01019
A94: APLLTD | B94: EQ | C94: 575.3 | D94: 589 | E94: 572.25 | F94: 579.2 | G94: 577.1 | H94: 570.7 | I94: 149301 | J94: 86585304.3 | K94: 2019-11-04 | L94: 9991 | M94: INE901L01018
A95: APOLLO | B95: EQ | C95: 82 | D95: 95.3 | E95: 80 | F95: 95.3 | G95: 95.3 | H95: 79.45 | I95: 320561 | J95: 28910201.75 | K95: 2019-11-04 | L95: 4238 | M95: INE713T01010
A96: APOLLOHOSP | B96: EQ | C96: 1461 | D96: 1471 | E96: 1411 | F96: 1414.75 | G96: 1417.95 | H96: 1460 | I96: 519503 | J96: 744345910.3 | K96: 2019-11-04 | L96: 22952 | M96: INE437A01024
A97: APOLLOTYRE | B97: EQ | C97: 189.75 | D97: 190.65 | E97: 184.8 | F97: 185.55 | G97: 185 | H97: 189.2 | I97: 2125782 | J97: 397881475.4 | K97: 2019-11-04 | L97: 16488 | M97: INE438A01022
A98: APOLSINHOT | B98: EQ | C98: 799 | D98: 799 | E98: 781 | F98: 782.65 | G98: 781.25 | H98: 788.15 | I98: 483 | J98: 379668.2 | K98: 2019-11-04 | L98: 77 | M98: INE451F01024
A99: APTECHT | B99: EQ | C99: 171.9 | D99: 183.75 | E99: 171.9 | F99: 179.45 | G99: 179.05 | H99: 171.65 | I99: 527414 | J99: 94424707.9 | K99: 2019-11-04 | L99: 6685 | M99: INE266F01018
A100: ARCHIDPLY | B100: EQ | C100: 28.2 | D100: 28.5 | E100: 27 | F100: 27.8 | G100: 27.75 | H100: 28.3 | I100: 12816 | J100: 355832.75 | K100: 2019-11-04 | L100: 232 | M100: INE877I01016
A101: ARCHIES | B101: BE | C101: 18.75 | D101: 18.9 | E101: 18.2 | F101: 18.75 | G101: 18.75 | H101: 18.6 | I101: 35385 | J101: 651492.2 | K101: 2019-11-04 | L101: 100 | M101: INE731A01020
A102: ARCOTECH | B102: BE | C102: 1.85 | D102: 1.85 | E102: 1.85 | F102: 1.85 | G102: 1.85 | H102: 1.8 | I102: 5552 | J102: 10271.2 | K102: 2019-11-04 | L102: 17 | M102: INE574I01035
A103: ARIES | B103: EQ | C103: 62.2 | D103: 66.5 | E103: 62.2 | F103: 65.45 | G103: 65.2 | H103: 63.9 | I103: 30957 | J103: 2025749.25 | K103: 2019-11-04 | L103: 571 | M103: INE298I01015
A104: ARIHANT | B104: EQ | C104: 17.9 | D104: 18.2 | E104: 17.1 | F104: 18.1 | G104: 18.2 | H104: 18.1 | I104: 603 | J104: 10807.65 | K104: 2019-11-04 | L104: 26 | M104: INE413D01011
A105: ARIHANTSUP | B105: BE | C105: 25.8 | D105: 25.8 | E105: 24.25 | F105: 25.75 | G105: 25.75 | H105: 24.6 | I105: 2501 | J105: 64432.15 | K105: 2019-11-04 | L105: 23 | M105: INE643K01018
A106: ARMANFIN | B106: EQ | C106: 534.95 | D106: 571 | E106: 523.4 | F106: 553.7 | G106: 558 | H106: 520.5 | I106: 10787 | J106: 5960445.35 | K106: 2019-11-04 | L106: 1050 | M106: INE109C01017
A107: AROGRANITE | B107: EQ | C107: 41.5 | D107: 42.6 | E107: 41.5 | F107: 42.05 | G107: 41.75 | H107: 41.95 | I107: 6576 | J107: 277885.65 | K107: 2019-11-04 | L107: 130 | M107: INE210C01013
A108: ARROWGREEN | B108: EQ | C108: 53 | D108: 53 | E108: 51.15 | F108: 52.55 | G108: 51.95 | H108: 53 | I108: 1557 | J108: 82134.8 | K108: 2019-11-04 | L108: 75 | M108: INE570D01018
A109: ARROWTEX | B109: EQ | C109: 9.95 | D109: 10.2 | E109: 9.9 | F109: 10.1 | G109: 10.15 | H109: 9.95 | I109: 4833 | J109: 48582.85 | K109: 2019-11-04 | L109: 28 | M109: INE933J01015
A110: ARSHIYA | B110: EQ | C110: 17.85 | D110: 18.2 | E110: 17.7 | F110: 17.8 | G110: 17.8 | H110: 17.85 | I110: 13795 | J110: 247244.85 | K110: 2019-11-04 | L110: 51 | M110: INE968D01022
A111: ARSSINFRA | B111: EQ | C111: 24.55 | D111: 26.6 | E111: 24.55 | F111: 25.75 | G111: 26.45 | H111: 25.4 | I111: 26115 | J111: 670485.6 | K111: 2019-11-04 | L111: 143 | M111: INE267I01010
A112: ARVIND | B112: EQ | C112: 53.5 | D112: 55.55 | E112: 53 | F112: 54.85 | G112: 54.9 | H112: 53.5 | I112: 1594735 | J112: 87138660.6 | K112: 2019-11-04 | L112: 10860 | M112: INE034A01011
A113: ARVINDFASN | B113: EQ | C113: 438.55 | D113: 448.3 | E113: 436 | F113: 440.95 | G113: 440.9 | H113: 441.3 | I113: 41495 | J113: 18290838.8 | K113: 2019-11-04 | L113: 4110 | M113: INE955V01021
A114: ARVSMART | B114: EQ | C114: 101.3 | D114: 104.55 | E114: 101.2 | F114: 102.75 | G114: 103 | H114: 102.5 | I114: 9605 | J114: 991080 | K114: 2019-11-04 | L114: 441 | M114: INE034S01021
A115: ASAHIINDIA | B115: EQ | C115: 204.3 | D115: 212 | E115: 204.3 | F115: 208.5 | G115: 207.3 | H115: 207.4 | I115: 11132 | J115: 2324813.7 | K115: 2019-11-04 | L115: 599 | M115: INE439A01020
A116: ASAHISONG | B116: EQ | C116: 157.1 | D116: 160 | E116: 155.1 | F116: 157.95 | G116: 158.75 | H116: 156.7 | I116: 2900 | J116: 456246.9 | K116: 2019-11-04 | L116: 101 | M116: INE228I01012
A117: ASAL | B117: EQ | C117: 34.75 | D117: 36.5 | E117: 33.3 | F117: 33.65 | G117: 33.3 | H117: 34.95 | I117: 37315 | J117: 1275490.75 | K117: 2019-11-04 | L117: 199 | M117: INE900C01027
A118: ASHAPURMIN | B118: BE | C118: 33 | D118: 33 | E118: 30.2 | F118: 31.85 | G118: 32 | H118: 31.5 | I118: 8842 | J118: 279609.3 | K118: 2019-11-04 | L118: 65 | M118: INE348A01023
A119: ASHIANA | B119: EQ | C119: 98 | D119: 101.95 | E119: 96.15 | F119: 101.2 | G119: 100.55 | H119: 97.35 | I119: 296351 | J119: 29890831 | K119: 2019-11-04 | L119: 1285 | M119: INE365D01021
A120: ASHIMASYN | B120: EQ | C120: 8.1 | D120: 8.2 | E120: 7.5 | F120: 8 | G120: 8.05 | H120: 8 | I120: 18601 | J120: 147349.55 | K120: 2019-11-04 | L120: 158 | M120: INE440A01010
A121: ASHOKA | B121: EQ | C121: 103.35 | D121: 103.35 | E121: 100.05 | F121: 100.45 | G121: 100.35 | H121: 101.9 | I121: 1303963 | J121: 131863534.9 | K121: 2019-11-04 | L121: 2865 | M121: INE442H01029
A122: ASHOKLEY | B122: EQ | C122: 75.05 | D122: 76.7 | E122: 74 | F122: 75.2 | G122: 75.15 | H122: 75.95 | I122: 19855689 | J122: 1494181278 | K122: 2019-11-04 | L122: 66242 | M122: INE208A01029
A123: ASIANHOTNR | B123: EQ | C123: 99 | D123: 105.9 | E123: 98.1 | F123: 103.4 | G123: 104 | H123: 99.2 | I123: 1402 | J123: 144244.9 | K123: 2019-11-04 | L123: 88 | M123: INE363A01022
A124: ASIANPAINT | B124: EQ | C124: 1775 | D124: 1790 | E124: 1766.2 | F124: 1785.9 | G124: 1785 | H124: 1766.35 | I124: 821893 | J124: 1462280644 | K124: 2019-11-04 | L124: 48364 | M124: INE021A01026
A125: ASIANTILES | B125: EQ | C125: 233.35 | D125: 239.7 | E125: 233.2 | F125: 237.1 | G125: 237.1 | H125: 236.3 | I125: 21922 | J125: 5171610 | K125: 2019-11-04 | L125: 2258 | M125: INE022I01019
A126: ASPINWALL | B126: EQ | C126: 142.05 | D126: 146 | E126: 142 | F126: 146 | G126: 146 | H126: 146 | I126: 2923 | J126: 422437.85 | K126: 2019-11-04 | L126: 19 | M126: INE991I01015
A127: ASTEC | B127: EQ | C127: 365.55 | D127: 370 | E127: 355.05 | F127: 357.15 | G127: 355.05 | H127: 361.65 | I127: 9763 | J127: 3522344.7 | K127: 2019-11-04 | L127: 669 | M127: INE563J01010
A128: ASTERDM | B128: EQ | C128: 141.55 | D128: 146.55 | E128: 141.1 | F128: 142.45 | G128: 142.95 | H128: 141.55 | I128: 123384 | J128: 17681835.4 | K128: 2019-11-04 | L128: 6232 | M128: INE914M01019
A129: ASTRAL | B129: EQ | C129: 1111.1 | D129: 1128 | E129: 1031 | F129: 1089.5 | G129: 1088.2 | H129: 1116.6 | I129: 160356 | J129: 175551484.6 | K129: 2019-11-04 | L129: 9030 | M129: INE006I01046
A130: ASTRAMICRO | B130: EQ | C130: 77.75 | D130: 78.2 | E130: 75.25 | F130: 75.95 | G130: 76.05 | H130: 77.2 | I130: 135248 | J130: 10310632.3 | K130: 2019-11-04 | L130: 1045 | M130: INE386C01029
A131: ASTRAZEN | B131: EQ | C131: 2710.75 | D131: 2770.05 | E131: 2595.1 | F131: 2632.1 | G131: 2615.1 | H131: 2700.95 | I131: 21601 | J131: 57987279.85 | K131: 2019-11-04 | L131: 2964 | M131: INE203A01020
A132: ASTRON | B132: EQ | C132: 43.6 | D132: 43.6 | E132: 43.6 | F132: 43.6 | G132: 43.6 | H132: 48.4 | I132: 95487 | J132: 4163233.2 | K132: 2019-11-04 | L132: 413 | M132: INE646X01014
A133: ATFL | B133: EQ | C133: 637 | D133: 637 | E133: 605 | F133: 619.85 | G133: 619 | H133: 636.35 | I133: 11286 | J133: 6973539.75 | K133: 2019-11-04 | L133: 992 | M133: INE209A01019
A134: ATLANTA | B134: BE | C134: 6.85 | D134: 6.9 | E134: 6.6 | F134: 6.85 | G134: 6.9 | H134: 6.85 | I134: 14943 | J134: 101611.1 | K134: 2019-11-04 | L134: 48 | M134: INE285H01022
A135: ATNINTER | B135: BE | C135: 0.3 | D135: 0.3 | E135: 0.3 | F135: 0.3 | G135: 0.3 | H135: 0.35 | I135: 3060 | J135: 918 | K135: 2019-11-04 | L135: 9 | M135: INE803A01027
A136: ATUL | B136: EQ | C136: 4347.9 | D136: 4358.5 | E136: 4250 | F136: 4253.9 | G136: 4251 | H136: 4332.4 | I136: 10484 | J136: 45017686.75 | K136: 2019-11-04 | L136: 2369 | M136: INE100A01010
A137: ATULAUTO | B137: EQ | C137: 229.5 | D137: 231.85 | E137: 225 | F137: 226.75 | G137: 225.5 | H137: 229.15 | I137: 9035 | J137: 2062466.1 | K137: 2019-11-04 | L137: 495 | M137: INE951D01028
A138: AUBANK | B138: EQ | C138: 692 | D138: 692.45 | E138: 683 | F138: 686.8 | G138: 685.4 | H138: 688.4 | I138: 328041 | J138: 225296025.4 | K138: 2019-11-04 | L138: 14136 | M138: INE949L01017
A139: AURIONPRO | B139: EQ | C139: 76.45 | D139: 77.8 | E139: 72.5 | F139: 74.95 | G139: 74.6 | H139: 74.45 | I139: 7720 | J139: 574003 | K139: 2019-11-04 | L139: 207 | M139: INE132H01018
A140: AUROPHARMA | B140: EQ | C140: 479.5 | D140: 507.5 | E140: 474.05 | F140: 477.65 | G140: 477.35 | H140: 480.5 | I140: 7280307 | J140: 3552681648 | K140: 2019-11-04 | L140: 103787 | M140: INE406A01037
A141: AUSOMENT | B141: EQ | C141: 29.6 | D141: 29.6 | E141: 26.6 | F141: 27.5 | G141: 27.4 | H141: 27.55 | I141: 779 | J141: 21200.15 | K141: 2019-11-04 | L141: 30 | M141: INE218C01016
A142: AUTOAXLES | B142: EQ | C142: 950 | D142: 964.4 | E142: 925.5 | F142: 934.9 | G142: 930 | H142: 955.2 | I142: 11160 | J142: 10563078.45 | K142: 2019-11-04 | L142: 1121 | M142: INE449A01011
A143: AUTOIND | B143: EQ | C143: 24 | D143: 24.75 | E143: 23.45 | F143: 24.55 | G143: 24.65 | H143: 24.4 | I143: 12816 | J143: 313628.3 | K143: 2019-11-04 | L143: 113 | M143: INE718H01014
A144: AUTOLITIND | B144: EQ | C144: 22 | D144: 22.5 | E144: 21.5 | F144: 22.05 | G144: 22.5 | H144: 22.05 | I144: 2103 | J144: 46632 | K144: 2019-11-04 | L144: 45 | M144: INE448A01013
A145: AVADHSUGAR | B145: EQ | C145: 307.75 | D145: 320 | E145: 307.05 | F145: 311.8 | G145: 313.85 | H145: 306.8 | I145: 126257 | J145: 39413030.85 | K145: 2019-11-04 | L145: 2907 | M145: INE349W01017
A146: AVANTIFEED | B146: EQ | C146: 454 | D146: 470 | E146: 454 | F146: 463.85 | G146: 464.05 | H146: 451 | I146: 474250 | J146: 219206767.9 | K146: 2019-11-04 | L146: 21256 | M146: INE871C01038
A147: AVTNPL | B147: EQ | C147: 24.5 | D147: 25.2 | E147: 24.5 | F147: 24.75 | G147: 24.85 | H147: 24.8 | I147: 22413 | J147: 558084.75 | K147: 2019-11-04 | L147: 248 | M147: INE488D01021
A148: AXISBANK | B148: EQ | C148: 754.95 | D148: 754.95 | E148: 735.55 | F148: 742.6 | G148: 741.8 | H148: 748.3 | I148: 7851370 | J148: 5838326729 | K148: 2019-11-04 | L148: 114187 | M148: INE238A01034
A149: AXISCADES | B149: EQ | C149: 68.65 | D149: 73.45 | E149: 68.1 | F149: 68.7 | G149: 68.2 | H149: 70.35 | I149: 113192 | J149: 7977544.9 | K149: 2019-11-04 | L149: 1413 | M149: INE555B01013
A150: AXISGOLD | B150: EQ | C150: 3400 | D150: 3409.95 | E150: 3370.55 | F150: 3396.25 | G150: 3409 | H150: 3398.7 | I150: 264 | J150: 896035.35 | K150: 2019-11-04 | L150: 90 | M150: INF846K01347
A151: AXISNIFTY | B151: EQ | C151: 1226.53 | D151: 1237.34 | E151: 1226.53 | F151: 1230 | G151: 1230 | H151: 1227.1 | I151: 101 | J151: 124196.95 | K151: 2019-11-04 | L151: 21 | M151: INF846K01ZL0
A152: AYMSYNTEX | B152: EQ | C152: 33.1 | D152: 33.35 | E152: 31.55 | F152: 32 | G152: 33.35 | H152: 32.55 | I152: 12182 | J152: 394617.05 | K152: 2019-11-04 | L152: 47 | M152: INE193B01039
A153: BAGFILMS | B153: EQ | C153: 1.8 | D153: 1.8 | E153: 1.75 | F153: 1.8 | G153: 1.8 | H153: 1.75 | I153: 54323 | J153: 97781.35 | K153: 2019-11-04 | L153: 72 | M153: INE116D01028
A154: BAJAJ-AUTO | B154: EQ | C154: 3236 | D154: 3248.25 | E154: 3181.3 | F154: 3212.05 | G154: 3218 | H154: 3232.65 | I154: 330025 | J154: 1058168756 | K154: 2019-11-04 | L154: 21388 | M154: INE917I01010
A155: BAJAJCON | B155: EQ | C155: 248 | D155: 260 | E155: 248 | F155: 255.4 | G155: 258 | H155: 248.55 | I155: 256178 | J155: 64762277.4 | K155: 2019-11-04 | L155: 5304 | M155: INE933K01021
A156: BAJAJELEC | B156: EQ | C156: 378 | D156: 392 | E156: 377.05 | F156: 389.25 | G156: 391 | H156: 376 | I156: 225402 | J156: 86643567.65 | K156: 2019-11-04 | L156: 4798 | M156: INE193E01025
A157: BAJAJFINSV | B157: EQ | C157: 8480 | D157: 8750 | E157: 8450.25 | F157: 8706.6 | G157: 8745 | H157: 8384.75 | I157: 552812 | J157: 4774197681 | K157: 2019-11-04 | L157: 47326 | M157: INE918I01018
A158: BAJAJHIND | B158: EQ | C158: 6.95 | D158: 7.35 | E158: 6.95 | F158: 7 | G158: 7.05 | H158: 6.8 | I158: 1317038 | J158: 9288954.85 | K158: 2019-11-04 | L158: 1719 | M158: INE306A01021
A159: BAJAJHLDNG | B159: EQ | C159: 3708 | D159: 3806 | E159: 3677 | F159: 3708.95 | G159: 3702.15 | H159: 3698.2 | I159: 43348 | J159: 161793684.2 | K159: 2019-11-04 | L159: 7500 | M159: INE118A01012
A160: BAJFINANCE | B160: EQ | C160: 4087 | D160: 4177.5 | E160: 4076.15 | F160: 4113 | G160: 4120 | H160: 4069.85 | I160: 1863158 | J160: 7692431823 | K160: 2019-11-04 | L160: 86340 | M160: INE296A01024
A161: BALAJITELE | B161: EQ | C161: 53.6 | D161: 56.7 | E161: 53.2 | F161: 54.2 | G161: 54.55 | H161: 55.05 | I161: 69549 | J161: 3817992.15 | K161: 2019-11-04 | L161: 1148 | M161: INE794B01026
A162: BALAMINES | B162: EQ | C162: 323.95 | D162: 327.45 | E162: 318 | F162: 322.9 | G162: 321.5 | H162: 321.6 | I162: 16436 | J162: 5304161.05 | K162: 2019-11-04 | L162: 870 | M162: INE050E01027
A163: BALAXI | B163: EQ | C163: 74.55 | D163: 80.7 | E163: 74.35 | F163: 79.1 | G163: 79.95 | H163: 77.35 | I163: 69 | J163: 5438.85 | K163: 2019-11-04 | L163: 8 | M163: INE618N01014
A164: BALKRISHNA | B164: BE | C164: 19 | D164: 20.25 | E164: 19 | F164: 19.1 | G164: 19.65 | H164: 19.45 | I164: 26830 | J164: 524337.4 | K164: 2019-11-04 | L164: 94 | M164: INE875R01011
A165: BALKRISIND | B165: EQ | C165: 878.8 | D165: 883 | E165: 861.95 | F165: 866.15 | G165: 866 | H165: 872.8 | I165: 207352 | J165: 180660832.8 | K165: 2019-11-04 | L165: 6069 | M165: INE787D01026
A166: BALLARPUR | B166: EQ | C166: 0.5 | D166: 0.55 | E166: 0.45 | F166: 0.55 | G166: 0.55 | H166: 0.5 | I166: 3633048 | J166: 1948513.35 | K166: 2019-11-04 | L166: 428 | M166: INE294A01037
A167: BALMLAWRIE | B167: EQ | C167: 198.95 | D167: 210.65 | E167: 197.65 | F167: 202.35 | G167: 202.4 | H167: 197.25 | I167: 297626 | J167: 60850703.9 | K167: 2019-11-04 | L167: 4237 | M167: INE164A01016
A168: BALPHARMA | B168: EQ | C168: 43 | D168: 48.5 | E168: 43 | F168: 46.9 | G168: 46.75 | H168: 42.7 | I168: 53371 | J168: 2495406 | K168: 2019-11-04 | L168: 923 | M168: INE083D01012
A169: BALRAMCHIN | B169: EQ | C169: 165.4 | D169: 165.7 | E169: 160.4 | F169: 161.8 | G169: 161.95 | H169: 164.5 | I169: 599514 | J169: 97576408.35 | K169: 2019-11-04 | L169: 7586 | M169: INE119A01028
A170: BANARBEADS | B170: EQ | C170: 38.5 | D170: 38.5 | E170: 35.15 | F170: 35.55 | G170: 35.75 | H170: 37 | I170: 8107 | J170: 288874.15 | K170: 2019-11-04 | L170: 63 | M170: INE655B01011
A171: BANARISUG | B171: EQ | C171: 1200 | D171: 1224.85 | E171: 1200 | F171: 1224.85 | G171: 1224.85 | H171: 1208.7 | I171: 236 | J171: 285429 | K171: 2019-11-04 | L171: 37 | M171: INE459A01010
A172: BANCOINDIA | B172: EQ | C172: 117.4 | D172: 117.55 | E172: 114 | F172: 115.5 | G172: 115.5 | H172: 115.45 | I172: 46769 | J172: 5423103.75 | K172: 2019-11-04 | L172: 1242 | M172: INE213C01025
A173: BANDHANBNK | B173: EQ | C173: 598 | D173: 605.3 | E173: 584.15 | F173: 590 | G173: 590 | H173: 599 | I173: 755659 | J173: 447568143.5 | K173: 2019-11-04 | L173: 26641 | M173: INE545U01014
A174: BANG | B174: EQ | C174: 19 | D174: 19.5 | E174: 18.25 | F174: 18.35 | G174: 18.25 | H174: 19.95 | I174: 10163 | J174: 189828.95 | K174: 2019-11-04 | L174: 222 | M174: INE863I01016
A175: BANKBARODA | B175: EQ | C175: 100.45 | D175: 103.75 | E175: 100.35 | F175: 101.95 | G175: 102.1 | H175: 100 | I175: 33014625 | J175: 3375080043 | K175: 2019-11-04 | L175: 80631 | M175: INE028A01039
A176: BANKBEES | B176: EQ | C176: 3050 | D176: 3127.84 | E176: 3050 | F176: 3101.36 | G176: 3103 | H176: 3091.45 | I176: 11564 | J176: 36031753.82 | K176: 2019-11-04 | L176: 984 | M176: INF732E01078
A177: BANKINDIA | B177: EQ | C177: 71.25 | D177: 73.15 | E177: 71 | F177: 71.35 | G177: 71.3 | H177: 71 | I177: 13445702 | J177: 967837927.2 | K177: 2019-11-04 | L177: 35990 | M177: INE084A01016
A178: BANSWRAS | B178: EQ | C178: 66.75 | D178: 69.4 | E178: 65.75 | F178: 67.55 | G178: 68 | H178: 66.75 | I178: 23164 | J178: 1576568.85 | K178: 2019-11-04 | L178: 120 | M178: INE629D01012
A179: BARTRONICS | B179: BE | C179: 1.4 | D179: 1.4 | E179: 1.4 | F179: 1.4 | G179: 1.4 | H179: 1.35 | I179: 970 | J179: 1358 | K179: 2019-11-04 | L179: 6 | M179: INE855F01034
A180: BASF | B180: EQ | C180: 1000 | D180: 1019.25 | E180: 990.25 | F180: 995.75 | G180: 990.25 | H180: 996.3 | I180: 12385 | J180: 12444674.15 | K180: 2019-11-04 | L180: 1094 | M180: INE373A01013
A181: BASML | B181: EQ | C181: 150.55 | D181: 153.95 | E181: 149 | F181: 150 | G181: 150 | H181: 150.55 | I181: 492 | J181: 73780.55 | K181: 2019-11-04 | L181: 17 | M181: INE186H01014
A182: BATAINDIA | B182: EQ | C182: 1758 | D182: 1759 | E182: 1715.2 | F182: 1731.15 | G182: 1730.95 | H182: 1741.25 | I182: 574339 | J182: 995227167.4 | K182: 2019-11-04 | L182: 20794 | M182: INE176A01028
A183: BAYERCROP | B183: EQ | C183: 3751 | D183: 3790 | E183: 3673 | F183: 3707.45 | G183: 3722.65 | H183: 3732 | I183: 3957 | J183: 14781699.35 | K183: 2019-11-04 | L183: 1301 | M183: INE462A01022
A184: BBL | B184: EQ | C184: 869.95 | D184: 909 | E184: 868 | F184: 900.1 | G184: 895 | H184: 860.35 | I184: 24375 | J184: 21761860.35 | K184: 2019-11-04 | L184: 1558 | M184: INE464A01028
A185: BBTC | B185: EQ | C185: 1224.25 | D185: 1249.6 | E185: 1202.7 | F185: 1218.5 | G185: 1226 | H185: 1216.65 | I185: 175743 | J185: 215957519.9 | K185: 2019-11-04 | L185: 9253 | M185: INE050A01025
A186: BCG | B186: EQ | C186: 2.85 | D186: 3 | E186: 2.75 | F186: 3 | G186: 3 | H186: 2.75 | I186: 704869 | J186: 2066700.35 | K186: 2019-11-04 | L186: 319 | M186: INE425B01027
A187: BCP | B187: EQ | C187: 7.95 | D187: 7.95 | E187: 7.65 | F187: 7.95 | G187: 7.95 | H187: 7.8 | I187: 7854 | J187: 60933 | K187: 2019-11-04 | L187: 12 | M187: INE905P01028
A188: BDL | B188: EQ | C188: 334 | D188: 350 | E188: 330.7 | F188: 332.7 | G188: 334 | H188: 331.55 | I188: 106801 | J188: 36170746.3 | K188: 2019-11-04 | L188: 4351 | M188: INE171Z01018
A189: BEARDSELL | B189: EQ | C189: 11.3 | D189: 11.55 | E189: 10.55 | F189: 11.45 | G189: 11.45 | H189: 11 | I189: 1757 | J189: 19605.5 | K189: 2019-11-04 | L189: 44 | M189: INE520H01022
A190: BEDMUTHA | B190: EQ | C190: 12.45 | D190: 12.45 | E190: 11.4 | F190: 11.7 | G190: 11.75 | H190: 11.3 | I190: 33407 | J190: 396787.9 | K190: 2019-11-04 | L190: 61 | M190: INE844K01012
A191: BEL | B191: EQ | C191: 121.05 | D191: 122.1 | E191: 119.05 | F191: 119.5 | G191: 119.25 | H191: 120.4 | I191: 10886660 | J191: 1308228626 | K191: 2019-11-04 | L191: 38840 | M191: INE263A01024
A192: BEML | B192: EQ | C192: 1001 | D192: 1025 | E192: 983.35 | F192: 992.2 | G192: 987 | H192: 1046.45 | I192: 789668 | J192: 793542202.5 | K192: 2019-11-04 | L192: 29261 | M192: INE258A01016
A193: BEPL | B193: EQ | C193: 53.4 | D193: 56.7 | E193: 52.5 | F193: 54.4 | G193: 54.1 | H193: 53.05 | I193: 861539 | J193: 46949522.7 | K193: 2019-11-04 | L193: 5408 | M193: INE922A01025
A194: BERGEPAINT | B194: EQ | C194: 509 | D194: 513.45 | E194: 497.05 | F194: 503.35 | G194: 505.5 | H194: 508.5 | I194: 1670083 | J194: 841463633.8 | K194: 2019-11-04 | L194: 33661 | M194: INE463A01038
A195: BFINVEST | B195: EQ | C195: 361.5 | D195: 366.85 | E195: 347 | F195: 349.95 | G195: 349 | H195: 356.45 | I195: 284817 | J195: 101424647.4 | K195: 2019-11-04 | L195: 10248 | M195: INE878K01010
A196: BFUTILITIE | B196: EQ | C196: 310.25 | D196: 310.25 | E196: 301.1 | F196: 310.25 | G196: 310.25 | H196: 295.5 | I196: 801899 | J196: 247778779.6 | K196: 2019-11-04 | L196: 5298 | M196: INE243D01012
A197: BGLOBAL | B197: BE | C197: 2.2 | D197: 2.2 | E197: 2 | F197: 2 | G197: 2 | H197: 2.1 | I197: 18834 | J197: 41394.8 | K197: 2019-11-04 | L197: 20 | M197: INE224M01013
A198: BGRENERGY | B198: EQ | C198: 33.85 | D198: 35.45 | E198: 33.8 | F198: 34.5 | G198: 34.5 | H198: 33.7 | I198: 134401 | J198: 4670782.1 | K198: 2019-11-04 | L198: 1223 | M198: INE661I01014
A199: BHAGERIA | B199: EQ | C199: 116.9 | D199: 116.9 | E199: 112.2 | F199: 113.55 | G199: 113.05 | H199: 112.95 | I199: 6436 | J199: 738004.4 | K199: 2019-11-04 | L199: 325 | M199: INE354C01027
A200: BHAGYANGR | B200: EQ | C200: 22 | D200: 22 | E200: 19 | F200: 19.15 | G200: 19.15 | H200: 19.15 | I200: 5831 | J200: 113981.6 | K200: 2019-11-04 | L200: 74 | M200: INE458B01036
... 1491 more rows

Sheet Sheet1 (hidden)

Sheet Sheet3 (hidden)

Sheet Sheet4 (hidden)

Sheet Sheet5 (hidden)
